Workbook

Sheet User's Guide
C1: Last updated: May 2017
B2: Philippines: Revenue Administration Reform Project (RARP)
A8: Project name | B8: Revenue Administration Reform Project (RARP) | C8: Revenue Administration Reform Project (RARP)
A9: Spreadsheet version | B9: Investment memo, final* | C9: Closeout ERR
A10: Date of ERR | B10: 2011-01-07T14:04:21 | C10: May 2017
A11: Amount of MCC funds | B11: $54.3 million | C11: $42.6 million
A12: Project Description | B12: RARP provides technical assistance, software, and hardware to the Bureau of Internal Revenue (BIR) to modernize its policies and procedures in order to increase tax payer compliance and increase tax revenues. | C12: RARP provides technical assistance, software, and hardware to the Bureau of Internal Revenue (BIR) to modernize its policies and procedures in order to increase tax payer compliance and increase tax revenues.
B14: 1. Modernize and Reform Tax Administration Procedures and Systems (eTIS) | C14: 1. Modernize and Reform Tax Administration Procedures and Systems (eTIS)
B15: 2. Support of Computer-Assisted Audit Techniques (CAATs) | C15: 2. Support of Computer-Assisted Audit Techniques (CAATs)
B16: 3. Support for a public-awareness campaign regarding BIR services and programs | C16: 3. Support for a public-awareness campaign regarding BIR services and programs
B17: 4. Strengthening Anti-Graft Oversight within Revenue Agencies (RIPS) | C17: 4. Strengthening Anti-Graft Oversight within Revenue Agencies (RIPS)
A19: Benefit streams included in ERR | B19: Increases in collected tax revenue | C19: Increases in collected tax revenue
B20: Improved efficiencies through public sector revenue administration and taxpayer compliance | C20: Improved efficiencies through public sector revenue administration and taxpayer compliance
A21: Costs included in ERR (other than costs borne by MCC) | B21: Incremental Opperating Costs | C21: Incremental Opperating Costs
A22: Estimated ERR and time horizon | B22: 40.3% over 20 years | C22: 34.7% over 20 years
B23: * Note: Minor corrections have been incorporated into the present spreadsheet since the Investment Memo
A24: Table of Contents
A25: Project Description
A26: This sheet should be read first, as it offers a summary of the project, a list of components, and states the economic rationale for the project.
A28: ERR & Sensitivity Analysis
A29: This sheet contains brief summary of the project's key parameters and ERR calculations, giving the user the opportunity to test the sensitivity to the ERR of various changes in parameters.
A31: Combined Cost-Benefit
A32: This worksheet summarizes the costs and benefits associated with all MCC investments. Benefits are summarized by year, and the associated ERR is computed over a 20-year timeframe.
A34: eTIS
A35: This worksheet summarizes the costs and benefits associated with the eTIS initative. Benefits are summarized by year, and the associated ERR is computed over a 20-year timeframe.
A38: CAATT
A39: This worksheet summarizes the costs and benefits associated with the CAATT initiative. Benefits are summarized by year, and the associated ERR is computed over a 20-year timeframe.
A41: RIPS
A42: This worksheet summarizes the costs and benefits associated with the RIPS initiative. Benefits are summarized by year, and the associated ERR is computed over a 20-year timeframe.
A44: Assumptions & Data
A45: This worksheet includes detailed data about how cost and benefit assumptions were projected forward over the course of the project.
A48: WB NRIMP Tax Tables
A49: This worksheet includes detailed tax data impacting the calculation of benefit assumptions projected over the course of the project.
A51: 1970-2008 Raw Data
A52: This worksheet includes detailed data and statistical output used to in cost and benefit assumptions projected over the course of the project.
A54: Notes
A55: This worksheet serves as a reference for abbreviations and citations used throughout this workbook.

Sheet Project Description
B1: Last updated: May 2017
B2: Philippines: Revenue Administration Reform Project (RARP)
B4: Project Description
B6: Summary
B8: Original Project
B9: This project addresses what the Asian Development Bank identifies as the Philippines‘ most significant constraint to growth: its tight fiscal position. The Philippines‘ tax effectiveness (the ratio of tax revenue to GDP) is the lowest in the region and has fallen slightly in recent years, straining the ability of the government to fund social programs.
B10: RARP provided technical assistance, software, and hardware to the Bureau of Internal Revenue (BIR) to modernize its policies and procedures in order to increase tax payer compliance and increase tax revenues. By taking steps to reduce opportunities for negotiated tax assessments and by increasing the likelihood of detection of non-compliance, this project will also contribute to an improved business climate and, indirectly, to increased investment.
B12: Closeout
B13: The eTIS functionality and rollout was reduced due to delays in the implementation of its pilot phase, attributed to the lack of infrastructure readiness at the Bureau of Internal Revenue (BIR) and contractor delays. While the compact is not specific about the targeted scope of eTIS improvements, a broad set of system functionalities were originally planned. However, the operability of the software at the beginning of the compact fell short of expectations, resulting in the need for significant software rewrites and platform upgrades. The scope of the project was reduced to implement a narrower, focused scope of eTIS improvements and rollout to BIR offices, which will still provide significant benefits and encompass offices that process some 75% of tax revenue in the country. The benefit stream was reduced to 75% of that originally estimated to account for this change.
B15: Components
B17: The RARP Project focused on improving revenue collection through the following components:
B19: 1. Modernize and Reform Tax Administration Procedures and Systems (eTIS)
B20: 2. Support of Computer-Assisted Audit Techniques (CAATs)
B21: 3. Support for a public-awareness campaign regarding BIR services and programs
B22: 4. Strengthening Anti-Graft Oversight within Revenue Agencies (RIPS)
B24: Economic Rationale
B25: The proximate outcome of the project will be increased effectiveness in tax collections that leads, over time, to increased tax revenues for the national government. Based on these programs, the analysis projects a gradual increase in total BIR collections as a percentage of GDP of 3.2% over a span of eight years. The expected ratio of BIR collections to GDP is 9.9% by 2017, compared to 9.6% that year without the project.
B26: We estimate an elasticity of 0.82 (from 1970 to 2008 data) to capture the relationship of national government expenditures and investment to tax revenue.

Sheet ERR & Sensitivity Analysis
B2: Philippines: Revenue Administration Reform Project (RARP) | I2: Last updated: May 2017
B4: ERR and sensitivity analysis
B6: Change the "User Input" cells in the table below to see the effect on the compact's Economic Rate of Return (ERR) and net benefits (see chart below). To reset all values to the default MCC estimates, click the "Reset Parameters" button at right. Be sure to reset all summary parameters to their original values ("MCC Estimate" values) before changing specific parameters.
B10: Parameter type | C10: Description of key parameters | D10: Parameter Values
D11: User Input | E11: MCC Estimate | F11: Plausible Range | G11: Values used in ERR computation | I11: All summary parameters set to initial values?
B12: Summary | C12: Actual Costs, as a percentage of estimated costs | D12: 1 | E12: 1 | F12: 80 - 120% | G12: =D12 -> 1 | I12: =IF(D12=E12,IF(D13=E13,"Y","N"),"N") -> Y
B13: Summary | C13: Actual Benefits, as a percentage of estimated benefits | D13: 1 | E13: 1 | F13: 80 - 120% | G13: =D13 -> 1
B15: Specific | C15: Incremental operating costs, as a percentage of project costs to date, lagged one year | D15: 0.15 | E15: 0.15 | G15: =IF($I$12="Y",IF(D15>1,100%,IF(D15<0,0%,D15)),E15) -> 0.15 | I15: All specific parameters set to initial values?
B16: Specific | C16: Change in tax revenue collection as a percentage of GDP, as a percentage of estimated benefits | D16: 1 | E16: 1 | F16: 80 - 120% | G16: =IF($I$12="Y",IF(D16>1,100%,IF(D16<0,0%,D16)),E16) -> 1 | I16: =IF(D15=E15,IF(D17=E17,IF(D16=E16,IF(D18=E18,"Y","N"),"N"),"N"),"N") -> Y
B17: Specific | C17: Fraction of variation in FDI/GDP explained by perceived corruption ratings | D17: 0.25 | E17: 0.25 | G17: 0.25
B18: Specific | C18: Elasticity of government expenditures and investment to tax revenue | D18: 0.8237462041 | E18: 0.8237462041 | G18: 0.8237462041 | I18: More Info
B19: =IF(I12="N",IF(I16="N","Reminder: Please reset all summary parameters to original values before changing specific parameters. Specific parameters will only be used in ERR computation when all summary parameters are set to initial values",0),"") ->  | I19: Project Description
I20: User's Guide
C21: User Generated Economic rate of return (ERR)*: | D21: ='Combined Cost-Benefit'!F4 -> 0.34662771
C23: MCC Estimated ERR: | E23: Original | F23: Closeout
D24: ERR | E24: 0.403 | F24: 0.347
D25: Date | E25: 2011-01-01 | F25: 2017-05-17
C27: Present Value (PV) of Benefits: | D27: =NPV(0.1,'Combined Cost-Benefit'!J31:AD31) -> 237850257.1
C29: Present Value (PV) of Costs: | D29: =NPV(0.1,'Combined Cost-Benefit'!J32:AD32) -> 71790138.59
C31: *This is the only ERR figure linked to other spreadsheets. "Original" and "Closeout" ERRs are all static for purposes of illustration.

Sheet Combined Cost-Benefit
B1: Philippines: Revenue Administration Reform Project (RARP) | J1: Last updated: May 2017
A2: =IF('ERR & Sensitivity Analysis'!$I$12="y",IF('ERR & Sensitivity Analysis'!$I$16="y","","Note: Current calculations are based on user input and are not the original MCC estimates"),"Note: Current calculations are based on user input and are not the original MCC estimates") -> 
E4: ERR = | F4: =IRR(J24:AD24) -> 0.34662771 | H4: (Unless otherwise indicated, monetary figures in constant 2009 US dollars)
A6: Cost resulting ERR equal to hurdle: | F6: 4.13
A7: Benefit resulting ERR equal to hurdle: | F7: 0.28
B9: Sensitivity Analysis Shock Factors
B10: eTIS
E11: Project Costs as % of baseline = | F11: =eTIS!F5 -> 1
E12: Benefits as % of baseline = | F12: =eTIS!F6 -> 1
B13: CAATT
E14: Project Costs as % of baseline = | F14: =CAATT!F6 -> 1
E15: Benefits as % of baseline = | F15: =CAATT!F7 -> 1
B16: RIPS
E17: Project Costs as % of baseline = | F17: ='ERR & Sensitivity Analysis'!G12 -> 1
E18: Benefits as % of baseline = | F18: ='ERR & Sensitivity Analysis'!G13 -> 1
G19: Benefits for QRR: | H19: MCC costs: | I19: GRP costs: | J19: Total costs:
G20: =NPV(0.1,K31:AD31)*H20/J20 -> 141198931.5 | H20: =NPV(0.1,K34:AD34) -> 42617952.1 | I20: =NPV(0.1,K35:AD35) -> 36248237.93 | J20: =NPV(0.1,K32:AD32) -> 78969152.45
G21: Year
G22: 2007 | H22: 2008 | I22: 2009 | J22: 2010 | K22: 2011 | L22: 2012 | M22: 2013 | N22: 2014 | O22: 2015 | P22: 2016 | Q22: 2017 | R22: 2018 | S22: 2019 | T22: 2020 | U22: 2021 | V22: 2022 | W22: 2023 | X22: 2024 | Y22: 2025 | Z22: 2026 | AA22: 2027 | AB22: 2028 | AC22: 2029 | AD22: 2030
G23: -3 | H23: -2 | I23: -1 | J23: 0 | K23: 1 | L23: 2 | M23: 3 | N23: 4 | O23: 5 | P23: 6 | Q23: 7 | R23: 8 | S23: 9 | T23: 10 | U23: 11 | V23: 12 | W23: 13 | X23: 14 | Y23: 15 | Z23: 16 | AA23: 17 | AB23: 18 | AC23: 19 | AD23: 20
A24: Net Benefits, const. 2009 $, deflated with PHP inflation | J24: =SUM(J26:J28) -> 0 | K24: =SUM(K26:K28) -> -9436761.775 | L24: =SUM(L26:L28) -> -11953833.91 | M24: -27454663.39 | N24: -3567508.754 | O24: 7169593.14 | P24: 21783970.3 | Q24: 30556134.74 | R24: 40802019.45 | S24: 40955801.21 | T24: 56423055.93 | U24: 46679102.08 | V24: =SUM(V26:V28) -> 58521515.19 | W24: 41689099.13 | X24: 57387481.74 | Y24: 49062183.56 | Z24: 53096815.44 | AA24: 65414134.85 | AB24: =SUM(AB26:AB28) -> 74306020.03 | AC24: 73578037.33 | AD24: 65724721.97
A25: % of rGDP, WOP | O25: =O24/O56 -> 3.35960257e-05 | P25: 9.768190928e-05 | Q25: 0.0001311170681 | R25: 0.0001675429589 | S25: 0.0001609324632 | T25: 0.0002121624618 | U25: 0.0001679647487 | V25: 0.0002015092204 | W25: 0.0001373680018 | X25: 0.0001809522333 | Y25: 0.0001480394157 | Z25: 0.0001533143031 | AA25: 0.0001807463394 | AB25: 0.0001964742404 | AC25: 0.0001861716409 | AD25: 0.0001591394288
B26: eTIS | J26: =eTIS!J12 -> 0 | K26: =eTIS!K12 -> -5372388.528 | L26: =eTIS!L12 -> -10997867.22 | M26: =eTIS!M12 -> -26669254.61 | N26: =eTIS!N12 -> -4078323.849 | O26: =eTIS!O12 -> 2060285.666 | P26: =eTIS!P12 -> 13113897.32 | Q26: =eTIS!Q12 -> 20884244.47 | R26: =eTIS!R12 -> 29282048.71 | S26: =eTIS!S12 -> 31070890.65 | T26: =eTIS!T12 -> 32919941.74 | U26: =eTIS!U12 -> 34832785.06 | V26: =eTIS!V12 -> 36813127.32 | W26: =eTIS!W12 -> 38864806.02 | X26: =eTIS!X12 -> 40991796.91 | Y26: =eTIS!Y12 -> 43198221.66 | Z26: =eTIS!Z12 -> 45488355.88 | AA26: =eTIS!AA12 -> 47866637.4 | AB26: =eTIS!AB12 -> 50337674.83 | AC26: =eTIS!AC12 -> 52906256.57 | AD26: =eTIS!AD12 -> 55577360
B27: CAATT | J27: =CAATT!J13 -> 0 | K27: =CAATT!K13 -> -148521.7038 | L27: =CAATT!L13 -> -304040.1804 | M27: =CAATT!M13 -> -175868.7146 | N27: =CAATT!N13 -> 635408.6597 | O27: =CAATT!O13 -> 911216.2219 | P27: =CAATT!P13 -> 1102359.039 | Q27: =CAATT!Q13 -> 1136646.059 | R27: =CAATT!R13 -> 1171628.534 | S27: =CAATT!S13 -> 1205372.934 | T27: =CAATT!T13 -> 1239729.442 | U27: =CAATT!U13 -> 1274741.257 | V27: =CAATT!V13 -> 1310452.342 | W27: =CAATT!W13 -> 1346907.499 | X27: =CAATT!X13 -> 1384152.445 | Y27: =CAATT!Y13 -> 1422233.892 | Z27: =CAATT!Z13 -> 1461199.623 | AA27: =CAATT!AA13 -> 1501098.576 | AB27: =CAATT!AB13 -> 1541980.93 | AC27: =CAATT!AC13 -> 1583898.184 | AD27: =CAATT!AD13 -> 1626903.251
B28: RIPS | E28: ERR = | F28: =IRR(K28:AD28) -> 0.5020079378 | J28: =RIPS!J13 -> 0 | K28: =RIPS!K13 -> -3915851.543 | L28: =RIPS!L13 -> -651926.5115 | M28: =RIPS!M13 -> -609540.066 | N28: =RIPS!N13 -> -124593.5644 | O28: =RIPS!O13 -> 4198091.252 | P28: =RIPS!P13 -> 7567713.945 | Q28: =RIPS!Q13 -> 8535244.204 | R28: =RIPS!R13 -> 10348342.2 | S28: =RIPS!S13 -> 8679537.625 | T28: =RIPS!T13 -> 22263384.75 | U28: =RIPS!U13 -> 10571575.76 | V28: =RIPS!V13 -> 20397935.53 | W28: =RIPS!W13 -> 1477385.61 | X28: =RIPS!X13 -> 15011532.39 | Y28: =RIPS!Y13 -> 4441728.007 | Z28: =RIPS!Z13 -> 6147259.934 | AA28: =RIPS!AA13 -> 16046398.88 | AB28: =RIPS!AB13 -> 22426364.27 | AC28: =RIPS!AC13 -> 19087882.58 | AD28: =RIPS!AD13 -> 8520458.717
B29: eTIS + CAATT | E29: ERR = | F29: =IRR(J29:AD29) -> 0.3103187408 | J29: =J26+J27 -> 0 | K29: =K26+K27 -> -5520910.232 | L29: -11301907.4 | M29: -26845123.32 | N29: -3442915.189 | O29: 2971501.888 | P29: 14216256.36 | Q29: 22020890.53 | R29: 30453677.24 | S29: 32276263.59 | T29: 34159671.18 | U29: 36107526.32 | V29: 38123579.66 | W29: 40211713.52 | X29: 42375949.35 | Y29: 44620455.55 | Z29: 46949555.5 | AA29: 49367735.97 | AB29: 51879655.76 | AC29: 54490154.76 | AD29: 57204263.25
K30: =SUM(eTIS!J38,CAATT!J40,RIPS!J37) -> 0
A31: Total Benefits | J31: =SUM(eTIS!J38,CAATT!J40,RIPS!J37) -> 0 | K31: =SUM(eTIS!K38,CAATT!K40,RIPS!K37) -> 0 | L31: =SUM(eTIS!L38,CAATT!L40,RIPS!L37) -> 0 | M31: =SUM(eTIS!M38,CAATT!M40,RIPS!M37) -> 561412.8713 | N31: =SUM(eTIS!N38,CAATT!N40,RIPS!N37) -> 7084013.326 | O31: =SUM(eTIS!O38,CAATT!O40,RIPS!O37) -> 18013734.59 | P31: =SUM(eTIS!P38,CAATT!P40,RIPS!P37) -> 28342411.12 | Q31: =SUM(eTIS!Q38,CAATT!Q40,RIPS!Q37) -> 36856027.36 | R31: =SUM(eTIS!R38,CAATT!R40,RIPS!R37) -> 46854497.52 | S31: =SUM(eTIS!S38,CAATT!S40,RIPS!S37) -> 46771518.97 | T31: =SUM(eTIS!T38,CAATT!T40,RIPS!T37) -> 62012208.78 | U31: =SUM(eTIS!U38,CAATT!U40,RIPS!U37) -> 52051446.4 | V31: =SUM(eTIS!V38,CAATT!V40,RIPS!V37) -> 63686387.25 | W31: =SUM(eTIS!W38,CAATT!W40,RIPS!W37) -> 46655433.13 | X31: =SUM(eTIS!X38,CAATT!X40,RIPS!X37) -> 62163827.17 | Y31: =SUM(eTIS!Y38,CAATT!Y40,RIPS!Y37) -> 53656721.74 | Z31: =SUM(eTIS!Z38,CAATT!Z40,RIPS!Z37) -> 57517375.39 | AA31: =SUM(eTIS!AA38,CAATT!AA40,RIPS!AA37) -> 69668208.47 | AB31: =SUM(eTIS!AB38,CAATT!AB40,RIPS!AB37) -> 78400776.57 | AC31: =SUM(eTIS!AC38,CAATT!AC40,RIPS!AC37) -> 77520337.35 | AD31: =SUM(eTIS!AD38,CAATT!AD40,RIPS!AD37) -> 69521130.57
A32: Total Costs | J32: =eTIS!J14+CAATT!J15+RIPS!J15 -> 0 | K32: =eTIS!K14+CAATT!K15+RIPS!K15 -> 9436761.775 | L32: =eTIS!L14+CAATT!L15+RIPS!L15 -> 11953833.91 | M32: =eTIS!M14+CAATT!M15+RIPS!M15 -> 28016076.26 | N32: =eTIS!N14+CAATT!N15+RIPS!N15 -> 10651522.08 | O32: =eTIS!O14+CAATT!O15+RIPS!O15 -> 10844141.45 | P32: =eTIS!P14+CAATT!P15+RIPS!P15 -> 6558440.815 | Q32: =eTIS!Q14+CAATT!Q15+RIPS!Q15 -> 6299892.62 | R32: =eTIS!R14+CAATT!R15+RIPS!R15 -> 6052478.079 | S32: =eTIS!S14+CAATT!S15+RIPS!S15 -> 5815717.752 | T32: =eTIS!T14+CAATT!T15+RIPS!T15 -> 5589152.847 | U32: =eTIS!U14+CAATT!U15+RIPS!U15 -> 5372344.325 | V32: =eTIS!V14+CAATT!V15+RIPS!V15 -> 5164872.055 | W32: =eTIS!W14+CAATT!W15+RIPS!W15 -> 4966333.997 | X32: =eTIS!X14+CAATT!X15+RIPS!X15 -> 4776345.426 | Y32: =eTIS!Y14+CAATT!Y15+RIPS!Y15 -> 4594538.18 | Z32: =eTIS!Z14+CAATT!Z15+RIPS!Z15 -> 4420559.954 | AA32: =eTIS!AA14+CAATT!AA15+RIPS!AA15 -> 4254073.614 | AB32: =eTIS!AB14+CAATT!AB15+RIPS!AB15 -> 4094756.542 | AC32: =eTIS!AC14+CAATT!AC15+RIPS!AC15 -> 3942300.014 | AD32: =eTIS!AD14+CAATT!AD15+RIPS!AD15 -> 3796408.6
A33: Total Costs, (incl. admin & controls) const. 2009 $, deflated with PHP inflation | J33: =SUM(J34:J35) -> 0 | K33: =SUM(K34:K35) -> 9422190.591 | L33: =SUM(L34:L35) -> 11925893 | M33: 27949167.96 | N33: 10638716.66 | O33: 10831887.46 | P33: 6558440.815 | Q33: 6299892.62 | R33: 6052478.079 | S33: 5815717.752 | T33: 5589152.847 | U33: 5372344.325 | V33: 5164872.055 | W33: 4966333.997 | X33: 4776345.426 | Y33: 4594538.18 | Z33: 4420559.954 | AA33: 4254073.614 | AB33: =SUM(AB34:AB35) -> 4094756.542 | AC33: 3942300.014 | AD33: 3796408.6
C34: MCC, const. 2009 $, deflated with PHP inflation | J34: =J37+J49 -> 0 | K34: =K37+K49 -> 9422190.591 | L34: =L37+L49 -> 10681413.28 | M34: 25347919.78 | N34: 4839069.412 | O34: 4630688.432 | P34: 0 | Q34: 0 | R34: 0 | S34: 0 | T34: 0 | U34: 0 | V34: 0 | W34: 0 | X34: 0 | Y34: 0 | Z34: 0 | AA34: 0 | AB34: 0 | AC34: 0 | AD34: 0
C35: GRP, const. 2009 $, deflated with PHP inflation | J35: =J38+J51 -> 0 | K35: =K38+K51 -> 0 | L35: =L38+L51 -> 1244479.722 | M35: 2601248.178 | N35: 5799647.251 | O35: 6201199.028 | P35: 6558440.815 | Q35: 6299892.62 | R35: 6052478.079 | S35: 5815717.752 | T35: 5589152.847 | U35: 5372344.325 | V35: 5164872.055 | W35: 4966333.997 | X35: 4776345.426 | Y35: 4594538.18 | Z35: 4420559.954 | AA35: 4254073.614 | AB35: 4094756.542 | AC35: 3942300.014 | AD35: 3796408.6
B36: Total project costs (excl. admin. & controls), const. 2009 $, deflated with PHP inflation | J36: =SUM(J37:J38) -> 0 | K36: =SUM(K37:K38) -> 8501587.184 | L36: 10892546.56 | M36: 25497489.69 | N36: 10170705.66 | O36: 10384030.04 | P36: 6558440.815 | Q36: 6299892.62 | R36: 6052478.079 | S36: 5815717.752 | T36: 5589152.847 | U36: 5372344.325 | V36: 5164872.055 | W36: 4966333.997 | X36: 4776345.426 | Y36: 4594538.18 | Z36: 4420559.954 | AA36: 4254073.614 | AB36: 4094756.542 | AC36: 3942300.014 | AD36: 3796408.6
C37: MCC, const. 2009 $, deflated with PHP inflation | J37: =eTIS!J20/'Combined Cost-Benefit'!J$59*100+CAATT!J21/'Combined Cost-Benefit'!J$59*100+RIPS!J19 -> 0 | K37: =eTIS!K20/'Combined Cost-Benefit'!K59*100+CAATT!K21/'Combined Cost-Benefit'!K59*100+RIPS!K19 -> 8501587.184 | L37: =eTIS!L20/'Combined Cost-Benefit'!L59*100+CAATT!L21/'Combined Cost-Benefit'!L59*100+RIPS!L19 -> 9648066.834 | M37: =eTIS!M20/'Combined Cost-Benefit'!M59*100+CAATT!M21/'Combined Cost-Benefit'!M59*100+RIPS!M19 -> 22896241.52 | N37: =eTIS!N20/'Combined Cost-Benefit'!N59*100+CAATT!N21/'Combined Cost-Benefit'!N59*100+RIPS!N19 -> 4371058.404 | O37: =eTIS!O20/'Combined Cost-Benefit'!O59*100+CAATT!O21/'Combined Cost-Benefit'!O59*100+RIPS!O19 -> 4182831.009 | P37: =eTIS!P20/'Combined Cost-Benefit'!P59*100+CAATT!P21/'Combined Cost-Benefit'!P59*100+RIPS!P19 -> 0 | Q37: =eTIS!Q20/'Combined Cost-Benefit'!Q59*100+CAATT!Q21/'Combined Cost-Benefit'!Q59*100+RIPS!Q19 -> 0 | R37: =eTIS!R20/'Combined Cost-Benefit'!R59*100+CAATT!R21/'Combined Cost-Benefit'!R59*100+RIPS!R19 -> 0 | S37: =eTIS!S20/'Combined Cost-Benefit'!S59*100+CAATT!S21/'Combined Cost-Benefit'!S59*100+RIPS!S19 -> 0 | T37: =eTIS!T20/'Combined Cost-Benefit'!T59*100+CAATT!T21/'Combined Cost-Benefit'!T59*100+RIPS!T19 -> 0 | U37: =eTIS!U20/'Combined Cost-Benefit'!U59*100+CAATT!U21/'Combined Cost-Benefit'!U59*100+RIPS!U19 -> 0 | V37: =eTIS!V20/'Combined Cost-Benefit'!V59*100+CAATT!V21/'Combined Cost-Benefit'!V59*100+RIPS!V19 -> 0 | W37: =eTIS!W20/'Combined Cost-Benefit'!W59*100+CAATT!W21/'Combined Cost-Benefit'!W59*100+RIPS!W19 -> 0 | X37: =eTIS!X20/'Combined Cost-Benefit'!X59*100+CAATT!X21/'Combined Cost-Benefit'!X59*100+RIPS!X19 -> 0 | Y37: =eTIS!Y20/'Combined Cost-Benefit'!Y59*100+CAATT!Y21/'Combined Cost-Benefit'!Y59*100+RIPS!Y19 -> 0 | Z37: =eTIS!Z20/'Combined Cost-Benefit'!Z59*100+CAATT!Z21/'Combined Cost-Benefit'!Z59*100+RIPS!Z19 -> 0 | AA37: =eTIS!AA20/'Combined Cost-Benefit'!AA59*100+CAATT!AA21/'Combined Cost-Benefit'!AA59*100+RIPS!AA19 -> 0 | AB37: =eTIS!AB20/'Combined Cost-Benefit'!AB59*100+CAATT!AB21/'Combined Cost-Benefit'!AB59*100+RIPS!AB19 -> 0 | AC37: =eTIS!AC20/'Combined Cost-Benefit'!AC59*100+CAATT!AC21/'Combined Cost-Benefit'!AC59*100+RIPS!AC19 -> 0 | AD37: =eTIS!AD20/'Combined Cost-Benefit'!AD59*100+CAATT!AD21/'Combined Cost-Benefit'!AD59*100+RIPS!AD19 -> 0
C38: GRP, const. 2009 $, deflated with PHP inflation | J38: =eTIS!J21/'Combined Cost-Benefit'!J$59*100+CAATT!J22/'Combined Cost-Benefit'!J$59*100+RIPS!J20 -> 0 | K38: =eTIS!K21/'Combined Cost-Benefit'!K$59*100+CAATT!K22/'Combined Cost-Benefit'!K$59*100+RIPS!K20 -> 0 | L38: =eTIS!L21/'Combined Cost-Benefit'!L$59*100+CAATT!L22/'Combined Cost-Benefit'!L$59*100+RIPS!L20 -> 1244479.722 | M38: =eTIS!M21/'Combined Cost-Benefit'!M$59*100+CAATT!M22/'Combined Cost-Benefit'!M$59*100+RIPS!M20 -> 2601248.178 | N38: =eTIS!N21/'Combined Cost-Benefit'!N$59*100+CAATT!N22/'Combined Cost-Benefit'!N$59*100+RIPS!N20 -> 5799647.251 | O38: =eTIS!O21/'Combined Cost-Benefit'!O$59*100+CAATT!O22/'Combined Cost-Benefit'!O$59*100+RIPS!O20 -> 6201199.028 | P38: =eTIS!P21/'Combined Cost-Benefit'!P$59*100+CAATT!P22/'Combined Cost-Benefit'!P$59*100+RIPS!P20 -> 6558440.815 | Q38: =eTIS!Q21/'Combined Cost-Benefit'!Q$59*100+CAATT!Q22/'Combined Cost-Benefit'!Q$59*100+RIPS!Q20 -> 6299892.62 | R38: =eTIS!R21/'Combined Cost-Benefit'!R$59*100+CAATT!R22/'Combined Cost-Benefit'!R$59*100+RIPS!R20 -> 6052478.079 | S38: =eTIS!S21/'Combined Cost-Benefit'!S$59*100+CAATT!S22/'Combined Cost-Benefit'!S$59*100+RIPS!S20 -> 5815717.752 | T38: =eTIS!T21/'Combined Cost-Benefit'!T$59*100+CAATT!T22/'Combined Cost-Benefit'!T$59*100+RIPS!T20 -> 5589152.847 | U38: =eTIS!U21/'Combined Cost-Benefit'!U$59*100+CAATT!U22/'Combined Cost-Benefit'!U$59*100+RIPS!U20 -> 5372344.325 | V38: =eTIS!V21/'Combined Cost-Benefit'!V$59*100+CAATT!V22/'Combined Cost-Benefit'!V$59*100+RIPS!V20 -> 5164872.055 | W38: =eTIS!W21/'Combined Cost-Benefit'!W$59*100+CAATT!W22/'Combined Cost-Benefit'!W$59*100+RIPS!W20 -> 4966333.997 | X38: =eTIS!X21/'Combined Cost-Benefit'!X$59*100+CAATT!X22/'Combined Cost-Benefit'!X$59*100+RIPS!X20 -> 4776345.426 | Y38: =eTIS!Y21/'Combined Cost-Benefit'!Y$59*100+CAATT!Y22/'Combined Cost-Benefit'!Y$59*100+RIPS!Y20 -> 4594538.18 | Z38: =eTIS!Z21/'Combined Cost-Benefit'!Z$59*100+CAATT!Z22/'Combined Cost-Benefit'!Z$59*100+RIPS!Z20 -> 4420559.954 | AA38: =eTIS!AA21/'Combined Cost-Benefit'!AA$59*100+CAATT!AA22/'Combined Cost-Benefit'!AA$59*100+RIPS!AA20 -> 4254073.614 | AB38: =eTIS!AB21/'Combined Cost-Benefit'!AB$59*100+CAATT!AB22/'Combined Cost-Benefit'!AB$59*100+RIPS!AB20 -> 4094756.542 | AC38: =eTIS!AC21/'Combined Cost-Benefit'!AC$59*100+CAATT!AC22/'Combined Cost-Benefit'!AC$59*100+RIPS!AC20 -> 3942300.014 | AD38: =eTIS!AD21/'Combined Cost-Benefit'!AD$59*100+CAATT!AD22/'Combined Cost-Benefit'!AD$59*100+RIPS!AD20 -> 3796408.6
B39: Proposed project costs | G39: =68365000*G52/G57 -> 0.0004746162644
B40: Project costs by year, const. 2009 $, deflated with PHP inflation | J40: =J41+J43 -> 0 | K40: 8369121.881 | L40: 9401019.257 | M40: 22307986.15 | N40: 4305687.158 | O40: 4126380.251
C41: MCC, const. 2009 $, deflated with PHP inflation | J41: =eTIS!J24/'Combined Cost-Benefit'!J59*100+CAATT!J25/'Combined Cost-Benefit'!J59+RIPS!J24 -> 0 | K41: =eTIS!K24/'Combined Cost-Benefit'!K59*100+CAATT!K25/'Combined Cost-Benefit'!K59+RIPS!K24 -> 8369121.881 | L41: =eTIS!L24/'Combined Cost-Benefit'!L59*100+CAATT!L25/'Combined Cost-Benefit'!L59+RIPS!L24 -> 9394058.582 | M41: =eTIS!M24/'Combined Cost-Benefit'!M59*100+CAATT!M25/'Combined Cost-Benefit'!M59+RIPS!M24 -> 22287984.21 | N41: =eTIS!N24/'Combined Cost-Benefit'!N59*100+CAATT!N25/'Combined Cost-Benefit'!N59+RIPS!N24 -> 4254645.522 | O41: =eTIS!O24/'Combined Cost-Benefit'!O59*100+CAATT!O25/'Combined Cost-Benefit'!O59+RIPS!O24 -> 4071431.122 | P41: =eTIS!P24/'Combined Cost-Benefit'!P59*100+CAATT!P25/'Combined Cost-Benefit'!P59+RIPS!P24 -> 0 | Q41: =eTIS!Q24/'Combined Cost-Benefit'!Q59*100+CAATT!Q25/'Combined Cost-Benefit'!Q59+RIPS!Q24 -> 0 | R41: =eTIS!R24/'Combined Cost-Benefit'!R59*100+CAATT!R25/'Combined Cost-Benefit'!R59+RIPS!R24 -> 0 | S41: =eTIS!S24/'Combined Cost-Benefit'!S59*100+CAATT!S25/'Combined Cost-Benefit'!S59+RIPS!S24 -> 0 | T41: =eTIS!T24/'Combined Cost-Benefit'!T59*100+CAATT!T25/'Combined Cost-Benefit'!T59+RIPS!T24 -> 0 | U41: =eTIS!U24/'Combined Cost-Benefit'!U59*100+CAATT!U25/'Combined Cost-Benefit'!U59+RIPS!U24 -> 0 | V41: =eTIS!V24/'Combined Cost-Benefit'!V59*100+CAATT!V25/'Combined Cost-Benefit'!V59+RIPS!V24 -> 0 | W41: =eTIS!W24/'Combined Cost-Benefit'!W59*100+CAATT!W25/'Combined Cost-Benefit'!W59+RIPS!W24 -> 0 | X41: =eTIS!X24/'Combined Cost-Benefit'!X59*100+CAATT!X25/'Combined Cost-Benefit'!X59+RIPS!X24 -> 0 | Y41: =eTIS!Y24/'Combined Cost-Benefit'!Y59*100+CAATT!Y25/'Combined Cost-Benefit'!Y59+RIPS!Y24 -> 0 | Z41: =eTIS!Z24/'Combined Cost-Benefit'!Z59*100+CAATT!Z25/'Combined Cost-Benefit'!Z59+RIPS!Z24 -> 0 | AA41: =eTIS!AA24/'Combined Cost-Benefit'!AA59*100+CAATT!AA25/'Combined Cost-Benefit'!AA59+RIPS!AA24 -> 0 | AB41: =eTIS!AB24/'Combined Cost-Benefit'!AB59*100+CAATT!AB25/'Combined Cost-Benefit'!AB59+RIPS!AB24 -> 0 | AC41: =eTIS!AC24/'Combined Cost-Benefit'!AC59*100+CAATT!AC25/'Combined Cost-Benefit'!AC59+RIPS!AC24 -> 0 | AD41: =eTIS!AD24/'Combined Cost-Benefit'!AD59*100+CAATT!AD25/'Combined Cost-Benefit'!AD59+RIPS!AD24 -> 0
D42: Assumed profile of MCC project costs | J42: 0 | K42: 0.1 | L42: 0.2 | M42: 0.5 | N42: 0.1 | O42: =100%-SUM(J42:N42) -> 0.1
C43: GRP, const. 2009 $, deflated with PHP inflation | J43: =eTIS!J21/'Combined Cost-Benefit'!J59+CAATT!J27/'Combined Cost-Benefit'!J59*100+RIPS!J25 -> 0 | K43: =eTIS!K21/'Combined Cost-Benefit'!K59+CAATT!K27/'Combined Cost-Benefit'!K59*100+RIPS!K25 -> 0 | L43: =eTIS!L21/'Combined Cost-Benefit'!L59+CAATT!L27/'Combined Cost-Benefit'!L59*100+RIPS!L25 -> 6960.675453 | M43: =eTIS!M21/'Combined Cost-Benefit'!M59+CAATT!M27/'Combined Cost-Benefit'!M59*100+RIPS!M25 -> 20001.94096 | N43: =eTIS!N21/'Combined Cost-Benefit'!N59+CAATT!N27/'Combined Cost-Benefit'!N59*100+RIPS!N25 -> 51041.63561 | O43: =eTIS!O21/'Combined Cost-Benefit'!O59+CAATT!O27/'Combined Cost-Benefit'!O59*100+RIPS!O25 -> 54949.12925 | P43: =eTIS!P21/'Combined Cost-Benefit'!P59+CAATT!P27/'Combined Cost-Benefit'!P59*100+RIPS!P25 -> 58425.44312 | Q43: =eTIS!Q21/'Combined Cost-Benefit'!Q59+CAATT!Q27/'Combined Cost-Benefit'!Q59*100+RIPS!Q25 -> 55909.51494 | R43: =eTIS!R21/'Combined Cost-Benefit'!R59+CAATT!R27/'Combined Cost-Benefit'!R59*100+RIPS!R25 -> 53501.92817 | S43: =eTIS!S21/'Combined Cost-Benefit'!S59+CAATT!S27/'Combined Cost-Benefit'!S59*100+RIPS!S25 -> 51198.01739 | T43: =eTIS!T21/'Combined Cost-Benefit'!T59+CAATT!T27/'Combined Cost-Benefit'!T59*100+RIPS!T25 -> 48993.31808 | U43: =eTIS!U21/'Combined Cost-Benefit'!U59+CAATT!U27/'Combined Cost-Benefit'!U59*100+RIPS!U25 -> 46883.55797 | V43: =eTIS!V21/'Combined Cost-Benefit'!V59+CAATT!V27/'Combined Cost-Benefit'!V59*100+RIPS!V25 -> 44864.64878 | W43: =eTIS!W21/'Combined Cost-Benefit'!W59+CAATT!W27/'Combined Cost-Benefit'!W59*100+RIPS!W25 -> 42932.67825 | X43: =eTIS!X21/'Combined Cost-Benefit'!X59+CAATT!X27/'Combined Cost-Benefit'!X59*100+RIPS!X25 -> 41083.90264 | Y43: =eTIS!Y21/'Combined Cost-Benefit'!Y59+CAATT!Y27/'Combined Cost-Benefit'!Y59*100+RIPS!Y25 -> 39314.73936 | Z43: =eTIS!Z21/'Combined Cost-Benefit'!Z59+CAATT!Z27/'Combined Cost-Benefit'!Z59*100+RIPS!Z25 -> 37621.76016 | AA43: =eTIS!AA21/'Combined Cost-Benefit'!AA59+CAATT!AA27/'Combined Cost-Benefit'!AA59*100+RIPS!AA25 -> 36001.68436 | AB43: =eTIS!AB21/'Combined Cost-Benefit'!AB59+CAATT!AB27/'Combined Cost-Benefit'!AB59*100+RIPS!AB25 -> 34451.37259 | AC43: =eTIS!AC21/'Combined Cost-Benefit'!AC59+CAATT!AC27/'Combined Cost-Benefit'!AC59*100+RIPS!AC25 -> 32967.82066 | AD43: =eTIS!AD21/'Combined Cost-Benefit'!AD59+CAATT!AD27/'Combined Cost-Benefit'!AD59*100+RIPS!AD25 -> 31548.15375
B44: Incremental operating costs | J44: =SUM(J45:J46) -> 0 | K44: =SUM(K45:K46) -> 0 | L44: =SUM(L45:L46) -> 1255368.282 | M44: 2664477.069 | N44: 6007674.701 | O44: 6645871.529 | P44: =SUM(P45:P46) -> 7256586.197 | Q44: 7256586.197 | R44: 7256586.197 | S44: 7256586.197 | T44: 7256586.197 | U44: 7256586.197 | V44: 7256586.197 | W44: 7256586.197 | X44: 7256586.197 | Y44: 7256586.197 | Z44: 7256586.197 | AA44: 7256586.197 | AB44: 7256586.197 | AC44: 7256586.197 | AD44: 7256586.197
C45: MCC, const. 2009 $, deflated with PHP inflation | J45: 0 | K45: 0 | L45: 0 | M45: 0 | N45: 0 | O45: 0 | P45: 0 | Q45: 0 | R45: 0 | S45: 0 | T45: 0 | U45: 0 | V45: 0 | W45: 0 | X45: 0 | Y45: 0 | Z45: 0 | AA45: 0 | AB45: 0 | AC45: 0 | AD45: 0
C46: GRP, const. 2009 $, deflated with PHP inflation | J46: 0 | K46: =$G$47*SUM($J$41:J41) -> 0 | L46: =$G$47*SUM($J$41:K41) -> 1255368.282 | M46: =$G$47*SUM($J$41:L41) -> 2664477.069 | N46: =$G$47*SUM($J$41:M41) -> 6007674.701 | O46: =$G$47*SUM($J$41:N41) -> 6645871.529 | P46: =$G$47*SUM($J$41:O41) -> 7256586.197 | Q46: =$G$47*SUM($J$41:P41) -> 7256586.197 | R46: =$G$47*SUM($J$41:Q41) -> 7256586.197 | S46: =$G$47*SUM($J$41:R41) -> 7256586.197 | T46: =$G$47*SUM($J$41:S41) -> 7256586.197 | U46: =$G$47*SUM($J$41:T41) -> 7256586.197 | V46: =$G$47*SUM($J$41:U41) -> 7256586.197 | W46: =$G$47*SUM($J$41:V41) -> 7256586.197 | X46: =$G$47*SUM($J$41:W41) -> 7256586.197 | Y46: =$G$47*SUM($J$41:X41) -> 7256586.197 | Z46: =$G$47*SUM($J$41:Y41) -> 7256586.197 | AA46: =$G$47*SUM($J$41:Z41) -> 7256586.197 | AB46: =$G$47*SUM($J$41:AA41) -> 7256586.197 | AC46: =$G$47*SUM($J$41:AB41) -> 7256586.197 | AD46: =$G$47*SUM($J$41:AC41) -> 7256586.197
C47: Assumed % of project costs to date, lagged one year | G47: ='ERR & Sensitivity Analysis'!G15 -> 0.15
B48: Administration & controls | J48: =J49+J51 -> 0 | K48: 920603.4069 | L48: 1033346.444 | M48: 2451678.263 | N48: 468011.0074 | O48: 447857.4234
C49: MCC, const. 2009 $, deflated with PHP inflation | J49: =$G$50*J40 -> 0 | K49: =$G$50*K41 -> 920603.4069 | L49: =$G$50*L41 -> 1033346.444 | M49: =$G$50*M41 -> 2451678.263 | N49: =$G$50*N41 -> 468011.0074 | O49: =$G$50*O41 -> 447857.4234
C50: Assumed % of project costs each year | G50: 0.11
C51: GRP, const. 2009 $, deflated with PHP inflation | J51: 0 | K51: 0 | L51: 0 | M51: 0 | N51: 0 | O51: 0 | P51: 0 | Q51: 0 | R51: 0 | S51: 0 | T51: 0 | U51: 0 | V51: 0 | W51: 0 | X51: 0 | Y51: 0 | Z51: 0 | AA51: 0 | AB51: 0 | AC51: 0 | AD51: 0
B52: Cost sensitivity factor | G52: 1
A54: Benefits
A55: Parameters
B56: GDP (constant 2009 $, deflated with PHP inflation) | G56: =G57/G59*100 -> 1.592458191e+11 | H56: =H57/H59*100 -> 1.715826536e+11 | I56: 1.66570519e+11 | J56: 1.724004871e+11 | K56: =K57/K59*100 -> 1.794689071e+11 | L56: 1.871860701e+11 | M56: 1.954222572e+11 | N56: =N57/N59*100 -> 2.042162588e+11 | O56: 2.134059904e+11 | P56: 2.2300926e+11 | Q56: 2.330446767e+11 | R56: 2.435316871e+11 | S56: 2.544906131e+11 | T56: 2.659426906e+11 | U56: 2.779101117e+11 | V56: 2.904160668e+11 | W56: 3.034847898e+11 | X56: 3.171416053e+11 | Y56: 3.314129775e+11 | Z56: 3.463265615e+11 | AA56: 3.619112568e+11 | AB56: 3.781972633e+11 | AC56: 3.952161402e+11 | AD56: 4.130008665e+11
B57: GDP (current $) | G57: ='Assumptions & Data'!P11 -> 1.440426827e+11 | H57: ='Assumptions & Data'!Q11 -> 1.669091961e+11 | I57: ='Assumptions & Data'!R11 -> 1.66570519e+11 | J57: ='Assumptions & Data'!S11 -> 1.792965066e+11 | K57: ='Assumptions & Data'!T11 -> 1.944868653e+11 | L57: ='Assumptions & Data'!U11 -> 2.115723419e+11 | M57: ='Assumptions & Data'!V11 -> 2.30600312e+11 | N57: ='Assumptions & Data'!W11 -> 2.518213057e+11 | O57: ='Assumptions & Data'!X11 -> 2.749951614e+11 | P57: ='Assumptions & Data'!Y11 -> 3.003015911e+11 | Q57: ='Assumptions & Data'!Z11 -> 3.27936845e+11 | R57: ='Assumptions & Data'!AA11 -> 3.581152332e+11 | S57: ='Assumptions & Data'!AB11 -> 3.910707875e+11 | T57: ='Assumptions & Data'!AC11 -> 4.270590768e+11 | U57: ='Assumptions & Data'!AD11 -> 4.663591883e+11 | V57: ='Assumptions & Data'!AE11 -> 5.092758926e+11 | W57: ='Assumptions & Data'!AF11 -> 5.561420066e+11 | X57: ='Assumptions & Data'!AG11 -> 6.073209748e+11 | Y57: ='Assumptions & Data'!AH11 -> 6.632096875e+11 | Z57: ='Assumptions & Data'!AI11 -> 7.24241559e+11 | AA57: ='Assumptions & Data'!AJ11 -> 7.908898885e+11 | AB57: ='Assumptions & Data'!AK11 -> 8.636715304e+11 | AC57: ='Assumptions & Data'!AL11 -> 9.43150903e+11 | AD57: ='Assumptions & Data'!AM11 -> 1.029944365e+12
B58: GDP deflator (US; base year = 2009) | G58: ='Assumptions & Data'!P13 -> 96.33491104 | H58: ='Assumptions & Data'!Q13 -> 98.42519685 | I58: ='Assumptions & Data'!R13 -> 100 | J58: ='Assumptions & Data'!S13 -> 101.5 | K58: ='Assumptions & Data'!T13 -> 103.124 | L58: ='Assumptions & Data'!U13 -> 104.980232 | M58: ='Assumptions & Data'!V13 -> 106.9748564 | N58: ='Assumptions & Data'!W13 -> 109.1143535 | O58: ='Assumptions & Data'!X13 -> 111.2966406 | P58: ='Assumptions & Data'!Y13 -> 113.5225734 | Q58: ='Assumptions & Data'!Z13 -> 115.7930249 | R58: ='Assumptions & Data'!AA13 -> 118.1088854 | S58: ='Assumptions & Data'!AB13 -> 120.4710631 | T58: ='Assumptions & Data'!AC13 -> 122.8804844 | U58: ='Assumptions & Data'!AD13 -> 125.338094 | V58: ='Assumptions & Data'!AE13 -> 127.8448559 | W58: ='Assumptions & Data'!AF13 -> 130.401753 | X58: ='Assumptions & Data'!AG13 -> 133.0097881 | Y58: ='Assumptions & Data'!AH13 -> 135.6699839 | Z58: ='Assumptions & Data'!AI13 -> 138.3833835 | AA58: ='Assumptions & Data'!AJ13 -> 141.1510512 | AB58: ='Assumptions & Data'!AK13 -> 143.9740722 | AC58: ='Assumptions & Data'!AL13 -> 146.8535537 | AD58: ='Assumptions & Data'!AM13 -> 149.7906248
B59: GDP deflator (Philippines; base year = 2009) | G59: ='Assumptions & Data'!P27 -> 90.45303893 | H59: ='Assumptions & Data'!Q27 -> 97.27626459 | I59: ='Assumptions & Data'!R27 -> 100 | J59: ='Assumptions & Data'!S27 -> 104 | K59: ='Assumptions & Data'!T27 -> 108.368 | L59: ='Assumptions & Data'!U27 -> 113.027824 | M59: ='Assumptions & Data'!V27 -> 118.0010483 | N59: ='Assumptions & Data'!W27 -> 123.3110954 | O59: ='Assumptions & Data'!X27 -> 128.8600947 | P59: ='Assumptions & Data'!Y27 -> 134.658799 | Q59: ='Assumptions & Data'!Z27 -> 140.7184449 | R59: ='Assumptions & Data'!AA27 -> 147.050775 | S59: ='Assumptions & Data'!AB27 -> 153.6680598 | T59: ='Assumptions & Data'!AC27 -> 160.5831225 | U59: ='Assumptions & Data'!AD27 -> 167.809363 | V59: ='Assumptions & Data'!AE27 -> 175.3607844 | W59: ='Assumptions & Data'!AF27 -> 183.2520197 | X59: ='Assumptions & Data'!AG27 -> 191.4983606 | Y59: ='Assumptions & Data'!AH27 -> 200.1157868 | Z59: ='Assumptions & Data'!AI27 -> 209.1209972 | AA59: ='Assumptions & Data'!AJ27 -> 218.5314421 | AB59: ='Assumptions & Data'!AK27 -> 228.365357 | AC59: ='Assumptions & Data'!AL27 -> 238.641798 | AD59: ='Assumptions & Data'!AM27 -> 249.3806789
B60: Elasticity of NG (expenditure + investment) to tax revenue | G60: ='ERR & Sensitivity Analysis'!G18 -> 0.8237462041
B61: Elasticity of rGDP to total government expenditure (excl. debt svc.) | G61: =0.249176*0.5 -> 0.124588
B62: Population | G62: ='Assumptions & Data'!P16 -> 88718185 | H62: ='Assumptions & Data'!Q16 -> 90348440 | I62: ='Assumptions & Data'!R16 -> 91970481.69 | J62: ='Assumptions & Data'!S16 -> 93598461.73 | K62: ='Assumptions & Data'!T16 -> 95231997.26 | L62: ='Assumptions & Data'!U16 -> 96870706.97 | M62: ='Assumptions & Data'!V16 -> 98514211.33 | N62: ='Assumptions & Data'!W16 -> 100162132.9 | O62: ='Assumptions & Data'!X16 -> 101814096.5 | P62: ='Assumptions & Data'!Y16 -> 103469729.5 | Q62: ='Assumptions & Data'!Z16 -> 105128662.1 | R62: ='Assumptions & Data'!AA16 -> 106790527.5 | S62: ='Assumptions & Data'!AB16 -> 108454961.9 | T62: ='Assumptions & Data'!AC16 -> 110121605.1 | U62: ='Assumptions & Data'!AD16 -> 111790100.4 | V62: ='Assumptions & Data'!AE16 -> 113460095 | W62: ='Assumptions & Data'!AF16 -> 115131240 | X62: ='Assumptions & Data'!AG16 -> 116803190.6 | Y62: ='Assumptions & Data'!AH16 -> 118475606.2 | Z62: ='Assumptions & Data'!AI16 -> 120148150.7 | AA62: ='Assumptions & Data'!AJ16 -> 121820492.8 | AB62: ='Assumptions & Data'!AK16 -> 123492305.6 | AC62: ='Assumptions & Data'!AL16 -> 125163267.1 | AD62: ='Assumptions & Data'!AM16 -> 126833060.3
A64: Total benefits
B65: Fiscal space
C66: Tax revenue increase
D67: Assumed revenue increase, pct pts GDP (Y1-Y5) | J67: 0.3
E68: Too high - use Indonesia & Vietnam analysis below
D69: COMPARE SCALE OF BIR TAX INVESTMENT WITH THAT OF WB IN VIETNAM & INDONESIA
F70: Project | G70: Project Budget (Millions $US) | H70: Ann. tx rev | I70: Proj budget/tx rev
F71: WB Tax Admin TA, Indonesia (2008 PAD) | G71: 146.1 | H71: =11.4%*432800000000/1000000 -> 49339.2 | I71: =G71/H71 -> 0.002961134352
F72: WB Tax Admin TA, Vietnam (2007 PAD) | G72: 97.5 | H72: =13.5%*52900000000/1000000 -> 7141.5 | I72: =G72/H72 -> 0.01365259399
F73: Average, Indonesia & Vietnam | I73: =AVERAGE(I71:I72) -> 0.008306864172
F74: MCC Philippines | G74: 60 | H74: ='Assumptions & Data'!N60/'Assumptions & Data'!N6/1000000 -> 9851.904441 | I74: =G74/H74 -> 0.006090193054
D76: Assume, alternatively an increase in BIR collections to GDP of | I76: =(AVERAGE(G104,G111)*(I74/I73))*'ERR & Sensitivity Analysis'!G16 -> 0.0305122662 | J76: (not pct pts)
F77: over a period of | G77: 8 | H77: y, starting in year | J77: 4
D78: This scenario drives the "WP" scenario below for BIR collections/GDP
C79: BIR collections/GDP (in current terms)
D80: Frac. full benefits realized (%) | K80: =IF(K$23<$J$77,0%,IF(K$23>=$G$77,100%,(K$23-$J$77+1)/($G$77-$J$77+1))) -> 0 | L80: =IF(L$23<$J$77,0%,IF(L$23>=$G$77,100%,(L$23-$J$77+1)/($G$77-$J$77+1))) -> 0 | M80: 0 | N80: 0.2 | O80: 0.4 | P80: 0.6 | Q80: 0.8 | R80: 1 | S80: 1 | T80: 1 | U80: 1 | V80: 1 | W80: 1 | X80: 1 | Y80: 1 | Z80: 1 | AA80: 1 | AB80: 1 | AC80: 1 | AD80: 1
D81: WP | G81: ='Assumptions & Data'!P61 -> 0.1073506406 | H81: ='Assumptions & Data'!Q61 -> 0.1048846339 | I81: =(798.5-(4/3)*39)*1000000000/'Assumptions & Data'!R10 -> 0.09637817988 | J81: =I81 -> 0.09637817988 | K81: =K82*(100%+K80*$I$76) -> 0.09637817988 | L81: =L82*(100%+L80*$I$76) -> 0.09637817988 | M81: 0.09637817988 | N81: =N82*(100%+N80*$I$76) -> 0.09696632322 | O81: 0.09755446656 | P81: 0.09814260989 | Q81: 0.09873075323 | R81: 0.09931889656 | S81: 0.09931889656 | T81: 0.09931889656 | U81: 0.09931889656 | V81: 0.09931889656 | W81: =W82*(100%+W80*$I$76) -> 0.09931889656 | X81: 0.09931889656 | Y81: 0.09931889656 | Z81: 0.09931889656 | AA81: 0.09931889656 | AB81: 0.09931889656 | AC81: 0.09931889656 | AD81: 0.09931889656
D82: WOP | K82: =J81 -> 0.09637817988 | L82: =K82 -> 0.09637817988 | M82: 0.09637817988 | N82: 0.09637817988 | O82: 0.09637817988 | P82: 0.09637817988 | Q82: 0.09637817988 | R82: 0.09637817988 | S82: 0.09637817988 | T82: 0.09637817988 | U82: 0.09637817988 | V82: 0.09637817988 | W82: 0.09637817988 | X82: 0.09637817988 | Y82: 0.09637817988 | Z82: 0.09637817988 | AA82: 0.09637817988 | AB82: 0.09637817988 | AC82: 0.09637817988 | AD82: 0.09637817988
C83: Δ% BIR revenues (= Δ% BIR collections/GDP) | K83: =(K81-K82)/K82 -> 0 | L83: =(L81-L82)/L82 -> 0 | M83: 0 | N83: =(N81-N82)/N82 -> 0.00610245324 | O83: 0.01220490648 | P83: 0.01830735972 | Q83: 0.02440981296 | R83: 0.0305122662 | S83: 0.0305122662 | T83: 0.0305122662 | U83: 0.0305122662 | V83: =(V81-V82)/V82 -> 0.0305122662 | W83: 0.0305122662 | X83: 0.0305122662 | Y83: 0.0305122662 | Z83: 0.0305122662 | AA83: 0.0305122662 | AB83: 0.0305122662 | AC83: 0.0305122662 | AD83: 0.0305122662
C84: Δ% NG (expenditure + investment) | K84: =$G$60*K83 -> 0 | L84: 0 | M84: 0 | N84: =$G$60*N83 -> 0.005026872692 | O84: 0.01005374538 | P84: =$G$60*P83 -> 0.01508061808 | Q84: 0.02010749077 | R84: 0.02513436346 | S84: 0.02513436346 | T84: =$G$60*T83 -> 0.02513436346 | U84: 0.02513436346 | V84: =$G$60*V83 -> 0.02513436346 | W84: =$G$60*W83 -> 0.02513436346 | X84: 0.02513436346 | Y84: 0.02513436346 | Z84: 0.02513436346 | AA84: 0.02513436346 | AB84: 0.02513436346 | AC84: 0.02513436346 | AD84: 0.02513436346
C85: Δ% rGDP (before opportunity cost) | K85: =$G$61*K84 -> 0 | L85: =$G$61*L84 -> 0 | M85: 0 | N85: =$G$61*N84 -> 0.0006262880149 | O85: 0.00125257603 | P85: 0.001878864045 | Q85: 0.00250515206 | R85: 0.003131440075 | S85: 0.003131440075 | T85: =$G$61*T84 -> 0.003131440075 | U85: 0.003131440075 | V85: =$G$61*V84 -> 0.003131440075 | W85: 0.003131440075 | X85: 0.003131440075 | Y85: 0.003131440075 | Z85: 0.003131440075 | AA85: 0.003131440075 | AB85: 0.003131440075 | AC85: 0.003131440075 | AD85: 0.003131440075
C86: ΔrGDP (constant 2009 $, deflated with PHP inflation, before opportunity cost) | K86: =K85*K56 -> 0 | L86: =L85*L56 -> 0 | M86: 0 | N86: =N85*N56 -> 127898195.3 | O86: 267307228.2 | P86: 419004080.2 | Q86: 583812351.8 | R86: 762604884.6 | S86: 796922104.4 | T86: 832783599.1 | U86: 870258861 | V86: =V85*V56 -> 909420509.8 | W86: =W85*W56 -> 950344432.7 | X86: 993109932.2 | Y86: 1037799879 | Z86: 1084500874 | AA86: 1133303413 | AB86: 1184302067 | AC86: 1237595660 | AD86: 1293287464
C87: Check: Ducanes et al. (2005, 17) estimate of rGDP incr. after 6y from incr. in collections:
C91: Opportunity cost consideration (assume tax revenue is 1:1 opportunity cost)
D92: BIR collections (current $)
E93: WP | G93: =G81*G57 -> 1.546307427e+10 | H93: 1.750620992e+10 | I93: 1.605376344e+10 | J93: 1.728027097e+10 | K93: 1.874429008e+10 | L93: 2.039095722e+10 | M93: 2.222483835e+10 | N93: 2.441818613e+10 | O93: 2.682700628e+10 | P93: 2.947238191e+10 | Q93: 3.237745172e+10 | R93: 3.556760981e+10 | S93: 3.88407191e+10 | T93: 4.241503627e+10 | U93: 4.631827999e+10 | V93: 5.05807197e+10 | W93: 5.523541043e+10 | X93: 6.031844908e+10 | Y93: 6.586925435e+10 | Z93: 7.193087248e+10 | AA93: 7.855031103e+10 | AB93: 8.57789034e+10 | AC93: 9.367270698e+10 | AD93: 1.022929378e+11
E94: WOP | K94: =K82*K57 -> 1.874429008e+10 | L94: 2.039095722e+10 | M94: 2.222483835e+10 | N94: 2.42700791e+10 | O94: 2.650353313e+10 | P94: 2.894252077e+10 | Q94: 3.160595624e+10 | R94: 3.451449437e+10 | S94: 3.769069071e+10 | T94: 4.115917652e+10 | U94: 4.494684974e+10 | V94: 4.908308359e+10 | W94: 5.359995436e+10 | X94: 5.853249016e+10 | Y94: 6.391894256e+10 | Z94: 6.980108325e+10 | AA94: 7.622452794e+10 | AB94: 8.323909012e+10 | AC94: 9.089916739e+10 | AD94: 9.926416327e+10
D95: Δ BIR collections (current $) | J95: 0 | K95: =K93-K94 -> 0 | L95: =L93-L94 -> 0 | M95: 0 | N95: =N93-N94 -> 148107022.8 | O95: 323473143.2 | P95: 529861138.9 | Q95: 771495480.3 | R95: 1053115440 | S95: 1150028388 | T95: 1255859751 | U95: 1371430244 | V95: 1497636112 | W95: 1635456076 | X95: 1785958921 | Y95: 1950311791 | Z95: 2129789233 | AA95: 2325783087 | AB95: 2539813276 | AC95: 2773539593 | AD95: 3028774574
D96: Δ BIR collections (constant 2009 $. Deflated with PHP inflation) | J96: =J95/J59*100 -> 0 | K96: 0 | L96: 0 | M96: 0 | N96: 120108431.7 | O96: 251026622.3 | P96: 393484230.4 | Q96: 548254694.4 | R96: 716157694.6 | S96: 748384790.8 | T96: 782062106.4 | U96: 817254901.2 | V96: 854031371.7 | W96: 892462783.5 | X96: 932623608.7 | Y96: 974591671.1 | Z96: 1018448296 | AA96: 1064278470 | AB96: 1112171001 | AC96: 1162218696 | AD96: 1214518537
C97: ΔrGDP (after opportunity cost) | J97: =J86-J96 -> 0 | K97: =K86-K96 -> 0 | L97: =L86-L96 -> 0 | M97: 0 | N97: =N86-N96 -> 7789763.611 | O97: =O86-O96 -> 16280605.95 | P97: 25519849.82 | Q97: 35557657.42 | R97: =R86-R96 -> 46447190 | S97: 48537313.55 | T97: 50721492.66 | U97: 53003959.83 | V97: =V86-V96 -> 55389138.02 | W97: 57881649.24 | X97: 60486323.45 | Y97: 63208208.01 | Z97: 66052577.37 | AA97: 69024943.35 | AB97: 72131065.8 | AC97: 75376963.76 | AD97: 78768927.13
C98: Real income increase as fraction of NG real revenue | J98: =$N$98 -> 0.06485609295 | K98: =$N$98 -> 0.06485609295 | L98: =$N$98 -> 0.06485609295 | M98: =$N$98 -> 0.06485609295 | N98: =N97/N96 -> 0.06485609295 | O98: =O97/O96 -> 0.06485609295 | P98: =P97/P96 -> 0.06485609295 | Q98: 0.06485609295 | R98: 0.06485609295 | S98: 0.06485609295 | T98: 0.06485609295 | U98: 0.06485609295 | V98: =V97/V96 -> 0.06485609295 | W98: 0.06485609295 | X98: 0.06485609295 | Y98: 0.06485609295 | Z98: 0.06485609295 | AA98: 0.06485609295 | AB98: 0.06485609295 | AC98: 0.06485609295 | AD98: 0.06485609295
C99: ΔrGDP (after opportunity cost, net of CAATT real income increase) | J99: =J97-CAATT!J77 -> 0 | K99: =K97-CAATT!K77 -> 0 | L99: =L97-CAATT!L77 -> 0 | M99: =M97-CAATT!M77 -> 0 | N99: =N97-CAATT!N77 -> 7662921.342 | O99: =O97-CAATT!O77 -> 16097650.81 | P99: =P97-CAATT!P77 -> 25275255.51 | Q99: =Q97-CAATT!Q77 -> 35300261.29 | R99: =R97-CAATT!R77 -> 46176322.03 | S99: =S97-CAATT!S77 -> 48254256.52 | T99: =T97-CAATT!T77 -> 50425698.07 | U99: =U97-CAATT!U77 -> 52694854.48 | V99: =V97-CAATT!V77 -> 55066122.93 | W99: =W97-CAATT!W77 -> 57544098.46 | X99: =X97-CAATT!X77 -> 60133582.9 | Y99: =Y97-CAATT!Y77 -> 62839594.13 | Z99: =Z97-CAATT!Z77 -> 65667375.86 | AA99: =AA97-CAATT!AA77 -> 68622407.77 | AB99: =AB97-CAATT!AB77 -> 71710416.12 | AC99: =AC97-CAATT!AC77 -> 74937384.85 | AD99: =AD97-CAATT!AD77 -> 78309567.17
D102: Indonesia case
E103: Revenue/GDP increases from | G103: 0.135 | H103: in Y0 to | I103: =G103+0.65% -> 0.1415 | J103: beginning Y4 (through Y9),
E104: corresponding to a | G104: =(I103-G103)/G103 -> 0.04814814815 | H104: increase
D105: Indonesia TA reform: Raise non-oil/gas tax revenue to GDP elasticity | J105: Baseline | K105: 1.08 | L105: By Y4 (thru Y9) | N105: 1.25
E106: Above corresponds to sustainable shift in non-oil&gas tax/GDP ratio of 0.65 percentage pts. (fr. est 13.5% in Y0 (PAD, 1))
E107: Actual performance of reforms 2001-06 estimated as | H107: 0.006 | I107: fraction of GDP over this period
D109: Vietnam case
E110: Revenue/GDP increases from | G110: 0.171 | H110: in Y0 by | I110: 0.1 | J110: pct. point, beginning Y6 (through Y11), or | N110: =G110+6*I110/100 -> 0.177 | O110: in Y11,
E111: corresponding to a | G111: =(N110-G110)/G110 -> 0.0350877193 | H111: increase
D112: Vietnam TA reform: revenue collection increases by | H112: 0.1 | I112: pct point of GDP each year fr Y5-Y11 (beginning from 17.1% of GDP, Y5)
D113: Mexico TA reform: Revenue increases by tax type
F114: VAT (improved enforcement) | G114: 0.25
F115: Income tax (improved TA) | G115: 0.15
D116: Tanzania TA reform: incr in tax/GDP ratio due to TA improvements
F117: Baseline | G117: 0.124
F118: Y3 | G118: 0.133
F119: Y4 | G119: 0.148
D120: Guatemala TA reform: incr in tax/GDP ratio due to TA improvements
F121: Baseline | G121: 0.085
F122: Y3 | G122: 0.094

Sheet eTIS
B1: Philippines: Revenue Administration Reform Project (RARP) | M1: Last updated: May 2017
A2: =IF('ERR & Sensitivity Analysis'!I12="y",IF('ERR & Sensitivity Analysis'!I16="y","","Note: Current calculations are based on user input and are not the original MCC estimates"),"Note: Current calculations are based on user input and are not the original MCC estimates") -> 
E4: ERR = | F4: =IRR(J12:AD12) -> 0.3023292008 | H4: (Unless otherwise indicated, monetary figures in constant 2009 US dollars)
E5: Project Costs as % of baseline = | F5: ='ERR & Sensitivity Analysis'!G12 -> 1
E6: Benefits as % of baseline = | F6: ='ERR & Sensitivity Analysis'!G13 -> 1
E7: Reallocation - % revenue of 13 pilot sites: | F7: 0.75
A8: Cost resulting ERR equal to hurdle: | F8: 3.37
A9: Benefit resulting ERR equal to hurdle: | F9: 0.31 | G9: Year
G10: 2007 | H10: 2008 | I10: 2009 | J10: 2010 | K10: 2011 | L10: 2012 | M10: 2013 | N10: 2014 | O10: 2015 | P10: 2016 | Q10: 2017 | R10: 2018 | S10: 2019 | T10: 2020 | U10: 2021 | V10: 2022 | W10: 2023 | X10: 2024 | Y10: 2025 | Z10: 2026 | AA10: 2027 | AB10: 2028 | AC10: 2029 | AD10: 2030
A11: Note: Project Costs exclude admin & control costs | G11: -3 | H11: -2 | I11: -1 | J11: 0 | K11: 1 | L11: 2 | M11: 3 | N11: 4 | O11: 5 | P11: 6 | Q11: 7 | R11: 8 | S11: 9 | T11: 10 | U11: 11 | V11: 12 | W11: 13 | X11: 14 | Y11: 15 | Z11: 16 | AA11: 17 | AB11: 18 | AC11: 19 | AD11: 20
A12: Net benefits | J12: =J38-J14 -> 0 | K12: =K38-K14 -> -5372388.528 | L12: =L38-L14 -> -10997867.22 | M12: -26669254.61 | N12: -4078323.849 | O12: 2060285.666 | P12: 13113897.32 | Q12: 20884244.47 | R12: 29282048.71 | S12: 31070890.65 | T12: 32919941.74 | U12: 34832785.06 | V12: =V38-V14 -> 36813127.32 | W12: 38864806.02 | X12: 40991796.91 | Y12: 43198221.66 | Z12: 45488355.88 | AA12: 47866637.4 | AB12: 50337674.83 | AC12: 52906256.57 | AD12: 55577360
A14: Total costs (incl. admin & controls) by year, constant $ (deflated with PHP inflation) | J14: =SUM(J18,J31) -> 0 | K14: =SUM(K18,K31) -> 5372388.528 | L14: =SUM(L18,L31) -> 10997867.22 | M14: 26669254.61 | N14: 9825514.856 | O14: 10012952.44 | P14: 5842544.312 | Q14: 5590951.494 | R14: 5350192.817 | S14: 5119801.739 | T14: 4899331.808 | U14: 4688355.797 | V14: 4486464.878 | W14: 4293267.825 | X14: 4108390.264 | Y14: 3931473.936 | Z14: 3762176.016 | AA14: 3600168.436 | AB14: 3445137.259 | AC14: 3296782.066 | AD14: 3154815.375
B15: Total costs (incl. admin & controls) by year, current $ | J15: =SUM(J16:J17) -> 0 | K15: =SUM(K16:K17) -> 5821950 | L15: =SUM(L16:L17) -> 12430650 | M15: 31470000 | N15: 12115950 | O15: 12902700 | P15: 7867500 | Q15: 7867500 | R15: 7867500 | S15: 7867500 | T15: 7867500 | U15: 7867500 | V15: 7867500 | W15: 7867500 | X15: 7867500 | Y15: 7867500 | Z15: 7867500 | AA15: 7867500 | AB15: 7867500 | AC15: 7867500 | AD15: 7867500
C16: MCC, current $ | J16: =J20+J33 -> 0 | K16: =K20+K33 -> 5821950 | L16: =L20+L33 -> 11643900 | M16: 29109750 | N16: 5821950 | O16: 5821950 | P16: 0 | Q16: 0 | R16: 0 | S16: 0 | T16: 0 | U16: 0 | V16: 0 | W16: 0 | X16: 0 | Y16: 0 | Z16: 0 | AA16: 0 | AB16: 0 | AC16: 0 | AD16: 0
C17: GRP, current $ | J17: =J21+J35 -> 0 | K17: =K21+K35 -> 0 | L17: =L21+L35 -> 786750 | M17: 2360250 | N17: 6294000 | O17: 7080750 | P17: 7867500 | Q17: 7867500 | R17: 7867500 | S17: 7867500 | T17: 7867500 | U17: 7867500 | V17: 7867500 | W17: 7867500 | X17: 7867500 | Y17: 7867500 | Z17: 7867500 | AA17: 7867500 | AB17: 7867500 | AC17: 7867500 | AD17: 7867500
B18: Total project costs (excl. admin. & controls), const. 2009 $, deflated with PHP inflation) | J18: =($F$5)*J19/J119*100 -> 0 | K18: =($F$5)*K19/K$119*100 -> 4839989.665 | L18: 9976968.149 | M18: 24224572.94 | N18: 9357633.196 | O18: 9565218.795 | P18: 5842544.312 | Q18: 5590951.494 | R18: 5350192.817 | S18: 5119801.739 | T18: 4899331.808 | U18: 4688355.797 | V18: 4486464.878 | W18: 4293267.825 | X18: 4108390.264 | Y18: 3931473.936 | Z18: 3762176.016 | AA18: 3600168.436 | AB18: 3445137.259 | AC18: 3296782.066 | AD18: 3154815.375
B19: Total project costs (excl. admin. & controls), current $ | J19: =SUM(J20:J21) -> 0 | K19: =SUM(K20:K21) -> 5245000 | L19: =SUM(L20:L21) -> 11276750 | M19: 28585250 | N19: 11539000 | O19: 12325750 | P19: 7867500 | Q19: 7867500 | R19: 7867500 | S19: 7867500 | T19: 7867500 | U19: 7867500 | V19: 7867500 | W19: 7867500 | X19: 7867500 | Y19: 7867500 | Z19: 7867500 | AA19: 7867500 | AB19: 7867500 | AC19: 7867500 | AD19: 7867500
C20: MCC, current $ | J20: =J24+J28 -> 0 | K20: =K24+K28 -> 5245000 | L20: =L24+L28 -> 10490000 | M20: 26225000 | N20: 5245000 | O20: 5245000 | P20: 0 | Q20: 0 | R20: 0 | S20: 0 | T20: 0 | U20: 0 | V20: 0 | W20: 0 | X20: 0 | Y20: 0 | Z20: 0 | AA20: 0 | AB20: 0 | AC20: 0 | AD20: 0
C21: GRP, current $ | J21: =J26+J29 -> 0 | K21: =K26+K29 -> 0 | L21: 786750 | M21: 2360250 | N21: 6294000 | O21: 7080750 | P21: 7867500 | Q21: 7867500 | R21: 7867500 | S21: 7867500 | T21: 7867500 | U21: 7867500 | V21: 7867500 | W21: 7867500 | X21: 7867500 | Y21: 7867500 | Z21: 7867500 | AA21: 7867500 | AB21: 7867500 | AC21: 7867500 | AD21: 7867500
B22: Total project costs (excl. admin. & controls) | G22: =57900000-1450000-4000000 -> 52450000
B23: Project costs by year | J23: =J24+J26 -> 0 | K23: 5245000 | L23: 10490000 | M23: 26225000 | N23: 5245000 | O23: 5245000
C24: MCC, current $ | G24: 1450000 | J24: 0 | K24: =$G$22*K25 -> 5245000 | L24: =$G$22*L25 -> 10490000 | M24: =$G$22*M25 -> 26225000 | N24: =$G$22*N25 -> 5245000 | O24: =$G$22*O25 -> 5245000
D25: Assumed profile of MCC project costs | G25: 4000000 | J25: 0 | K25: 0.1 | L25: 0.2 | M25: 0.5 | N25: 0.1 | O25: =100%-SUM(J25:N25) -> 0.1
C26: GRP, current $ | J26: 0 | K26: 0 | L26: 0 | M26: 0 | N26: 0 | O26: 0
B27: Incremental operating costs | J27: =SUM(J28:J29) -> 0 | K27: =SUM(K28:K29) -> 0 | L27: =SUM(L28:L29) -> 786750 | M27: 2360250 | N27: 6294000 | O27: 7080750 | P27: =SUM(P28:P29) -> 7867500 | Q27: 7867500 | R27: 7867500 | S27: 7867500 | T27: 7867500 | U27: 7867500 | V27: 7867500 | W27: 7867500 | X27: 7867500 | Y27: 7867500 | Z27: 7867500 | AA27: 7867500 | AB27: 7867500 | AC27: 7867500 | AD27: 7867500
C28: MCC, current $ | J28: 0 | K28: 0 | L28: 0 | M28: 0 | N28: 0 | O28: 0 | P28: 0 | Q28: 0 | R28: 0 | S28: 0 | T28: 0 | U28: 0 | V28: 0 | W28: 0 | X28: 0 | Y28: 0 | Z28: 0 | AA28: 0 | AB28: 0 | AC28: 0 | AD28: 0
C29: GRP, current $ | J29: 0 | K29: =$G$30*SUM($J$24:J24) -> 0 | L29: =$G$30*SUM($J$24:K24) -> 786750 | M29: =$G$30*SUM($J$24:L24) -> 2360250 | N29: =$G$30*SUM($J$24:M24) -> 6294000 | O29: =$G$30*SUM($J$24:N24) -> 7080750 | P29: =$G$30*SUM($J$24:O24) -> 7867500 | Q29: =$G$30*SUM($J$24:P24) -> 7867500 | R29: =$G$30*SUM($J$24:Q24) -> 7867500 | S29: =$G$30*SUM($J$24:R24) -> 7867500 | T29: =$G$30*SUM($J$24:S24) -> 7867500 | U29: =$G$30*SUM($J$24:T24) -> 7867500 | V29: =$G$30*SUM($J$24:U24) -> 7867500 | W29: =$G$30*SUM($J$24:V24) -> 7867500 | X29: =$G$30*SUM($J$24:W24) -> 7867500 | Y29: =$G$30*SUM($J$24:X24) -> 7867500 | Z29: =$G$30*SUM($J$24:Y24) -> 7867500 | AA29: =$G$30*SUM($J$24:Z24) -> 7867500 | AB29: =$G$30*SUM($J$24:AA24) -> 7867500 | AC29: =$G$30*SUM($J$24:AB24) -> 7867500 | AD29: =$G$30*SUM($J$24:AC24) -> 7867500
C30: Assumed % of project costs to date, lagged one year | G30: ='Combined Cost-Benefit'!G47 -> 0.15
B31: Administration & controls, const. 2009$, deflated with PHP inflation | J31: =J32/J$119*100 -> 0 | K31: 532398.8631 | L31: 1020899.066 | M31: 2444681.672 | N31: 467881.6598 | O31: 447733.6457 | P31: 0 | Q31: 0 | R31: 0 | S31: 0 | T31: 0 | U31: 0 | V31: 0 | W31: 0 | X31: 0 | Y31: 0 | Z31: 0 | AA31: 0 | AB31: 0 | AC31: 0 | AD31: 0
B32: Administration & controls, current $ | J32: =J33+J35 -> 0 | K32: 576950 | L32: 1153900 | M32: 2884750 | N32: 576950 | O32: 576950
C33: MCC, current $ | J33: =$G$34*J23 -> 0 | K33: =$G$34*K24 -> 576950 | L33: =$G$34*L24 -> 1153900 | M33: =$G$34*M24 -> 2884750 | N33: =$G$34*N24 -> 576950 | O33: =$G$34*O24 -> 576950
C34: Assumed % of project costs each year | G34: ='Assumptions & Data'!G59 -> 0.11
C35: GRP, current $ | J35: 0 | K35: 0 | L35: 0 | M35: 0 | N35: 0 | O35: 0 | P35: 0 | Q35: 0 | R35: 0 | S35: 0 | T35: 0 | U35: 0 | V35: 0 | W35: 0 | X35: 0 | Y35: 0 | Z35: 0 | AA35: 0 | AB35: 0 | AC35: 0 | AD35: 0
B36: Cost sensitivity factor | G36: 1
A38: Benefits, const. 2009 $, deflated with PHP inflation | J38: =($F$6)*J95*$F$7 -> 0 | K38: =($F$6)*K95*$F$7 -> 0 | L38: 0 | M38: 0 | N38: 5747191.007 | O38: 12073238.11 | P38: 18956441.63 | Q38: 26475195.97 | R38: 34632241.52 | S38: 36190692.39 | T38: 37819273.55 | U38: 39521140.86 | V38: =($F$6)*V95*$F$7 -> 41299592.2 | W38: 43158073.85 | X38: 45100187.17 | Y38: 47129695.59 | Z38: 49250531.9 | AA38: 51466805.83 | AB38: 53782812.09 | AC38: 56203038.64 | AD38: 58732175.38
A39: Parameters
B40: Tax/GDP ratio
B41: Exchange rate | J41: ='Assumptions & Data'!R6 -> 46.5
A42: Inputs/outputs
A43: Extent of computerization
B44: % of employees trained on ICT
C45: WP | J45: 0.85 | O45: 1
C46: WOP | O46: 0.9
B47: PCs per employee
C48: WP | J48: 0.2 | O48: 1
C49: WOP | O49: =1/3 -> 0.3333333333
A50: Progress of eTIS and related projects
B51: # of RDOs that have successfully installed eTis
C52: WP | J52: 8 | O52: 124
C53: WOP | O53: 45
B54: % of employees trained on eTIS
C55: WP | J55: 0.05 | O55: 0.8
C56: WOP | O56: 0.4
A57: Extent of computerization
B58: # RDOs computerized
C59: WP | J59: 115 | O59: 128
C60: WOP | O60: 124
B61: Number of TPs in computerized database
C62: WP | J62: 17000000 | O62: 40000000
C63: WOP | O63: 25000000
B64: % Completion of Consolidated Taxpayer Database (from 7 DBs)
C65: WP | J65: 0.15 | O65: 1
C66: WOP | O66: 0.57
A67: Success of eTis and related projects
B68: Average cost to collect (PHP per 100 PHP)
C69: WP | J69: 0.75 | O69: 1
C70: WOP | O70: 0.64
B71: Average increase in collection (annual, $)
C72: WP | J72: =95000000000/J41 -> 2043010753 | O72: =150000000000/J41 -> 3225806452
C73: WOP | O73: =120000000000/J41 -> 2580645161
B74: Average no. of transactions processed (monthly)
C75: WP | J75: 6800 | O75: 105000
C76: WOP | O76: 38100
B77: % Increase in no. of registered taxpayers (annual)
C78: WP | J78: 0.1 | O78: 0.2
C79: WOP | O79: 0.15
A80: Total benefits
B81: Fiscal space
C82: Tax revenue increase
D83: % increase in # registered taxpayers | M83: 0.15 | R83: 0.05 | W83: 0.03 | AD83: 0.02
D84: % registered bus. TPs who file and/or pay | M84: 0.5 | R84: 0.6 | W84: 0.7 | AD84: 0.8
D85: Third party information mgmt - past experience
E86: VAT sellers/buyers ($) | I86: =1558444000/8/J41 -> 4189365.591
E87: Withholding agents ($) | I87: =105486330/2/J41 -> 1134261.613
E88: DST collection on increased capitalization from SEC ($) | I88: =24451887/5/J41 -> 105169.4065
E89: BOI & PEZA audited enterprises ($) | I89: =81040995/2.5/J41 -> 697126.8387
D90: Third-party information system
F91: Identify unregistered taxpayers
F92: Detect discrepancies in taxpayer's declarations | I92: 3000
F93: Determine potential untapped sources of revenue
F94: Support taxpayer profiling activities
D95: ΔrGDP due to increased revenue (after opportunity cost) | J95: ='Combined Cost-Benefit'!J99 -> 0 | K95: ='Combined Cost-Benefit'!K99 -> 0 | L95: ='Combined Cost-Benefit'!L99 -> 0 | M95: ='Combined Cost-Benefit'!M99 -> 0 | N95: ='Combined Cost-Benefit'!N99 -> 7662921.342 | O95: ='Combined Cost-Benefit'!O99 -> 16097650.81 | P95: ='Combined Cost-Benefit'!P99 -> 25275255.51 | Q95: ='Combined Cost-Benefit'!Q99 -> 35300261.29 | R95: ='Combined Cost-Benefit'!R99 -> 46176322.03 | S95: ='Combined Cost-Benefit'!S99 -> 48254256.52 | T95: ='Combined Cost-Benefit'!T99 -> 50425698.07 | U95: ='Combined Cost-Benefit'!U99 -> 52694854.48 | V95: ='Combined Cost-Benefit'!V99 -> 55066122.93 | W95: ='Combined Cost-Benefit'!W99 -> 57544098.46 | X95: ='Combined Cost-Benefit'!X99 -> 60133582.9 | Y95: ='Combined Cost-Benefit'!Y99 -> 62839594.13 | Z95: ='Combined Cost-Benefit'!Z99 -> 65667375.86 | AA95: ='Combined Cost-Benefit'!AA99 -> 68622407.77 | AB95: ='Combined Cost-Benefit'!AB99 -> 71710416.12 | AC95: ='Combined Cost-Benefit'!AC99 -> 74937384.85 | AD95: ='Combined Cost-Benefit'!AD99 -> 78309567.17
B96: Efficiencies
C97: Public sector revenue administration
D98: Reduced suspense rates for Collection and Bank Reconciliation (CBR)
D99: Lower administrative costs due to resolution of multiple TIN #s
D100: Reduced operating costs (office supplies, printing of forms)
D101: More productive workforce
D102: Reduced transaction processing time
D103: Time savings on data retrieval and report preparation
D104: Time savings on mgmt/maint of technical infrastructure
C105: Taxpayer compliance
D106: Lower taxpayer compliance costs due to resolution of multiple TIN #s
D107: What taxes are in play at BIR? (need time series of these projected into future for this benefit)
D108: From Evans' (2004) meta-analysis, compliance costs are typically between 2% and 10% of revenue yield
D109: Vietnam TA (World Bank): assumes project saves compliance costs equal to 2% of two main taxes, VAT and CIT, from Y5-Y11 (project end)
D110: Less focus in PHP on e-Tax applications for registraton, filing, and payment (these exist to some extent) which would most strongly affect compliance cost
D111: Conservatively assume compliance cost savings of | H111: 0.005 | I111: of revenue yield for X taxes, phased in over 4y, Y4-Y7 and lasting through Y12
C112: Asset information system
D113: Web app for taxpayer registration, filing, self-assessment of liability (elim need to consult BIR personnel, show up in person)
D114: Automate payments & issuance of Cert of Registration, permits, & clearances
D115: Generate data for assessment of taxpayer ccompliance
D116: Generate info on taxpayer net worth based on asset data
D117: Generate info in support of GRP lifestyle checks on pub servants
A118: Parameters
D119: GDP deflator (Philippines; base year = 2009) | G119: ='Assumptions & Data'!P27 -> 90.45303893 | H119: ='Assumptions & Data'!Q27 -> 97.27626459 | I119: ='Assumptions & Data'!R27 -> 100 | J119: ='Assumptions & Data'!S27 -> 104 | K119: ='Assumptions & Data'!T27 -> 108.368 | L119: ='Assumptions & Data'!U27 -> 113.027824 | M119: ='Assumptions & Data'!V27 -> 118.0010483 | N119: ='Assumptions & Data'!W27 -> 123.3110954 | O119: ='Assumptions & Data'!X27 -> 128.8600947 | P119: ='Assumptions & Data'!Y27 -> 134.658799 | Q119: ='Assumptions & Data'!Z27 -> 140.7184449 | R119: ='Assumptions & Data'!AA27 -> 147.050775 | S119: ='Assumptions & Data'!AB27 -> 153.6680598 | T119: ='Assumptions & Data'!AC27 -> 160.5831225 | U119: ='Assumptions & Data'!AD27 -> 167.809363 | V119: ='Assumptions & Data'!AE27 -> 175.3607844 | W119: ='Assumptions & Data'!AF27 -> 183.2520197 | X119: ='Assumptions & Data'!AG27 -> 191.4983606 | Y119: ='Assumptions & Data'!AH27 -> 200.1157868 | Z119: ='Assumptions & Data'!AI27 -> 209.1209972 | AA119: ='Assumptions & Data'!AJ27 -> 218.5314421 | AB119: ='Assumptions & Data'!AK27 -> 228.365357 | AC119: ='Assumptions & Data'!AL27 -> 238.641798 | AD119: ='Assumptions & Data'!AM27 -> 249.3806789

Sheet iReturns (hidden)
A1: (Unless otherwise indicated, monetary figures in constant 2009 US dollars) | J1: Year
E2: ERR = | F2: =IRR(J5:AD5) ->  | G2: 2007 | H2: 2008 | I2: 2009 | J2: 2010 | K2: 2011 | L2: 2012 | M2: 2013 | N2: 2014 | O2: 2015 | P2: 2016 | Q2: 2017 | R2: 2018 | S2: 2019 | T2: 2020 | U2: 2021 | V2: 2022 | W2: 2023 | X2: 2024 | Y2: 2025 | Z2: 2026 | AA2: 2027 | AB2: 2028 | AC2: 2029 | AD2: 2030
G3: -3 | H3: -2 | I3: -1 | J3: 0 | K3: 1 | L3: 2 | M3: 3 | N3: 4 | O3: 5 | P3: 6 | Q3: 7 | R3: 8 | S3: 9 | T3: 10 | U3: 11 | V3: 12 | W3: 13 | X3: 14 | Y3: 15 | Z3: 16 | AA3: 17 | AB3: 18 | AC3: 19 | AD3: 20
A5: Net benefits | J5: =J30-J8 ->  | K5: =K30-K8 -> 
A7: Costs
B8: Total costs (incl. admin & controls) by year | J8: =SUM(J9:J10) -> 0 | K8: =SUM(K9:K10) -> 1667522.727 | L8: =SUM(L9:L10) -> 3560386.364 | M8: 3677563.636 | N8: 4416681.818 | O8: 4867363.636 | P8: 1983000 | Q8: 1983000 | R8: 1983000 | S8: 1983000 | T8: 1983000 | U8: 1983000 | V8: 1983000 | W8: 1983000 | X8: 1983000 | Y8: 1983000 | Z8: 1983000 | AA8: 1983000 | AB8: 1983000 | AC8: 1983000 | AD8: 1983000
C9: MCC | J9: =J12+J24 -> 0 | K9: =K12+K24 -> 1667522.727 | L9: =L12+L24 -> 3335045.455 | M9: 3001540.909 | N9: 3335045.455 | O9: 3335045.455 | P9: 0 | Q9: 0 | R9: 0 | S9: 0 | T9: 0 | U9: 0 | V9: 0 | W9: 0 | X9: 0 | Y9: 0 | Z9: 0 | AA9: 0 | AB9: 0 | AC9: 0 | AD9: 0
C10: GRP | J10: =J13+J26 -> 0 | K10: =K13+K26 -> 0 | L10: =L13+L26 -> 225340.9091 | M10: 676022.7273 | N10: 1081636.364 | O10: 1532318.182 | P10: 1983000 | Q10: 1983000 | R10: 1983000 | S10: 1983000 | T10: 1983000 | U10: 1983000 | V10: 1983000 | W10: 1983000 | X10: 1983000 | Y10: 1983000 | Z10: 1983000 | AA10: 1983000 | AB10: 1983000 | AC10: 1983000 | AD10: 1983000
B11: Total project costs (excl. admin. & controls) | J11: =SUM(J12:J13) -> 0 | K11: =SUM(K12:K13) -> 1502272.727 | L11: 3229886.364 | M11: 3380113.636 | N11: 4086181.818 | O11: 4536863.636 | P11: 1983000 | Q11: 1983000 | R11: 1983000 | S11: 1983000 | T11: 1983000 | U11: 1983000 | V11: 1983000 | W11: 1983000 | X11: 1983000 | Y11: 1983000 | Z11: 1983000 | AA11: 1983000 | AB11: 1983000 | AC11: 1983000 | AD11: 1983000
C12: MCC | J12: =J16+J20 -> 0 | K12: =K16+K20 -> 1502272.727 | L12: 3004545.455 | M12: 2704090.909 | N12: 3004545.455 | O12: 3004545.455 | P12: 0 | Q12: 0 | R12: 0 | S12: 0 | T12: 0 | U12: 0 | V12: 0 | W12: 0 | X12: 0 | Y12: 0 | Z12: 0 | AA12: 0 | AB12: 0 | AC12: 0 | AD12: 0
C13: GRP | J13: =J18+J21 -> 0 | K13: =K18+K21 -> 0 | L13: 225340.9091 | M13: 676022.7273 | N13: 1081636.364 | O13: 1532318.182 | P13: 1983000 | Q13: 1983000 | R13: 1983000 | S13: 1983000 | T13: 1983000 | U13: 1983000 | V13: 1983000 | W13: 1983000 | X13: 1983000 | Y13: 1983000 | Z13: 1983000 | AA13: 1983000 | AB13: 1983000 | AC13: 1983000 | AD13: 1983000
B14: Proposed project costs | G14: =13220000*G28 -> 13220000
B15: Project costs by year | J15: =J16+J18 -> 0 | K15: 1502272.727 | L15: 3004545.455 | M15: 2704090.909 | N15: 3004545.455 | O15: 3004545.455
C16: MCC | J16: 0 | K16: =$G$14*K17 -> 1502272.727 | L16: =$G$14*L17 -> 3004545.455 | M16: =$G$14*M17 -> 2704090.909 | N16: =$G$14*N17 -> 3004545.455 | O16: =$G$14*O17 -> 3004545.455
D17: Assumed profile of MCC project costs | J17: 0 | K17: =K35/$Q$35 -> 0.1136363636 | L17: =L35/$Q$35 -> 0.2272727273 | M17: =M35/$Q$35 -> 0.2045454545 | N17: =N35/$Q$35 -> 0.2272727273 | O17: =O35/$Q$35 -> 0.2272727273
C18: GRP | J18: 0 | K18: 0 | L18: 0 | M18: 0 | N18: 0 | O18: 0
B19: Incremental operating costs | J19: =SUM(J20:J21) -> 0 | K19: =SUM(K20:K21) -> 0 | L19: =SUM(L20:L21) -> 225340.9091 | M19: 676022.7273 | N19: 1081636.364 | O19: 1532318.182 | P19: =SUM(P20:P21) -> 1983000 | Q19: 1983000 | R19: 1983000 | S19: 1983000 | T19: 1983000 | U19: 1983000 | V19: 1983000 | W19: 1983000 | X19: 1983000 | Y19: 1983000 | Z19: 1983000 | AA19: 1983000 | AB19: 1983000 | AC19: 1983000 | AD19: 1983000
C20: MCC | J20: 0 | K20: 0 | L20: 0 | M20: 0 | N20: 0 | O20: 0 | P20: 0 | Q20: 0 | R20: 0 | S20: 0 | T20: 0 | U20: 0 | V20: 0 | W20: 0 | X20: 0 | Y20: 0 | Z20: 0 | AA20: 0 | AB20: 0 | AC20: 0 | AD20: 0
C21: GRP | J21: 0 | K21: =$G$22*SUM($J$16:J16) -> 0 | L21: =$G$22*SUM($J$16:K16) -> 225340.9091 | M21: =$G$22*SUM($J$16:L16) -> 676022.7273 | N21: =$G$22*SUM($J$16:M16) -> 1081636.364 | O21: =$G$22*SUM($J$16:N16) -> 1532318.182 | P21: =$G$22*SUM($J$16:O16) -> 1983000 | Q21: =$G$22*SUM($J$16:P16) -> 1983000 | R21: =$G$22*SUM($J$16:Q16) -> 1983000 | S21: =$G$22*SUM($J$16:R16) -> 1983000 | T21: =$G$22*SUM($J$16:S16) -> 1983000 | U21: =$G$22*SUM($J$16:T16) -> 1983000 | V21: =$G$22*SUM($J$16:U16) -> 1983000 | W21: =$G$22*SUM($J$16:V16) -> 1983000 | X21: =$G$22*SUM($J$16:W16) -> 1983000 | Y21: =$G$22*SUM($J$16:X16) -> 1983000 | Z21: =$G$22*SUM($J$16:Y16) -> 1983000 | AA21: =$G$22*SUM($J$16:Z16) -> 1983000 | AB21: =$G$22*SUM($J$16:AA16) -> 1983000 | AC21: =$G$22*SUM($J$16:AB16) -> 1983000 | AD21: =$G$22*SUM($J$16:AC16) -> 1983000
F22: Assumed to be | G22: 0.15 | H22: of project costs to date, lagged one year
B23: Administration & controls | J23: =J24+J26 -> 0 | K23: 165250 | L23: 330500 | M23: 297450 | N23: 330500 | O23: 330500
C24: MCC | J24: =$G$25*J15 -> 0 | K24: =$G$25*K16 -> 165250 | L24: =$G$25*L16 -> 330500 | M24: =$G$25*M16 -> 297450 | N24: =$G$25*N16 -> 330500 | O24: =$G$25*O16 -> 330500
F25: Assumed to be | G25: 0.11 | H25: of project costs each year
C26: GRP | J26: 0 | K26: 0 | L26: 0 | M26: 0 | N26: 0 | O26: 0 | P26: 0 | Q26: 0 | R26: 0 | S26: 0 | T26: 0 | U26: 0 | V26: 0 | W26: 0 | X26: 0 | Y26: 0 | Z26: 0 | AA26: 0 | AB26: 0 | AC26: 0 | AD26: 0
B28: Cost sensitivity factor | G28: 1
A30: Benefits | J30: =J42 ->  | K30: =K42 -> 
A31: Parameters
B32: Tax/GDP ratio
B33: Exchange rate | J33: ='Assumptions & Data'!R6 -> 46.5
B34: RRs treated each year (see PPT for RDOs): | K34: 8,9 | L34: 6,8 | M34: 5,7 | N34: 13,19 | O34: 4,9
B35: # of RDOs each year | K35: 5 | L35: 10 | M35: 9 | N35: 10 | O35: 10 | P35: TOTAL = | Q35: =SUM(K35:O35) -> 44
A38: Project outputs
A39: Total benefits
B40: Fiscal space
C41: Tax revenue increase
D42: ΔrGDP due to increased revenue (after opportunity cost) | J42: =#REF!*'Combined Cost-Benefit'!J99 ->  | K42: =#REF!*'Combined Cost-Benefit'!K99 ->  | L42: =#REF!*'Combined Cost-Benefit'!L99 ->  | M42: =#REF!*'Combined Cost-Benefit'!M99 ->  | N42: =#REF!*'Combined Cost-Benefit'!N99 ->  | O42: =#REF!*'Combined Cost-Benefit'!O99 ->  | P42: =#REF!*'Combined Cost-Benefit'!P99 ->  | Q42: =#REF!*'Combined Cost-Benefit'!Q99 ->  | R42: =#REF!*'Combined Cost-Benefit'!R99 ->  | S42: =#REF!*'Combined Cost-Benefit'!S99 ->  | T42: =#REF!*'Combined Cost-Benefit'!T99 ->  | U42: =#REF!*'Combined Cost-Benefit'!U99 ->  | V42: =#REF!*'Combined Cost-Benefit'!V99 ->  | W42: =#REF!*'Combined Cost-Benefit'!W99 ->  | X42: =#REF!*'Combined Cost-Benefit'!X99 ->  | Y42: =#REF!*'Combined Cost-Benefit'!Y99 ->  | Z42: =#REF!*'Combined Cost-Benefit'!Z99 ->  | AA42: =#REF!*'Combined Cost-Benefit'!AA99 ->  | AB42: =#REF!*'Combined Cost-Benefit'!AB99 ->  | AC42: =#REF!*'Combined Cost-Benefit'!AC99 ->  | AD42: =#REF!*'Combined Cost-Benefit'!AD99 -> 
B44: Business & investor confidence
B48: Efficiencies
C49: Public sector revenue administration
D50: Reduced suspense rates for Returns Processing System (RPS)
D51: Cheaper detection of stop filers
D53: AGENCY TIME DATA
D54: Time to manually encode one return
D55: Time to scan one return
D56: Retrieval time for one manual return (d (max)) | I56: 3
D57: Retrieval time for one scanned return (s) | I57: 20
D59: VOLUME DATA
D60: Number of scans of returns
D61: Number of manual encodings of returns
D62: Number of retrievals for manually encoded returns
E63: Two anecdotes here:
F64: RDO Cubao | I64: 30 | J64: requests for a return/y
F65: RDO South Quezon City | I65: 30 | J65: requests for a return/y
F66: Beyond such requests are private requests (eg, people who have lost their returns)
D67: BIR Tax Forms scanned (see comment)
E68: Phase 1, # pages scanned | I68: 15600000
E69: Phase 2, # of returns expected to be captured | I69: 487408
D70: Discrepancy in # registered taxpayers and # returns received/scanned
E71: # registered TPs | I71: =23708+17024+18409+9521 -> 68662
E72: # returns received | I72: =9812+5605+3935+3117 -> 22469
E73: Fraction registered from whom return received | I73: =I72/I71 -> 0.3272406863
D74: Number of retrievals for scanned returns
D76: AGENCY ERRORS
D77: Number of errors?
E78: Suspense rate
D80: Cost per error?
E81: Stop filers due to time delays | I81: 0.5 | O81: 0.1
D83: Improved security
D85: AGENCY OPERATING COSTS
D86: Faster access to information
D87: Automated data capture saves time over manual data entry
D88: Office supplies
D89: Photocopies
D90: Storage maintenance
C93: Taxpayer compliance
D94: Current compliance costs (% of tax bill) | I94: =AVERAGE(2%,10%) -> 0.06
D95: Improved taxpayer service (see Call Center docs)
A101: Net benefits | J101: =J39-J6 -> 0 | K101: 0 | L101: 0 | M101: 0 | N101: 0 | O101: 0 | P101: 0 | Q101: 0 | R101: 0 | S101: 0 | T101: 0 | U101: 0 | V101: 0 | W101: 0 | X101: 0 | Y101: 0 | Z101: 0 | AA101: 0 | AB101: 0 | AC101: 0 | AD101: 0
B103: ERR = | C103: =IRR(J101:AD101) -> 

Sheet Pub awareness (hidden)
J1: Year
G2: 2007 | H2: 2008 | I2: 2009 | J2: 2010 | K2: 2011 | L2: 2012 | M2: 2013 | N2: 2014 | O2: 2015 | P2: 2016 | Q2: 2017 | R2: 2018 | S2: 2019 | T2: 2020 | U2: 2021 | V2: 2022 | W2: 2023 | X2: 2024 | Y2: 2025 | Z2: 2026 | AA2: 2027 | AB2: 2028 | AC2: 2029 | AD2: 2030
G3: -3 | H3: -2 | I3: -1 | J3: 0 | K3: 1 | L3: 2 | M3: 3 | N3: 4 | O3: 5 | P3: 6 | Q3: 7 | R3: 8 | S3: 9 | T3: 10 | U3: 11 | V3: 12 | W3: 13 | X3: 14 | Y3: 15 | Z3: 16 | AA3: 17 | AB3: 18 | AC3: 19 | AD3: 20
A4: Costs
A5: Total costs
B6: Investment costs
B8: Incremental operating costs
B10: Recurrent project costs
A22: Benefits
A23: Parameters
B24: Tax/GDP ratio
A26: Total benefits
B27: Fiscal space
C28: Tax revenue increase
C29: Public goods investments
C30: Avoided debt service payments
B32: Business & investor confidence
B36: Efficiencies
C37: Public sector revenue administration
C40: Taxpayer compliance
A47: Net benefits | J47: =J26-J5 -> 0 | K47: 0 | L47: 0 | M47: 0 | N47: 0 | O47: 0 | P47: 0 | Q47: 0 | R47: 0 | S47: 0 | T47: 0 | U47: 0 | V47: 0 | W47: 0 | X47: 0 | Y47: 0 | Z47: 0 | AA47: 0 | AB47: 0 | AC47: 0 | AD47: 0
B49: ERR = | C49: =IRR(J47:AD47) -> 

Sheet Citizen-Cent SS (hidden)
J1: Year
G2: 2007 | H2: 2008 | I2: 2009 | J2: 2010 | K2: 2011 | L2: 2012 | M2: 2013 | N2: 2014 | O2: 2015 | P2: 2016 | Q2: 2017 | R2: 2018 | S2: 2019 | T2: 2020 | U2: 2021 | V2: 2022 | W2: 2023 | X2: 2024 | Y2: 2025 | Z2: 2026 | AA2: 2027 | AB2: 2028 | AC2: 2029 | AD2: 2030
G3: -3 | H3: -2 | I3: -1 | J3: 0 | K3: 1 | L3: 2 | M3: 3 | N3: 4 | O3: 5 | P3: 6 | Q3: 7 | R3: 8 | S3: 9 | T3: 10 | U3: 11 | V3: 12 | W3: 13 | X3: 14 | Y3: 15 | Z3: 16 | AA3: 17 | AB3: 18 | AC3: 19 | AD3: 20
A4: Costs
A5: Total costs
B6: Investment costs
B8: Incremental operating costs
B10: Recurrent project costs
A22: Benefits
A23: Parameters
B24: Tax/GDP ratio
A26: Total benefits
B27: Generally: Make available info that transacting public would need to process cargo
B28: Fiscal space
C29: Tax revenue increase
C30: Public goods investments
C31: Avoided debt service payments
B33: Business & investor confidence
B37: Efficiencies
C38: Public sector revenue administration
C41: Taxpayer compliance
D42: Users: Importer, exporter, broker, "public"
B44: Macro stability
A48: Net benefits | J48: =J26-J5 -> 0 | K48: 0 | L48: 0 | M48: 0 | N48: 0 | O48: 0 | P48: 0 | Q48: 0 | R48: 0 | S48: 0 | T48: 0 | U48: 0 | V48: 0 | W48: 0 | X48: 0 | Y48: 0 | Z48: 0 | AA48: 0 | AB48: 0 | AC48: 0 | AD48: 0
B50: ERR = | C50: =IRR(J48:AD48) -> 

Sheet NSW (hidden)
J1: Year
G2: 2007 | H2: 2008 | I2: 2009 | J2: 2010 | K2: 2011 | L2: 2012 | M2: 2013 | N2: 2014 | O2: 2015 | P2: 2016 | Q2: 2017 | R2: 2018 | S2: 2019 | T2: 2020 | U2: 2021 | V2: 2022 | W2: 2023 | X2: 2024 | Y2: 2025 | Z2: 2026 | AA2: 2027 | AB2: 2028 | AC2: 2029 | AD2: 2030
G3: -3 | H3: -2 | I3: -1 | J3: 0 | K3: 1 | L3: 2 | M3: 3 | N3: 4 | O3: 5 | P3: 6 | Q3: 7 | R3: 8 | S3: 9 | T3: 10 | U3: 11 | V3: 12 | W3: 13 | X3: 14 | Y3: 15 | Z3: 16 | AA3: 17 | AB3: 18 | AC3: 19 | AD3: 20
A4: Costs
A5: Total costs
B6: Investment costs
B8: Incremental operating costs
B10: Recurrent project costs
A22: Benefits
A23: Parameters
B24: Tax/GDP ratio
B25: Exchange rate (PHP/$) | I25: ='Assumptions & Data'!R6 -> 46.5
A27: Total benefits
B28: Generally: system for single submission, single snchronous processing, and single decision making for imports
B29: Fiscal space
C30: Tax revenue increase
D31: Foregone tariff revenue, 2002-05 (Total) (PHP) | I31: 79412933000
D32: Foregone VAT revenue, 2002-05 ( Total) (PHP) | I32: 175939142000
C34: Public goods investments
C35: Avoided debt service payments
B37: Business & investor confidence
C38: Trade flows
D39: Impacts of customs environment scenarios
E40: Change in exports to APEC (%) | I40: 0.006
E41: Change in imports to APEC (%) | I41: 0.131
E42: Change in total trade with APEC (%) | I42: =I40+I41 -> 0.137
E43: Elasticity of (per-capita GDP) wrt (trade as % of GDP) | I43: 0.475
D44: OECD 2005a, Table 5 (p. 16) relates TF cost improvements to trade flows
D45: OECD 2005a, Table 6 (p. 18) cites Wilson (2003) with PHL-specifc data on the above
D46: Illustrative increase in export growth due to improved customs clearance | I46: 0.01
C47: Foreign direct investment
B49: Efficiencies
C50: Public sector revenue administration
D51: Reduce processing time for import permits
C54: Taxpayer compliance
D55: See OECD.2005b.The role of automation in trade facilitation.pdf, pp. 11-15.
D56: Cost of preparing customs clearance documentation (% of value of imports) | I56: =AVERAGE(3.5%, 15%) -> 0.0925
D57: Table 2 (p. 11) of OECD (2003a) has paper vs. electronic cost cf'n for containerized imports
D59: Cargo release time (h) | I59: =4*24 -> 96 | O59: 4
D60: Average delay, grain (d) | I60: 2 | O60: 0
D61: Average delay for imports requiring permits (d) | I61: 15 | O61: ?
D62: Numbers of ships: Philippine Ship Agents handles 2 vessels/mo, but there are other agents
D63: Cost of delay due to ship charter (rent) ($/d) | I63: 30000
D64: Cost of delay due to cargo value (ex. of 7000t rice transporter) ($/d) | I64: 6000
D65: Cost of port disbursement (US cents/metric ton) | I65: 1.4
D66: Reduce overtime for customs guards
D67: Reduce berthing fees
D68: Value of day saved in shipping time for mfrd goods (% of value) | I68: 0.008
D70: NEEDED QUANTITIES:
D71: Baseline trends in clearance times for different types of cargo and trade volumes (possibly through different ports of entry)
D72: Targeted reduction in clearance times by different ports of entry
D73: Projections of trade volumes (is a differential justified? See "Trade Flows" above)
D74: Economic value of clearance time reductions (% of cargo value/d) | I74: 0.005
E75: ALT APPROACH TO QUANTIFYING THIS:
F76: Value of total imports
F77: Average bank lending rate
F78: Savings in days to clear customs
D80: Timing concepts: service time, waiting time, at berth, at anchorage
D81: Port types in PPA port stats: base, terminal, other, private
D82: Container distinctions: Foreign/domestic, import/export, empty/loaded
D84: Volatility
F85: Decreased volatility of delivery decreases unit production costs
F86: Benefits of halving the clearance time standard deviation (% of cargo value) | I86: 0.002
D87: Storage
D88: Warehousing fee (40' container, $/d) | I88: =1800/I25 -> 38.70967742
C89: OECD taxonomy of trade transactions costs
D90: Direct costs
E91: Compliance costs
E92: Charges for trade-related services
D93: Indirect costs
E94: Costs generated through procedural delays
E95: Lost business opportunity costs (business foregone)
E96: Costs linked to lack of predictability
B98: Macro stability
A102: Net benefits | J102: =J27-J5 -> 0 | K102: 0 | L102: 0 | M102: 0 | N102: 0 | O102: 0 | P102: 0 | Q102: 0 | R102: 0 | S102: 0 | T102: 0 | U102: 0 | V102: 0 | W102: 0 | X102: 0 | Y102: 0 | Z102: 0 | AA102: 0 | AB102: 0 | AC102: 0 | AD102: 0
B104: ERR = | C104: =IRR(J102:AD102) -> 

Sheet X-ray img sys (hidden)
J1: Year
G2: 2007 | H2: 2008 | I2: 2009 | J2: 2010 | K2: 2011 | L2: 2012 | M2: 2013 | N2: 2014 | O2: 2015 | P2: 2016 | Q2: 2017 | R2: 2018 | S2: 2019 | T2: 2020 | U2: 2021 | V2: 2022 | W2: 2023 | X2: 2024 | Y2: 2025 | Z2: 2026 | AA2: 2027 | AB2: 2028 | AC2: 2029 | AD2: 2030
G3: -3 | H3: -2 | I3: -1 | J3: 0 | K3: 1 | L3: 2 | M3: 3 | N3: 4 | O3: 5 | P3: 6 | Q3: 7 | R3: 8 | S3: 9 | T3: 10 | U3: 11 | V3: 12 | W3: 13 | X3: 14 | Y3: 15 | Z3: 16 | AA3: 17 | AB3: 18 | AC3: 19 | AD3: 20
A4: Costs
A5: Total costs
B6: Investment costs
B8: Incremental operating costs
B10: Recurrent project costs
A22: Benefits
A23: Parameters
B24: Tax/GDP ratio
B25: Exchange rate (PHP/$) | I25: ='Assumptions & Data'!R6 -> 46.5
A27: Total benefits
B28: Generally: Distribution & sharing of captured X-ray images and info on containerized import and export shipments
B29: Fiscal space
C30: Tax revenue increase
C31: Public goods investments
C32: Avoided debt service payments
B34: Business & investor confidence
B38: Efficiencies
C39: Public sector revenue administration
C42: Taxpayer compliance
D43: Informal payment per container scanned ($/TEU container) | I43: =5500/I25 -> 118.2795699
B45: Macro stability
A49: Net benefits | J49: =J27-J5 -> 0 | K49: 0 | L49: 0 | M49: 0 | N49: 0 | O49: 0 | P49: 0 | Q49: 0 | R49: 0 | S49: 0 | T49: 0 | U49: 0 | V49: 0 | W49: 0 | X49: 0 | Y49: 0 | Z49: 0 | AA49: 0 | AB49: 0 | AC49: 0 | AD49: 0
B51: ERR = | C51: =IRR(J49:AD49) -> 

Sheet Petrol invtry sys (hidden)
J1: Year
G2: 2007 | H2: 2008 | I2: 2009 | J2: 2010 | K2: 2011 | L2: 2012 | M2: 2013 | N2: 2014 | O2: 2015 | P2: 2016 | Q2: 2017 | R2: 2018 | S2: 2019 | T2: 2020 | U2: 2021 | V2: 2022 | W2: 2023 | X2: 2024 | Y2: 2025 | Z2: 2026 | AA2: 2027 | AB2: 2028 | AC2: 2029 | AD2: 2030
G3: -3 | H3: -2 | I3: -1 | J3: 0 | K3: 1 | L3: 2 | M3: 3 | N3: 4 | O3: 5 | P3: 6 | Q3: 7 | R3: 8 | S3: 9 | T3: 10 | U3: 11 | V3: 12 | W3: 13 | X3: 14 | Y3: 15 | Z3: 16 | AA3: 17 | AB3: 18 | AC3: 19 | AD3: 20
A4: Costs
A5: Total costs
B6: Investment costs
B8: Incremental operating costs
B10: Recurrent project costs
A22: Benefits
A23: Parameters
B24: Tax/GDP ratio
A26: Total benefits
B27: Generally: Will monitor the importations and subsequent transfer and sales of various petroleum products in all petroleum-processing ports
B28: SAP presentation (Bureau of Customs v3.ppt) - Pilot Port: Subic ; Rollout to other Ports: Mariveles, Manila, Batangas, Cebu, CDO, Davao, Clark
B30: Fiscal space
C31: Tax revenue increase
D32: Fraction of BOC revenue | H32: 0.17
C34: Public goods investments
C35: Avoided debt service payments
B37: Business & investor confidence
B41: Efficiencies
C42: Public sector revenue administration
C45: Taxpayer compliance
D46: Petroleum product imports at Subic & (later) at all petroleum-processing ports
D47: Receipt of these products on account of these different oil companies at Coastal
D48: Inventories of various products at Coastal
D49: Sales of product from Coastal to customers
D50: Collect excise revenue accurately on the imports & provide accurate refund to oikl companies when product is sold to customers in exempted zone
B53: Macro stability
A57: Net benefits | J57: =J26-J5 -> 0 | K57: 0 | L57: 0 | M57: 0 | N57: 0 | O57: 0 | P57: 0 | Q57: 0 | R57: 0 | S57: 0 | T57: 0 | U57: 0 | V57: 0 | W57: 0 | X57: 0 | Y57: 0 | Z57: 0 | AA57: 0 | AB57: 0 | AC57: 0 | AD57: 0
B59: ERR = | C59: =IRR(J57:AD57) -> 

Sheet Harmon rules&regs (hidden)
J1: Year
G2: 2007 | H2: 2008 | I2: 2009 | J2: 2010 | K2: 2011 | L2: 2012 | M2: 2013 | N2: 2014 | O2: 2015 | P2: 2016 | Q2: 2017 | R2: 2018 | S2: 2019 | T2: 2020 | U2: 2021 | V2: 2022 | W2: 2023 | X2: 2024 | Y2: 2025 | Z2: 2026 | AA2: 2027 | AB2: 2028 | AC2: 2029 | AD2: 2030
G3: -3 | H3: -2 | I3: -1 | J3: 0 | K3: 1 | L3: 2 | M3: 3 | N3: 4 | O3: 5 | P3: 6 | Q3: 7 | R3: 8 | S3: 9 | T3: 10 | U3: 11 | V3: 12 | W3: 13 | X3: 14 | Y3: 15 | Z3: 16 | AA3: 17 | AB3: 18 | AC3: 19 | AD3: 20
A4: Costs
A5: Total costs
B6: Investment costs
B8: Incremental operating costs
B10: Recurrent project costs
A22: Benefits
A23: Parameters
B24: Tax/GDP ratio
A26: Total benefits
B27: Fiscal space
C28: Tax revenue increase
C29: Public goods investments
C30: Avoided debt service payments
B32: Business & investor confidence
B36: Efficiencies
C37: Public sector revenue administration
C40: Taxpayer compliance
B43: Macro stability
A47: Net benefits | J47: =J26-J5 -> 0 | K47: 0 | L47: 0 | M47: 0 | N47: 0 | O47: 0 | P47: 0 | Q47: 0 | R47: 0 | S47: 0 | T47: 0 | U47: 0 | V47: 0 | W47: 0 | X47: 0 | Y47: 0 | Z47: 0 | AA47: 0 | AB47: 0 | AC47: 0 | AD47: 0
B49: ERR = | C49: =IRR(J47:AD47) -> 

Sheet CAATT
B1: Philippines: Revenue Administration Reform Project (RARP) | M1: Last updated: May 2017
A2: =IF('ERR & Sensitivity Analysis'!I12="y",IF('ERR & Sensitivity Analysis'!I16="y","","Note: Current calculations are based on user input and are not the original MCC estimates"),"Note: Current calculations are based on user input and are not the original MCC estimates") -> 
E4: ERR = | F4: =IRR(J13:AD13) -> 0.7491205643 | H4: (Unless otherwise indicated, monetary figures in constant 2009 US dollars)
B5: Sensitivity Analysis Shock Factors
E6: Project Costs as % of baseline = | F6: ='ERR & Sensitivity Analysis'!G12 -> 1
E7: Benefits as % of baseline = | F7: ='ERR & Sensitivity Analysis'!G13 -> 1
A9: Cost resulting ERR equal to hurdle: | F9: 4.2
A10: Benefit resulting ERR equal to hurdle: | F10: 0.25 | G10: Year
G11: 2007 | H11: 2008 | I11: 2009 | J11: 2010 | K11: 2011 | L11: 2012 | M11: 2013 | N11: 2014 | O11: 2015 | P11: 2016 | Q11: 2017 | R11: 2018 | S11: 2019 | T11: 2020 | U11: 2021 | V11: 2022 | W11: 2023 | X11: 2024 | Y11: 2025 | Z11: 2026 | AA11: 2027 | AB11: 2028 | AC11: 2029 | AD11: 2030
A12: Note: Project Costs exclude admin & control costs | G12: -3 | H12: -2 | I12: -1 | J12: 0 | K12: 1 | L12: 2 | M12: 3 | N12: 4 | O12: 5 | P12: 6 | Q12: 7 | R12: 8 | S12: 9 | T12: 10 | U12: 11 | V12: 12 | W12: 13 | X12: 14 | Y12: 15 | Z12: 16 | AA12: 17 | AB12: 18 | AC12: 19 | AD12: 20
A13: Net benefits | J13: =J40-J16 -> 0 | K13: =K40-K15 -> -148521.7038 | L13: -304040.1804 | M13: -175868.7146 | N13: 635408.6597 | O13: 911216.2219 | P13: 1102359.039 | Q13: 1136646.059 | R13: 1171628.534 | S13: 1205372.934 | T13: 1239729.442 | U13: 1274741.257 | V13: 1310452.342 | W13: 1346907.499 | X13: 1384152.445 | Y13: 1422233.892 | Z13: 1461199.623 | AA13: 1501098.576 | AB13: 1541980.93 | AC13: 1583898.184 | AD13: 1626903.251
A15: Total costs (incl. admin & controls) by year, constant $ (deflated with PHP inflation) | J15: =J19+J32 -> 0 | K15: 148521.7038 | L15: 304040.1804 | M15: 737281.5859 | N15: 271630.058 | O15: 276811.8406 | P15: 161519.3375 | Q15: 154563.9593 | R15: 147908.095 | S15: 141538.8469 | T15: 135443.8727 | U15: 129611.3614 | V15: 124030.0109 | W15: 118689.0057 | X15: 113577.9958 | Y15: 108687.0774 | Z15: 104006.7726 | AA15: 99528.01205 | AB15: 95242.1168 | AC15: 91140.78163 | AD15: 87216.05897
B16: Total costs (incl. admin & controls) by year, current $ | J16: =SUM(J17:J18) -> 0 | K16: =SUM(K17:K18) -> 160950 | L16: =SUM(L17:L18) -> 343650 | M16: 870000 | N16: =SUM(N17:N18) -> 334950 | O16: 356700 | P16: 217500 | Q16: 217500 | R16: 217500 | S16: 217500 | T16: 217500 | U16: 217500 | V16: 217500 | W16: 217500 | X16: 217500 | Y16: 217500 | Z16: 217500 | AA16: 217500 | AB16: 217500 | AC16: 217500 | AD16: =SUM(AD17:AD18) -> 217500
C17: MCC, current $ | J17: =J21+J34 -> 0 | K17: 160950 | L17: 321900 | M17: 804750 | N17: 160950 | O17: 160950 | P17: 0 | Q17: 0 | R17: 0 | S17: 0 | T17: 0 | U17: 0 | V17: 0 | W17: 0 | X17: 0 | Y17: 0 | Z17: 0 | AA17: 0 | AB17: 0 | AC17: 0 | AD17: 0
C18: GRP, current $ | J18: =J22+J36 -> 0 | K18: 0 | L18: 21750 | M18: 65250 | N18: 174000 | O18: 195750 | P18: 217500 | Q18: 217500 | R18: 217500 | S18: 217500 | T18: 217500 | U18: 217500 | V18: 217500 | W18: 217500 | X18: 217500 | Y18: 217500 | Z18: 217500 | AA18: 217500 | AB18: 217500 | AC18: 217500 | AD18: 217500
B19: Total project costs (excl. admin. & controls), const. 2009 $, deflated using PHP inflation) | J19: =$F$6*J20/J45*100 -> 0 | K19: 133803.3368 | L19: 275817.0413 | M19: 669697.4406 | N19: 258695.2933 | O19: 264434.0754 | P19: 161519.3375 | Q19: 154563.9593 | R19: 147908.095 | S19: 141538.8469 | T19: 135443.8727 | U19: 129611.3614 | V19: 124030.0109 | W19: 118689.0057 | X19: 113577.9958 | Y19: 108687.0774 | Z19: 104006.7726 | AA19: 99528.01205 | AB19: 95242.1168 | AC19: 91140.78163 | AD19: 87216.05897
B20: Total project costs (excl. admin. & controls), current $ | J20: =SUM(J21:J22) -> 0 | K20: =SUM(K21:K22) -> 145000 | L20: 311750 | M20: 790250 | N20: 319000 | O20: 340750 | P20: 217500 | Q20: 217500 | R20: 217500 | S20: 217500 | T20: 217500 | U20: 217500 | V20: 217500 | W20: 217500 | X20: 217500 | Y20: 217500 | Z20: 217500 | AA20: 217500 | AB20: 217500 | AC20: 217500 | AD20: 217500
C21: MCC, current $ | J21: =J25+J29 -> 0 | K21: =K25+K29 -> 145000 | L21: =L25+L29 -> 290000 | M21: 725000 | N21: 145000 | O21: 145000 | P21: 0 | Q21: 0 | R21: 0 | S21: 0 | T21: 0 | U21: 0 | V21: 0 | W21: 0 | X21: 0 | Y21: 0 | Z21: 0 | AA21: 0 | AB21: 0 | AC21: 0 | AD21: 0
C22: GRP, current $ | J22: =J27+J30 -> 0 | K22: =K27+K30 -> 0 | L22: 21750 | M22: 65250 | N22: 174000 | O22: 195750 | P22: 217500 | Q22: 217500 | R22: 217500 | S22: 217500 | T22: 217500 | U22: 217500 | V22: 217500 | W22: 217500 | X22: 217500 | Y22: 217500 | Z22: 217500 | AA22: 217500 | AB22: 217500 | AC22: 217500 | AD22: 217500
B23: Total project costs (excl. admin. & controls) | G23: 1450000
B24: Project costs by year | J24: =J25+J27 -> 0 | K24: 145000 | L24: 290000 | M24: 725000 | N24: 145000 | O24: 145000
C25: MCC, current $ | J25: 0 | K25: =$G$23*K26 -> 145000 | L25: =$G$23*L26 -> 290000 | M25: =$G$23*M26 -> 725000 | N25: =$G$23*N26 -> 145000 | O25: =$G$23*O26 -> 145000
D26: Assumed profile of MCC project costs | J26: 0 | K26: 0.1 | L26: 0.2 | M26: 0.5 | N26: 0.1 | O26: =100%-SUM(J26:N26) -> 0.1
C27: GRP, current $ | J27: 0 | K27: 0 | L27: 0 | M27: 0 | N27: 0 | O27: 0
B28: Incremental operating costs | J28: =SUM(J29:J30) -> 0 | K28: =SUM(K29:K30) -> 0 | L28: =SUM(L29:L30) -> 21750 | M28: 65250 | N28: 174000 | O28: 195750 | P28: =SUM(P29:P30) -> 217500 | Q28: 217500 | R28: 217500 | S28: 217500 | T28: 217500 | U28: 217500 | V28: 217500 | W28: 217500 | X28: 217500 | Y28: 217500 | Z28: 217500 | AA28: 217500 | AB28: 217500 | AC28: 217500 | AD28: 217500
C29: MCC, current $ | J29: 0 | K29: 0 | L29: 0 | M29: 0 | N29: 0 | O29: 0 | P29: 0 | Q29: 0 | R29: 0 | S29: 0 | T29: 0 | U29: 0 | V29: 0 | W29: 0 | X29: 0 | Y29: 0 | Z29: 0 | AA29: 0 | AB29: 0 | AC29: 0 | AD29: 0
C30: GRP, current $ | J30: 0 | K30: =$G$32*SUM($J$25:J25) -> 0 | L30: =$G$32*SUM($J$25:K25) -> 21750 | M30: =$G$32*SUM($J$25:L25) -> 65250 | N30: =$G$32*SUM($J$25:M25) -> 174000 | O30: =$G$32*SUM($J$25:N25) -> 195750 | P30: =$G$32*SUM($J$25:O25) -> 217500 | Q30: =$G$32*SUM($J$25:P25) -> 217500 | R30: =$G$32*SUM($J$25:Q25) -> 217500 | S30: =$G$32*SUM($J$25:R25) -> 217500 | T30: =$G$32*SUM($J$25:S25) -> 217500 | U30: =$G$32*SUM($J$25:T25) -> 217500 | V30: =$G$32*SUM($J$25:U25) -> 217500 | W30: =$G$32*SUM($J$25:V25) -> 217500 | X30: =$G$32*SUM($J$25:W25) -> 217500 | Y30: =$G$32*SUM($J$25:X25) -> 217500 | Z30: =$G$32*SUM($J$25:Y25) -> 217500 | AA30: =$G$32*SUM($J$25:Z25) -> 217500 | AB30: =$G$32*SUM($J$25:AA25) -> 217500 | AC30: =$G$32*SUM($J$25:AB25) -> 217500 | AD30: =$G$32*SUM($J$25:AC25) -> 217500
C31: Assumed % of project costs to date, lagged one year | G31: =G32 -> 0.15
B32: Administration & controls, const. 2009 $, deflated using PHP inflation | G32: ='Combined Cost-Benefit'!G47 -> 0.15 | J32: =J33/J45*100 -> 0 | K32: =K33/K45*100 -> 14718.36705 | L32: =L33/L45*100 -> 28223.13911 | M32: 67584.14538 | N32: 12934.76467 | O32: 12377.76523 | P32: 0 | Q32: 0 | R32: 0 | S32: 0 | T32: 0 | U32: 0 | V32: 0 | W32: 0 | X32: 0 | Y32: 0 | Z32: 0 | AA32: 0 | AB32: 0 | AC32: 0 | AD32: 0
B33: Administration & controls, current $ | J33: =J34+J36 -> 0 | K33: 15950 | L33: 31900 | M33: 79750 | N33: 15950 | O33: 15950
C34: MCC, current $ | J34: =$G$35*J24 -> 0 | K34: =$G$35*K25 -> 15950 | L34: =$G$35*L25 -> 31900 | M34: =$G$35*M25 -> 79750 | N34: =$G$35*N25 -> 15950 | O34: =$G$35*O25 -> 15950
C35: Assumed % of project costs each year | G35: ='Assumptions & Data'!G59 -> 0.11
C36: GRP, current $ | J36: 0 | K36: 0 | L36: 0 | M36: 0 | N36: 0 | O36: 0 | P36: 0 | Q36: 0 | R36: 0 | S36: 0 | T36: 0 | U36: 0 | V36: 0 | W36: 0 | X36: 0 | Y36: 0 | Z36: 0 | AA36: 0 | AB36: 0 | AC36: 0 | AD36: 0
B38: Cost sensitivity factor | G38: 1
A40: Benefits | J40: =($F$7)*(J77+J104) -> 0 | K40: =($F$7)*(K77+K104) -> 0 | L40: 0 | M40: =($F$7)*(M77+M104) -> 561412.8713 | N40: 907038.7177 | O40: 1188028.063 | P40: 1263878.377 | Q40: 1291210.019 | R40: 1319536.629 | S40: 1346911.781 | T40: 1375173.315 | U40: 1404352.618 | V40: 1434482.353 | W40: 1465596.505 | X40: 1497730.441 | Y40: 1530920.969 | Z40: 1565206.395 | AA40: 1600626.589 | AB40: 1637223.047 | AC40: 1675038.966 | AD40: 1714119.31
A41: Parameters
B42: Tax/GDP ratio
B43: Exchange rate | G43: ='Assumptions & Data'!P6 -> 46.14839118 | H43: ='Assumptions & Data'!Q6 -> 44.47456093 | I43: ='Assumptions & Data'!R6 -> 46.5 | J43: ='Assumptions & Data'!S6 -> 46.5 | K43: ='Assumptions & Data'!T6 -> 46.5 | L43: ='Assumptions & Data'!U6 -> 46.5 | M43: ='Assumptions & Data'!V6 -> 46.5 | N43: ='Assumptions & Data'!W6 -> 46.5 | O43: ='Assumptions & Data'!X6 -> 46.5 | P43: ='Assumptions & Data'!Y6 -> 46.5 | Q43: ='Assumptions & Data'!Z6 -> 46.5 | R43: ='Assumptions & Data'!AA6 -> 46.5 | S43: ='Assumptions & Data'!AB6 -> 46.5 | T43: ='Assumptions & Data'!AC6 -> 46.5 | U43: ='Assumptions & Data'!AD6 -> 46.5 | V43: ='Assumptions & Data'!AE6 -> 46.5 | W43: ='Assumptions & Data'!AF6 -> 46.5 | X43: ='Assumptions & Data'!AG6 -> 46.5 | Y43: ='Assumptions & Data'!AH6 -> 46.5 | Z43: ='Assumptions & Data'!AI6 -> 46.5 | AA43: ='Assumptions & Data'!AJ6 -> 46.5 | AB43: ='Assumptions & Data'!AK6 -> 46.5 | AC43: ='Assumptions & Data'!AL6 -> 46.5 | AD43: ='Assumptions & Data'!AM6 -> 46.5
B44: GDP deflator (US; base year = 2009) | G44: ='Assumptions & Data'!P13 -> 96.33491104 | H44: ='Assumptions & Data'!Q13 -> 98.42519685 | I44: ='Assumptions & Data'!R13 -> 100 | J44: ='Assumptions & Data'!S13 -> 101.5 | K44: ='Assumptions & Data'!T13 -> 103.124 | L44: ='Assumptions & Data'!U13 -> 104.980232 | M44: ='Assumptions & Data'!V13 -> 106.9748564 | N44: ='Assumptions & Data'!W13 -> 109.1143535 | O44: ='Assumptions & Data'!X13 -> 111.2966406 | P44: ='Assumptions & Data'!Y13 -> 113.5225734 | Q44: ='Assumptions & Data'!Z13 -> 115.7930249 | R44: ='Assumptions & Data'!AA13 -> 118.1088854 | S44: ='Assumptions & Data'!AB13 -> 120.4710631 | T44: ='Assumptions & Data'!AC13 -> 122.8804844 | U44: ='Assumptions & Data'!AD13 -> 125.338094 | V44: ='Assumptions & Data'!AE13 -> 127.8448559 | W44: ='Assumptions & Data'!AF13 -> 130.401753 | X44: ='Assumptions & Data'!AG13 -> 133.0097881 | Y44: ='Assumptions & Data'!AH13 -> 135.6699839 | Z44: ='Assumptions & Data'!AI13 -> 138.3833835 | AA44: ='Assumptions & Data'!AJ13 -> 141.1510512 | AB44: ='Assumptions & Data'!AK13 -> 143.9740722 | AC44: ='Assumptions & Data'!AL13 -> 146.8535537 | AD44: ='Assumptions & Data'!AM13 -> 149.7906248
B45: GDP deflator (Philippines; base year = 2009) | G45: ='Assumptions & Data'!P27 -> 90.45303893 | H45: ='Assumptions & Data'!Q27 -> 97.27626459 | I45: ='Assumptions & Data'!R27 -> 100 | J45: ='Assumptions & Data'!S27 -> 104 | K45: ='Assumptions & Data'!T27 -> 108.368 | L45: ='Assumptions & Data'!U27 -> 113.027824 | M45: ='Assumptions & Data'!V27 -> 118.0010483 | N45: ='Assumptions & Data'!W27 -> 123.3110954 | O45: ='Assumptions & Data'!X27 -> 128.8600947 | P45: ='Assumptions & Data'!Y27 -> 134.658799 | Q45: ='Assumptions & Data'!Z27 -> 140.7184449 | R45: ='Assumptions & Data'!AA27 -> 147.050775 | S45: ='Assumptions & Data'!AB27 -> 153.6680598 | T45: ='Assumptions & Data'!AC27 -> 160.5831225 | U45: ='Assumptions & Data'!AD27 -> 167.809363 | V45: ='Assumptions & Data'!AE27 -> 175.3607844 | W45: ='Assumptions & Data'!AF27 -> 183.2520197 | X45: ='Assumptions & Data'!AG27 -> 191.4983606 | Y45: ='Assumptions & Data'!AH27 -> 200.1157868 | Z45: ='Assumptions & Data'!AI27 -> 209.1209972 | AA45: ='Assumptions & Data'!AJ27 -> 218.5314421 | AB45: ='Assumptions & Data'!AK27 -> 228.365357 | AC45: ='Assumptions & Data'!AL27 -> 238.641798 | AD45: ='Assumptions & Data'!AM27 -> 249.3806789
B46: Real GDP growth rate | G46: ='Assumptions & Data'!P7 -> 0.07078815329 | H46: ='Assumptions & Data'!Q7 -> 0.03838987593 | I46: ='Assumptions & Data'!R7 -> 0.015 | J46: ='Assumptions & Data'!S7 -> 0.035 | K46: ='Assumptions & Data'!T7 -> 0.041 | L46: ='Assumptions & Data'!U7 -> 0.043 | M46: ='Assumptions & Data'!V7 -> 0.044 | N46: ='Assumptions & Data'!W7 -> 0.045 | O46: ='Assumptions & Data'!X7 -> 0.045 | P46: ='Assumptions & Data'!Y7 -> 0.045 | Q46: ='Assumptions & Data'!Z7 -> 0.045 | R46: ='Assumptions & Data'!AA7 -> 0.045 | S46: ='Assumptions & Data'!AB7 -> 0.045 | T46: ='Assumptions & Data'!AC7 -> 0.045 | U46: ='Assumptions & Data'!AD7 -> 0.045 | V46: ='Assumptions & Data'!AE7 -> 0.045 | W46: ='Assumptions & Data'!AF7 -> 0.045 | X46: ='Assumptions & Data'!AG7 -> 0.045 | Y46: ='Assumptions & Data'!AH7 -> 0.045 | Z46: ='Assumptions & Data'!AI7 -> 0.045 | AA46: ='Assumptions & Data'!AJ7 -> 0.045 | AB46: ='Assumptions & Data'!AK7 -> 0.045 | AC46: ='Assumptions & Data'!AL7 -> 0.045 | AD46: ='Assumptions & Data'!AM7 -> 0.045
B47: # taxpayers enlisted in LTS | I47: 1349
B48: Fraction of enlisted taxpayers who are registered | I48: 0.5
A50: Total benefits
B51: Fiscal space
C52: Tax revenue increase
D53: Assessment per case
D54: Assessment per hour
D55: % total revenue from audit enforcement | K55: 0.03
D57: Additional revenue per taxpayer due to audit (2009 $) | J57: =5000000/I43 -> 107526.8817
D58: Additional taxpayers to be audited | J58: =500+500 -> 1000
D59: Use of CAATTs in Cebu - collections from audit by year | J59: Current PHP | K59: Exch rate | L59: Current $ | M59: $ deflator (based on PHP inflation) | N59: Real (2009) $, deflated with PHP inflation
E60: 2004 (purely manual audit) | J60: =39128485 -> 39128485 | K60: ='Assumptions & Data'!M6 -> 56.03991667 | L60: =J60/K60 -> 698225.2531 | M60: ='Assumptions & Data'!M27 -> 78.47551256 | N60: =L60/(M60/$M$65) -> 889736.4673
E61: 2005 (mixed audit from this year forward) | J61: =61774477 -> 61774477 | K61: ='Assumptions & Data'!N6 -> 55.08549167 | L61: =J61/K61 -> 1121429.166 | M61: ='Assumptions & Data'!N27 -> 83.55985226 | N61: =L61/(M61/$M$65) -> 1342066.957
E62: 2006 | J62: =68069333 -> 68069333 | K62: ='Assumptions & Data'!O6 -> 51.3142725 | L62: =J62/K62 -> 1326518.524 | M62: ='Assumptions & Data'!O27 -> 87.87798459 | N62: =L62/(M62/$M$65) -> 1509500.394
E63: 2007 | J63: =100478999 -> 100478999 | K63: =G43 -> 46.14839118 | L63: =J63/K63 -> 2177302.316 | M63: =G45 -> 90.45303893 | N63: =L63/(M63/$M$65) -> 2407107.978
E64: 2008 | J64: =109302708 -> 109302708 | K64: =H43 -> 44.47456093 | L64: =J64/K64 -> 2457645.578 | M64: =H45 -> 97.27626459 | N64: =L64/(M64/$M$65) -> 2526459.654
E65: 2009 | M65: =I45 -> 100
D66: # of taxpayers implicated in Cebu (assumed constant over time) | J66: 208
D67: Assumed fraction of revenue growth due to CAATTs over 4y | J67: =2/3 -> 0.6666666667
D68: Incremental revenue per TP in Cebu attributable to CAATTs after 1y (2009 $) | J68: =(N61-N60)*J67/J66 -> 1449.77721
D69: CAGR of revenue in Cebu due to CAATTs, 2004-08 | J69: =(((N64-N60)*J67)/N60)^(1/(COUNT(N60:N64)-1))-1 -> 0.05233895243
D70: After first 4 y, assume growth rate of revenue from audits = real GDP growth rate (see "Parameters" above)
D71: =D91 -> Timing of additional CAATT-audited TPs (conservatively assumed not to grow beyond Y5) | M71: =M91 -> 1349 | N71: =N91 -> 1849 | O71: 2349 | P71: 2349 | Q71: 2349 | R71: 2349 | S71: 2349 | T71: 2349 | U71: 2349 | V71: 2349 | W71: 2349 | X71: 2349 | Y71: 2349 | Z71: 2349 | AA71: 2349 | AB71: 2349 | AC71: 2349 | AD71: 2349
D72: Assume that collection occurs within one year after the audit
D73: Assumed growth rate in incremental revenue attributable to CAATTs (also per TP) | J73: 0 | K73: 0 | L73: 0 | M73: 0 | N73: =J69 -> 0.05233895243 | O73: =N73 -> 0.05233895243 | P73: =O73 -> 0.05233895243 | Q73: =P73 -> 0.05233895243 | R73: =R46 -> 0.045 | S73: =S46 -> 0.045 | T73: 0.045 | U73: 0.045 | V73: 0.045 | W73: 0.045 | X73: 0.045 | Y73: 0.045 | Z73: 0.045 | AA73: 0.045 | AB73: 0.045 | AC73: 0.045 | AD73: 0.045
D74: Incremental revenue per TP in Cebu attributable to CAATTs (2009 $, deflated with PHP inflation) | J74: 0 | K74: 0 | L74: 0 | M74: 0 | N74: =J68 -> 1449.77721 | O74: =N74*(1+N73) -> 1525.657031 | P74: =O74*(1+O73) -> 1605.508321 | Q74: 1689.538945 | R74: 1777.967644 | S74: 1857.976188 | T74: 1941.585116 | U74: 2028.956446 | V74: 2120.259486 | W74: 2215.671163 | X74: 2315.376365 | Y74: 2419.568302 | Z74: 2528.448876 | AA74: 2642.229075 | AB74: 2761.129383 | AC74: 2885.380206 | AD74: 3015.222315
D75: Incremental revenue by year | J75: 0 | K75: 0 | L75: 0 | M75: 0 | N75: =M71*N74 -> 1955749.457 | O75: =N71*O74 -> 2820939.85 | P75: 3771339.047 | Q75: 3968726.982 | R75: 4176445.995 | S75: 4364386.065 | T75: 4560783.437 | U75: 4766018.692 | V75: 4980489.533 | W75: 5204611.562 | X75: 5438819.083 | Y75: 5683565.941 | Z75: 5939326.409 | AA75: 6206596.097 | AB75: 6485892.921 | AC75: 6777758.103 | AD75: 7082757.217
D76: ='Combined Cost-Benefit'!C98 -> Real income increase as fraction of NG real revenue | J76: ='Combined Cost-Benefit'!J98 -> 0.06485609295 | K76: ='Combined Cost-Benefit'!K98 -> 0.06485609295 | L76: ='Combined Cost-Benefit'!L98 -> 0.06485609295 | M76: ='Combined Cost-Benefit'!M98 -> 0.06485609295 | N76: ='Combined Cost-Benefit'!N98 -> 0.06485609295 | O76: ='Combined Cost-Benefit'!O98 -> 0.06485609295 | P76: ='Combined Cost-Benefit'!P98 -> 0.06485609295 | Q76: ='Combined Cost-Benefit'!Q98 -> 0.06485609295 | R76: ='Combined Cost-Benefit'!R98 -> 0.06485609295 | S76: ='Combined Cost-Benefit'!S98 -> 0.06485609295 | T76: ='Combined Cost-Benefit'!T98 -> 0.06485609295 | U76: ='Combined Cost-Benefit'!U98 -> 0.06485609295 | V76: ='Combined Cost-Benefit'!V98 -> 0.06485609295 | W76: ='Combined Cost-Benefit'!W98 -> 0.06485609295 | X76: ='Combined Cost-Benefit'!X98 -> 0.06485609295 | Y76: ='Combined Cost-Benefit'!Y98 -> 0.06485609295 | Z76: ='Combined Cost-Benefit'!Z98 -> 0.06485609295 | AA76: ='Combined Cost-Benefit'!AA98 -> 0.06485609295 | AB76: ='Combined Cost-Benefit'!AB98 -> 0.06485609295 | AC76: ='Combined Cost-Benefit'!AC98 -> 0.06485609295 | AD76: ='Combined Cost-Benefit'!AD98 -> 0.06485609295
D77: Real income increase (2009 $, deflated with PHP inflation) | J77: =J76*J75 -> 0 | K77: =K76*K75 -> 0 | L77: =L76*L75 -> 0 | M77: 0 | N77: =N76*N75 -> 126842.2685 | O77: =O76*O75 -> 182955.1371 | P77: =P76*P75 -> 244594.3158 | Q77: 257396.126 | R77: 270867.9696 | S77: 283057.0283 | T77: 295794.5945 | U77: 309105.3513 | V77: 323015.0921 | W77: 337550.7712 | X77: 352740.5559 | Y77: 368613.881 | Z77: 385201.5056 | AA77: 402535.5733 | AB77: 420649.6741 | AC77: 439578.9095 | AD77: 459359.9604
B79: Efficiencies
C80: Public sector revenue administration
D81: LOE required for manual audit (person-days) | I81: 120
D82: Savings in LOE introduced by CAATT, % | I82: 0.5
D83: Reduction in staff cost | N83: 0.5
D84: Time to process an audit case (Actual, March 2009) (d) | I84: 1000
D85: Time to process an audit case (normative, per regulation) (d) | I85: 120
D86: Time to process an audit case (CAATT goal) (d) | N86: 75
D87: Some conflicting data above, but use bold figures to be conservative
D88: Estimated # of working days per year | I88: =365*(5/7)-17-25 -> 218.7142857
D89: Savings per audit in LOE introduced by CAATT, person-years | I89: =I82*I81/I88 -> 0.2743305029
D90: Assume audits/TP/y remains at 2006-08 average: | I90: ='WB NRIMP Tax Tables'!B25 -> 3.25161727
D91: Timing of additional CAATT-audited TPs (conservatively assumed not to grow beyond Y5) | M91: =I47 -> 1349 | N91: =M91+500 -> 1849 | O91: =N91+500 -> 2349 | P91: =O91 -> 2349 | Q91: =P91 -> 2349 | R91: 2349 | S91: 2349 | T91: 2349 | U91: 2349 | V91: 2349 | W91: 2349 | X91: 2349 | Y91: 2349 | Z91: 2349 | AA91: 2349 | AB91: 2349 | AC91: 2349 | AD91: 2349
D92: Timing of additional CAATT audits | J92: 0 | K92: 0 | L92: 0 | M92: =M91*$I$90 -> 4386.431697 | N92: =N91*$I$90 -> 6012.240332 | O92: 7638.048967 | P92: 7638.048967 | Q92: 7638.048967 | R92: 7638.048967 | S92: 7638.048967 | T92: 7638.048967 | U92: 7638.048967 | V92: 7638.048967 | W92: 7638.048967 | X92: 7638.048967 | Y92: 7638.048967 | Z92: 7638.048967 | AA92: 7638.048967 | AB92: 7638.048967 | AC92: 7638.048967 | AD92: 7638.048967
D93: Assume that audit LOE and costs (person-days) break down as follows by staff level:
E94: LOE share (%)
F95: Junior staff | I95: 0.55
F96: Mid-level staff | I96: 0.4
F97: Executive staff | I97: =100%-I95-I96 -> 0.05
E98: Annual salaries of different staff levels (const. 2009 $, deflated with PHP inflation)
F99: Junior staff | I99: ='Assumptions & Data'!R48 -> 4642.57416 | J99: ='Assumptions & Data'!S48 -> 4682.031402 | K99: ='Assumptions & Data'!T48 -> 4736.210691 | L99: ='Assumptions & Data'!U48 -> 4796.256676 | M99: ='Assumptions & Data'!V48 -> 4860.006206 | N99: ='Assumptions & Data'!W48 -> 4927.577534 | O99: ='Assumptions & Data'!X48 -> 4996.673426 | P99: ='Assumptions & Data'!Y48 -> 5067.323427 | Q99: ='Assumptions & Data'!Z48 -> 5139.55781 | R99: ='Assumptions & Data'!AA48 -> 5213.407594 | S99: ='Assumptions & Data'!AB48 -> 5288.904554 | T99: ='Assumptions & Data'!AC48 -> 5366.081237 | U99: ='Assumptions & Data'!AD48 -> 5444.970982 | V99: ='Assumptions & Data'!AE48 -> 5525.607928 | W99: ='Assumptions & Data'!AF48 -> 5608.027036 | X99: ='Assumptions & Data'!AG48 -> 5692.264101 | Y99: ='Assumptions & Data'!AH48 -> 5778.355773 | Z99: ='Assumptions & Data'!AI48 -> 5866.339572 | AA99: ='Assumptions & Data'!AJ48 -> 5956.253905 | AB99: ='Assumptions & Data'!AK48 -> 6048.138088 | AC99: ='Assumptions & Data'!AL48 -> 6142.032359 | AD99: ='Assumptions & Data'!AM48 -> 6237.977902
F100: Mid-level staff | I100: ='Assumptions & Data'!R52 -> 3507.646905 | J100: ='Assumptions & Data'!S52 -> 3537.458399 | K100: ='Assumptions & Data'!T52 -> 3578.392977 | L100: ='Assumptions & Data'!U52 -> 3623.760075 | M100: ='Assumptions & Data'!V52 -> 3671.925345 | N100: ='Assumptions & Data'!W52 -> 3722.978134 | O100: ='Assumptions & Data'!X52 -> 3775.182791 | P100: ='Assumptions & Data'!Y52 -> 3828.561638 | Q100: ='Assumptions & Data'!Z52 -> 3883.137549 | R100: ='Assumptions & Data'!AA52 -> 3938.933958 | S100: ='Assumptions & Data'!AB52 -> 3995.974872 | T100: ='Assumptions & Data'!AC52 -> 4054.284884 | U100: ='Assumptions & Data'!AD52 -> 4113.889181 | V100: ='Assumptions & Data'!AE52 -> 4174.813557 | W100: ='Assumptions & Data'!AF52 -> 4237.084426 | X100: ='Assumptions & Data'!AG52 -> 4300.728834 | Y100: ='Assumptions & Data'!AH52 -> 4365.774469 | Z100: ='Assumptions & Data'!AI52 -> 4432.249681 | AA100: ='Assumptions & Data'!AJ52 -> 4500.183487 | AB100: ='Assumptions & Data'!AK52 -> 4569.605592 | AC100: ='Assumptions & Data'!AL52 -> 4640.546397 | AD100: ='Assumptions & Data'!AM52 -> 4713.037019
F101: Executive staff | I101: ='Assumptions & Data'!R56 -> 10005.64185 | J101: ='Assumptions & Data'!S56 -> 10090.67981 | K101: ='Assumptions & Data'!T56 -> 10207.44661 | L101: ='Assumptions & Data'!U56 -> 10336.85728 | M101: ='Assumptions & Data'!V56 -> 10474.2498 | N101: ='Assumptions & Data'!W56 -> 10619.87903 | O101: ='Assumptions & Data'!X56 -> 10768.79399 | P101: ='Assumptions & Data'!Y56 -> 10921.05836 | Q101: ='Assumptions & Data'!Z56 -> 11076.73737 | R101: ='Assumptions & Data'!AA56 -> 11235.89788 | S101: ='Assumptions & Data'!AB56 -> 11398.60838 | T101: ='Assumptions & Data'!AC56 -> 11564.939 | U101: ='Assumptions & Data'!AD56 -> 11734.9616 | V101: ='Assumptions & Data'!AE56 -> 11908.74976 | W101: ='Assumptions & Data'!AF56 -> 12086.37882 | X101: ='Assumptions & Data'!AG56 -> 12267.92592 | Y101: ='Assumptions & Data'!AH56 -> 12453.47006 | Z101: ='Assumptions & Data'!AI56 -> 12643.0921 | AA101: ='Assumptions & Data'!AJ56 -> 12836.87482 | AB101: ='Assumptions & Data'!AK56 -> 13034.90293 | AC101: ='Assumptions & Data'!AL56 -> 13237.26318 | AD101: ='Assumptions & Data'!AM56 -> 13444.04431
F102: Weighted average audit staff wage | I102: =$I$95*I99+$I$96*I100+$I$97*I101 -> 4456.756642 | J102: 4494.634621 | K102: 4546.645401 | L102: 4604.288066 | M102: 4665.486042 | N102: 4730.352848 | O102: 4796.6832 | P102: 4864.505458 | Q102: 4933.848684 | R102: 5004.742654 | S102: 5077.217872 | T102: 5151.305585 | U102: 5227.037793 | V102: 5304.447271 | W102: 5383.567581 | X102: 5464.433085 | Y102: 5547.078966 | Z102: 5631.541242 | AA102: 5717.856784 | AB102: 5806.063332 | AC102: 5896.199515 | AD102: 5988.304869
D103: Value of saved staff LOE (% of avoided wage bill) | I103: 0.1
E104: Value of reduced audit LOE (2009 $) | J104: =$I$103*J102*J92*$I$89 -> 0 | K104: =$I$103*K102*K92*$I$89 -> 0 | L104: 0 | M104: 561412.8713 | N104: 780196.4491 | O104: 1005072.925 | P104: 1019284.061 | Q104: 1033813.893 | R104: 1048668.659 | S104: 1063854.753 | T104: 1079378.72 | U104: 1095247.267 | V104: 1111467.261 | W104: 1128045.733 | X104: 1144989.885 | Y104: 1162307.088 | Z104: 1180004.89 | AA104: 1198091.015 | AB104: 1216573.373 | AC104: 1235460.056 | AD104: 1254759.35
D106: Backlog (# unfinished cases, 2008 audit) | H106: 550
D107: Backlog (# unfinished cases, since 2000 audit) | I107: 3224
D108: (Conservatively, assume no additional benefits from resolving backlogged cases.)
C110: Taxpayer compliance
D111: With information on the CD-R/DVD-R, the team spent less time at the taxpayer’s place of business
D112: (Conservatively not factored in here, but presumably positive.)

Sheet RIPS
B1: Philippines: Revenue Administration Reform Project (RARP) | N1: Last updated: May 2017
A2: =IF('ERR & Sensitivity Analysis'!I12="y",IF('ERR & Sensitivity Analysis'!I16="y","","Note: Current calculations are based on user input and are not the original MCC estimates"),"Note: Current calculations are based on user input and are not the original MCC estimates") -> 
E4: ERR = | F4: =IRR(J13:AD13) -> 0.5020079378 | H4: (Unless otherwise indicated, monetary figures in constant 2009 US dollars)
B5: Sensitivity Analysis Shock Factors
E6: Project Costs as % of baseline = | F6: ='ERR & Sensitivity Analysis'!G12 -> 1
E7: Benefits as % of baseline = | F7: ='ERR & Sensitivity Analysis'!G13 -> 1
A9: Cost resulting ERR equal to hurdle: | F9: 6.88
A10: Benefit resulting ERR equal to hurdle: | F10: 0.15 | G10: Year
G11: 2007 | H11: 2008 | I11: 2009 | J11: 2010 | K11: 2011 | L11: 2012 | M11: 2013 | N11: 2014 | O11: 2015 | P11: 2016 | Q11: 2017 | R11: 2018 | S11: 2019 | T11: 2020 | U11: 2021 | V11: 2022 | W11: 2023 | X11: 2024 | Y11: 2025 | Z11: 2026 | AA11: 2027 | AB11: 2028 | AC11: 2029 | AD11: 2030
A12: Note: Project Costs exclude admin & control costs | G12: -3 | H12: -2 | I12: -1 | J12: 0 | K12: 1 | L12: 2 | M12: 3 | N12: 4 | O12: 5 | P12: 6 | Q12: 7 | R12: 8 | S12: 9 | T12: 10 | U12: 11 | V12: 12 | W12: 13 | X12: 14 | Y12: 15 | Z12: 16 | AA12: 17 | AB12: 18 | AC12: 19 | AD12: 20
A13: Net benefits | J13: =J37-J15 -> 0 | K13: =K37-K15 -> -3915851.543 | L13: =L37-L15 -> -651926.5115 | M13: -609540.066 | N13: -124593.5644 | O13: 4198091.252 | P13: 7567713.945 | Q13: 8535244.204 | R13: 10348342.2 | S13: 8679537.625 | T13: 22263384.75 | U13: 10571575.76 | V13: 20397935.53 | W13: 1477385.61 | X13: 15011532.39 | Y13: 4441728.007 | Z13: 6147259.934 | AA13: 16046398.88 | AB13: 22426364.27 | AC13: 19087882.58 | AD13: 8520458.717
A15: Total costs (incl. admin & controls) by year, const. 2009 $, deflated with PHP inflation | J15: =J18+J30 -> 0 | K15: =K18+K30 -> 3915851.543 | L15: =L18+L30 -> 651926.5115 | M15: 609540.066 | N15: 554377.1662 | O15: 554377.1662 | P15: 554377.1662 | Q15: 554377.1662 | R15: 554377.1662 | S15: 554377.1662 | T15: 554377.1662 | U15: 554377.1662 | V15: 554377.1662 | W15: 554377.1662 | X15: 554377.1662 | Y15: 554377.1662 | Z15: 554377.1662 | AA15: 554377.1662 | AB15: 554377.1662 | AC15: 554377.1662 | AD15: 554377.1662
C16: MCC, const. 2009 $ (deflated with PHP inflation) | J16: =J19+J31 -> 0 | K16: =K19+K31 -> 3915851.543 | L16: =L19+L31 -> 122757.3841 | M16: 63782.10288 | N16: 0 | O16: 0 | P16: 0 | Q16: 0 | R16: 0 | S16: 0 | T16: 0 | U16: 0 | V16: 0 | W16: 0 | X16: 0 | Y16: 0 | Z16: 0 | AA16: 0 | AB16: 0 | AC16: 0 | AD16: 0
C17: GRP, const. 2009 $ (deflated with PHP inflation) | J17: =J20+J33 -> 0 | K17: 0 | L17: 529169.1274 | M17: 545757.9631 | N17: 554377.1662 | O17: 554377.1662 | P17: 554377.1662 | Q17: 554377.1662 | R17: 554377.1662 | S17: 554377.1662 | T17: 554377.1662 | U17: 554377.1662 | V17: 554377.1662 | W17: 554377.1662 | X17: 554377.1662 | Y17: 554377.1662 | Z17: 554377.1662 | AA17: 554377.1662 | AB17: 554377.1662 | AC17: 554377.1662 | AD17: 554377.1662
B18: Total project costs (excl. admin. & controls), const. 2009 $, deflated with PHP inflation | J18: =($F$6)*SUM(J19:J20) -> 0 | K18: =($F$6)*SUM(K19:K20) -> 3527794.183 | L18: =($F$6)*SUM(L19:L20) -> 639761.3653 | M18: 603219.317 | N18: 554377.1662 | O18: 554377.1662 | P18: 554377.1662 | Q18: 554377.1662 | R18: 554377.1662 | S18: 554377.1662 | T18: 554377.1662 | U18: 554377.1662 | V18: 554377.1662 | W18: 554377.1662 | X18: 554377.1662 | Y18: 554377.1662 | Z18: 554377.1662 | AA18: 554377.1662 | AB18: 554377.1662 | AC18: 554377.1662 | AD18: 554377.1662
C19: MCC, const. 2009 $ (deflated with PHP inflation) | I19: ` | J19: =J24+J27 -> 0 | K19: =K24+K27 -> 3527794.183 | L19: =L24+L27 -> 110592.2379 | M19: 57461.35395 | N19: 0 | O19: 0 | P19: 0 | Q19: 0 | R19: 0 | S19: 0 | T19: 0 | U19: 0 | V19: 0 | W19: 0 | X19: 0 | Y19: 0 | Z19: 0 | AA19: 0 | AB19: 0 | AC19: 0 | AD19: 0
C20: GRP, const. 2009 $ (deflated with PHP inflation) | J20: =J25+J28 -> 0 | K20: =K25+K28 -> 0 | L20: 529169.1274 | M20: 545757.9631 | N20: 554377.1662 | O20: 554377.1662 | P20: 554377.1662 | Q20: 554377.1662 | R20: 554377.1662 | S20: 554377.1662 | T20: 554377.1662 | U20: 554377.1662 | V20: 554377.1662 | W20: 554377.1662 | X20: 554377.1662 | Y20: 554377.1662 | Z20: 554377.1662 | AA20: 554377.1662 | AB20: 554377.1662 | AC20: 554377.1662 | AD20: 554377.1662
B21: Total project costs (excl. admin. & controls) | G21: =SUM(J23:O23) -> 4015805
B22: Project costs by year, const. 2009 $, deflated with PHP inflation | J22: =J24+J25 -> 0 | K22: 3527794.183 | L22: 110592.2379 | M22: 57461.35395 | N22: 0 | O22: 0
C23: MCC, current $ | J23: 0 | K23: =3619000+204000 -> 3823000 | L23: 125000 | M23: 67805 | N23: 0 | O23: 0
C24: MCC, const. 2009 $ (deflated with PHP inflation) | J24: =J23/'Assumptions & Data'!S27*100 -> 0 | K24: =K23/K41*100 -> 3527794.183 | L24: =L23/L41*100 -> 110592.2379 | M24: =M23/M41*100 -> 57461.35395 | N24: =N23/N41*100 -> 0 | O24: =O23/O41*100 -> 0
C25: GRP, const. 2009 $ (deflated with PHP inflation) | J25: 0 | K25: 0 | L25: 0 | M25: 0 | N25: 0 | O25: 0
B26: Incremental operating costs, const. 2009 $, deflated with PHP inflation | J26: =SUM(J27:J28) -> 0 | K26: =SUM(K27:K28) -> 0 | L26: =SUM(L27:L28) -> 529169.1274 | M26: =SUM(M27:M28) -> 545757.9631 | N26: 554377.1662 | O26: 554377.1662 | P26: =SUM(P27:P28) -> 554377.1662 | Q26: 554377.1662 | R26: 554377.1662 | S26: 554377.1662 | T26: 554377.1662 | U26: 554377.1662 | V26: 554377.1662 | W26: 554377.1662 | X26: 554377.1662 | Y26: 554377.1662 | Z26: 554377.1662 | AA26: 554377.1662 | AB26: 554377.1662 | AC26: 554377.1662 | AD26: 554377.1662
C27: MCC, const. 2009 $ (deflated with PHP inflation) | J27: 0 | K27: 0 | L27: 0 | M27: 0 | N27: 0 | O27: 0 | P27: 0 | Q27: 0 | R27: 0 | S27: 0 | T27: 0 | U27: 0 | V27: 0 | W27: 0 | X27: 0 | Y27: 0 | Z27: 0 | AA27: 0 | AB27: 0 | AC27: 0 | AD27: 0
C28: GRP, const. 2009 $ (deflated with PHP inflation) | J28: 0 | K28: =$G$29*SUM($J$22:J22) -> 0 | L28: =$G$29*SUM($J$22:K22) -> 529169.1274 | M28: =$G$29*SUM($J$22:L22) -> 545757.9631 | N28: =$G$29*SUM($J$22:M22) -> 554377.1662 | O28: =$G$29*SUM($J$22:N22) -> 554377.1662 | P28: =$G$29*SUM($J$22:O22) -> 554377.1662 | Q28: =$G$29*SUM($J$22:P22) -> 554377.1662 | R28: =$G$29*SUM($J$22:Q22) -> 554377.1662 | S28: =$G$29*SUM($J$22:R22) -> 554377.1662 | T28: =$G$29*SUM($J$22:S22) -> 554377.1662 | U28: =$G$29*SUM($J$22:T22) -> 554377.1662 | V28: =$G$29*SUM($J$22:U22) -> 554377.1662 | W28: =$G$29*SUM($J$22:V22) -> 554377.1662 | X28: =$G$29*SUM($J$22:W22) -> 554377.1662 | Y28: =$G$29*SUM($J$22:X22) -> 554377.1662 | Z28: =$G$29*SUM($J$22:Y22) -> 554377.1662 | AA28: =$G$29*SUM($J$22:Z22) -> 554377.1662 | AB28: =$G$29*SUM($J$22:AA22) -> 554377.1662 | AC28: =$G$29*SUM($J$22:AB22) -> 554377.1662 | AD28: =$G$29*SUM($J$22:AC22) -> 554377.1662
C29: Assumed % of project costs to date, lagged one year | G29: ='Combined Cost-Benefit'!G47 -> 0.15
B30: Administration & controls, const. 2009 $, deflated with PHP inflation | J30: =J31+J33 -> 0 | K30: 388057.3601 | L30: 12165.14617 | M30: 6320.748934 | N30: 0 | O30: 0
C31: MCC, const. 2009 $ (deflated with PHP inflation) | J31: =$G$32*J22 -> 0 | K31: 388057.3601 | L31: 12165.14617 | M31: 6320.748934 | N31: 0 | O31: 0
C32: Assumed % of project costs each year | G32: ='Assumptions & Data'!G59 -> 0.11
C33: GRP, const. 2009 $ (deflated with PHP inflation) | J33: 0 | K33: 0 | L33: 0 | M33: 0 | N33: 0 | O33: 0 | P33: 0 | Q33: 0 | R33: 0 | S33: 0 | T33: 0 | U33: 0 | V33: 0 | W33: 0 | X33: 0 | Y33: 0 | Z33: 0 | AA33: 0 | AB33: 0 | AC33: 0 | AD33: 0
B35: Cost sensitivity factor | G35: 1
A37: Benefits | J37: =($F$7*J64) -> 0 | K37: =($F$7*K64) -> 0 | L37: =($F$7*L64) -> 0 | M37: 0 | N37: 429783.6018 | O37: 4752468.418 | P37: 8122091.111 | Q37: 9089621.37 | R37: 10902719.37 | S37: 9233914.791 | T37: 22817761.92 | U37: 11125952.92 | V37: 20952312.69 | W37: 2031762.777 | X37: 15565909.55 | Y37: 4996105.173 | Z37: 6701637.1 | AA37: 16600776.05 | AB37: 22980741.43 | AC37: 19642259.75 | AD37: 9074835.884
A38: Parameters
B39: Tax/GDP ratio
B40: GDP deflator (US; base year = 2009) | G40: ='Assumptions & Data'!P13 -> 96.33491104 | H40: ='Assumptions & Data'!Q13 -> 98.42519685 | I40: ='Assumptions & Data'!R13 -> 100 | J40: ='Assumptions & Data'!S13 -> 101.5 | K40: ='Assumptions & Data'!T13 -> 103.124 | L40: ='Assumptions & Data'!U13 -> 104.980232 | M40: ='Assumptions & Data'!V13 -> 106.9748564 | N40: ='Assumptions & Data'!W13 -> 109.1143535 | O40: ='Assumptions & Data'!X13 -> 111.2966406 | P40: ='Assumptions & Data'!Y13 -> 113.5225734 | Q40: ='Assumptions & Data'!Z13 -> 115.7930249 | R40: ='Assumptions & Data'!AA13 -> 118.1088854 | S40: ='Assumptions & Data'!AB13 -> 120.4710631 | T40: ='Assumptions & Data'!AC13 -> 122.8804844 | U40: ='Assumptions & Data'!AD13 -> 125.338094 | V40: ='Assumptions & Data'!AE13 -> 127.8448559 | W40: ='Assumptions & Data'!AF13 -> 130.401753 | X40: ='Assumptions & Data'!AG13 -> 133.0097881 | Y40: ='Assumptions & Data'!AH13 -> 135.6699839 | Z40: ='Assumptions & Data'!AI13 -> 138.3833835 | AA40: ='Assumptions & Data'!AJ13 -> 141.1510512 | AB40: ='Assumptions & Data'!AK13 -> 143.9740722 | AC40: ='Assumptions & Data'!AL13 -> 146.8535537 | AD40: ='Assumptions & Data'!AM13 -> 149.7906248
B41: GDP deflator (Philippines; base year = 2009) | G41: ='Assumptions & Data'!P27 -> 90.45303893 | H41: ='Assumptions & Data'!Q27 -> 97.27626459 | I41: ='Assumptions & Data'!R27 -> 100 | J41: ='Assumptions & Data'!S27 -> 104 | K41: ='Assumptions & Data'!T27 -> 108.368 | L41: ='Assumptions & Data'!U27 -> 113.027824 | M41: ='Assumptions & Data'!V27 -> 118.0010483 | N41: ='Assumptions & Data'!W27 -> 123.3110954 | O41: ='Assumptions & Data'!X27 -> 128.8600947 | P41: ='Assumptions & Data'!Y27 -> 134.658799 | Q41: ='Assumptions & Data'!Z27 -> 140.7184449 | R41: ='Assumptions & Data'!AA27 -> 147.050775 | S41: ='Assumptions & Data'!AB27 -> 153.6680598 | T41: ='Assumptions & Data'!AC27 -> 160.5831225 | U41: ='Assumptions & Data'!AD27 -> 167.809363 | V41: ='Assumptions & Data'!AE27 -> 175.3607844 | W41: ='Assumptions & Data'!AF27 -> 183.2520197 | X41: ='Assumptions & Data'!AG27 -> 191.4983606 | Y41: ='Assumptions & Data'!AH27 -> 200.1157868 | Z41: ='Assumptions & Data'!AI27 -> 209.1209972 | AA41: ='Assumptions & Data'!AJ27 -> 218.5314421 | AB41: ='Assumptions & Data'!AK27 -> 228.365357 | AC41: ='Assumptions & Data'!AL27 -> 238.641798 | AD41: ='Assumptions & Data'!AM27 -> 249.3806789
B42: Foreign direct investment, net inflows (% of GDP)
C43: Average (1970-2007) | F43: % of GDP | G43: 0.01101727635
C44: Standard deviation (1970-2007) | F44: % of GDP | G44: 0.03993077624
B45: Real GDP growth rate (WOP) | F45: % | G45: ='Assumptions & Data'!P7 -> 0.07078815329 | H45: ='Assumptions & Data'!Q7 -> 0.03838987593 | I45: ='Assumptions & Data'!R7 -> 0.015 | J45: ='Assumptions & Data'!S7 -> 0.035 | K45: ='Assumptions & Data'!T7 -> 0.041 | L45: ='Assumptions & Data'!U7 -> 0.043 | M45: ='Assumptions & Data'!V7 -> 0.044 | N45: ='Assumptions & Data'!W7 -> 0.045 | O45: ='Assumptions & Data'!X7 -> 0.045 | P45: ='Assumptions & Data'!Y7 -> 0.045 | Q45: ='Assumptions & Data'!Z7 -> 0.045 | R45: ='Assumptions & Data'!AA7 -> 0.045 | S45: ='Assumptions & Data'!AB7 -> 0.045 | T45: ='Assumptions & Data'!AC7 -> 0.045 | U45: ='Assumptions & Data'!AD7 -> 0.045 | V45: ='Assumptions & Data'!AE7 -> 0.045 | W45: ='Assumptions & Data'!AF7 -> 0.045 | X45: ='Assumptions & Data'!AG7 -> 0.045 | Y45: ='Assumptions & Data'!AH7 -> 0.045 | Z45: ='Assumptions & Data'!AI7 -> 0.045 | AA45: ='Assumptions & Data'!AJ7 -> 0.045 | AB45: ='Assumptions & Data'!AK7 -> 0.045 | AC45: ='Assumptions & Data'!AL7 -> 0.045 | AD45: ='Assumptions & Data'!AM7 -> 0.045
B46: Real GDP (WOP) | F46: const. 2009 $ | G46: ='Assumptions & Data'!P14 -> 1.495228274e+11 | H46: ='Assumptions & Data'!Q14 -> 1.695797433e+11 | I46: ='Assumptions & Data'!R14 -> 1.66570519e+11 | J46: ='Assumptions & Data'!S14 -> 1.766468046e+11 | K46: ='Assumptions & Data'!T14 -> 1.885951527e+11 | L46: ='Assumptions & Data'!U14 -> 2.015354109e+11 | M46: ='Assumptions & Data'!V14 -> 2.155649652e+11 | N46: ='Assumptions & Data'!W14 -> 2.307865992e+11 | O46: ='Assumptions & Data'!X14 -> 2.470830745e+11 | P46: ='Assumptions & Data'!Y14 -> 2.645302886e+11 | Q46: ='Assumptions & Data'!Z14 -> 2.832094985e+11 | R46: ='Assumptions & Data'!AA14 -> 3.032076986e+11 | S46: ='Assumptions & Data'!AB14 -> 3.246180265e+11 | T46: ='Assumptions & Data'!AC14 -> 3.475401965e+11 | U46: ='Assumptions & Data'!AD14 -> 3.720809638e+11 | V46: ='Assumptions & Data'!AE14 -> 3.98354622e+11 | W46: ='Assumptions & Data'!AF14 -> 4.264835354e+11 | X46: ='Assumptions & Data'!AG14 -> 4.565987086e+11 | Y46: ='Assumptions & Data'!AH14 -> 4.888403968e+11 | Z46: ='Assumptions & Data'!AI14 -> 5.233587592e+11 | AA46: ='Assumptions & Data'!AJ14 -> 5.603145578e+11 | AB46: ='Assumptions & Data'!AK14 -> 5.998799069e+11 | AC46: ='Assumptions & Data'!AL14 -> 6.422390738e+11 | AD46: ='Assumptions & Data'!AM14 -> 6.875893378e+11
B47: Real GDP (WOP) | F47: const. 2009 $, deflated with PHP inflation | G47: ='Assumptions & Data'!P15 -> 1.592458191e+11 | H47: ='Assumptions & Data'!Q15 -> 1.715826536e+11 | I47: ='Assumptions & Data'!R15 -> 1.66570519e+11 | J47: ='Assumptions & Data'!S15 -> 1.724004871e+11 | K47: ='Assumptions & Data'!T15 -> 1.794689071e+11 | L47: ='Assumptions & Data'!U15 -> 1.871860701e+11 | M47: ='Assumptions & Data'!V15 -> 1.954222572e+11 | N47: ='Assumptions & Data'!W15 -> 2.042162588e+11 | O47: ='Assumptions & Data'!X15 -> 2.134059904e+11 | P47: ='Assumptions & Data'!Y15 -> 2.2300926e+11 | Q47: ='Assumptions & Data'!Z15 -> 2.330446767e+11 | R47: ='Assumptions & Data'!AA15 -> 2.435316871e+11 | S47: ='Assumptions & Data'!AB15 -> 2.544906131e+11 | T47: ='Assumptions & Data'!AC15 -> 2.659426906e+11 | U47: ='Assumptions & Data'!AD15 -> 2.779101117e+11 | V47: ='Assumptions & Data'!AE15 -> 2.904160668e+11 | W47: ='Assumptions & Data'!AF15 -> 3.034847898e+11 | X47: ='Assumptions & Data'!AG15 -> 3.171416053e+11 | Y47: ='Assumptions & Data'!AH15 -> 3.314129775e+11 | Z47: ='Assumptions & Data'!AI15 -> 3.463265615e+11 | AA47: ='Assumptions & Data'!AJ15 -> 3.619112568e+11 | AB47: ='Assumptions & Data'!AK15 -> 3.781972633e+11 | AC47: ='Assumptions & Data'!AL15 -> 3.952161402e+11 | AD47: ='Assumptions & Data'!AM15 -> 4.130008665e+11
B48: Phasing in of benefits (% of full benefits realized) | G48: 0 | H48: 0 | I48: 0 | J48: 0 | K48: 0 | L48: 0 | M48: 0 | N48: 0.2 | O48: 0.4 | P48: 0.6 | Q48: 0.8 | R48: 1 | S48: 1 | T48: 1 | U48: 1 | V48: 1 | W48: 1 | X48: 1 | Y48: 1 | Z48: 1 | AA48: 1 | AB48: 1 | AC48: 1 | AD48: 1
A50: Total benefits
B51: Business & investor confidence
C52: RIPS influence on BIR corruption perception | G52: 0.15
C53: Fraction of perceived corruption rating accounted for by BIR | G53: 0.1
C54: Standard deviation of FDI inflows / GDP, 1970-2008 | G54: ='1970-2008 Raw Data'!Y124*100 -> 0 | H54: percentage points
C55: Frac. of variation in FDI/GDP expl. by perceived corruption ratings | G55: ='ERR & Sensitivity Analysis'!G17 -> 0.25
C56: OLS regression coef't rGDP growth vs. FDI/GDP | G56: ='1970-2008 Raw Data'!C85 -> 0.6519969371
C58: FDI inflows / GDP, WOP | H58: ='1970-2008 Raw Data'!Y122 -> 0 | I58: 0.009248109323 | J58: 0.02470603174 | K58: 0.01322365531 | L58: 0.01196075197 | M58: 0.01197776048 | N58: 0.004303806197 | O58: 0.02277067049 | P58: 0.0248265794 | Q58: 0.01994067226 | R58: 0.01831059821 | S58: 0.01484011517 | T58: 0.03509200339 | U58: 0.0163740475 | V58: 0.02950764191 | W58: 0.002738162677 | X58: 0.02007448716 | Y58: 0.00616574044 | Z58: 0.007914405217 | AA58: 0.01876071889 | AB58: 0.02485242839 | AC58: 0.02032731205 | AD58: 0.008986922438
C59: FDI inflows / GDP explained by perceived corruption ratings | H59: =$G$55*H58 -> 0 | I59: 0.002312027331 | J59: 0.006176507936 | K59: 0.003305913828 | L59: 0.002990187993 | M59: 0.002994440119 | N59: 0.001075951549 | O59: 0.005692667622 | P59: 0.00620664485 | Q59: 0.004985168066 | R59: 0.004577649553 | S59: 0.003710028793 | T59: 0.008773000848 | U59: 0.004093511875 | V59: 0.007376910476 | W59: 0.0006845406693 | X59: 0.00501862179 | Y59: 0.00154143511 | Z59: 0.001978601304 | AA59: 0.004690179721 | AB59: 0.006213107098 | AC59: 0.005081828011 | AD59: 0.00224673061
D60: Average (cf. stdev of FDI inflows / GDP, 1970-2008, above) | G60: =AVERAGE(H59:AD59) -> 0.003988071963
C61: FDI inflows / GDP explained by BIR | J61: =$G$53*J59 -> 0.0006176507936 | K61: 0.0003305913828 | L61: 0.0002990187993 | M61: 0.0002994440119 | N61: 0.0001075951549 | O61: 0.0005692667622 | P61: 0.000620664485 | Q61: 0.0004985168066 | R61: 0.0004577649553 | S61: 0.0003710028793 | T61: 0.0008773000848 | U61: 0.0004093511875 | V61: 0.0007376910476 | W61: 6.845406693e-05 | X61: 0.000501862179 | Y61: 0.000154143511 | Z61: 0.0001978601304 | AA61: 0.0004690179721 | AB61: 0.0006213107098 | AC61: 0.0005081828011 | AD61: 0.000224673061
C62: FDI inflows / GDP explained by RIPS (= WP-WOP increment in FDI inflows / GDP) | J62: =$G$52*J61 -> 9.264761903e-05 | K62: 4.958870743e-05 | L62: 4.485281989e-05 | M62: 4.491660179e-05 | N62: 1.613927324e-05 | O62: 8.539001433e-05 | P62: 9.309967275e-05 | Q62: 7.477752099e-05 | R62: 6.866474329e-05 | S62: 5.565043189e-05 | T62: 0.0001315950127 | U62: 6.140267813e-05 | V62: 0.0001106536571 | W62: 1.026811004e-05 | X62: 7.527932685e-05 | Y62: 2.312152665e-05 | Z62: 2.967901956e-05 | AA62: 7.035269582e-05 | AB62: 9.319660646e-05 | AC62: 7.622742017e-05 | AD62: 3.370095914e-05
C63: rGDP growth explained by RIPS (= incremental rGDP growth WP) | J63: =$G$56*J62 -> 6.040596384e-05 | K63: 3.233168536e-05 | L63: 2.924390119e-05 | M63: 2.928548679e-05 | N63: 1.052275672e-05 | O63: 5.567402781e-05 | P63: 6.070070148e-05 | Q63: 4.875471465e-05 | R63: 4.476920231e-05 | S63: 3.628391114e-05 | T63: 8.579954523e-05 | U63: 4.003435807e-05 | V63: 7.214584554e-05 | W63: 6.694776296e-06 | X63: 4.908189053e-05 | Y63: 1.507516456e-05 | Z63: 1.935062985e-05 | AA63: 4.586974219e-05 | AB63: 6.076390197e-05 | AC63: 4.970004448e-05 | AD63: 2.197292214e-05
C64: rGDP explained by RIPS (= incremental rGDP growth WP) | J64: =J47*J48*J63 -> 0 | K64: =K47*K48*K63 -> 0 | L64: =L47*L48*L63 -> 0 | M64: 0 | N64: 429783.6018 | O64: 4752468.418 | P64: 8122091.111 | Q64: 9089621.37 | R64: 10902719.37 | S64: 9233914.791 | T64: 22817761.92 | U64: 11125952.92 | V64: 20952312.69 | W64: 2031762.777 | X64: 15565909.55 | Y64: 4996105.173 | Z64: 6701637.1 | AA64: 16600776.05 | AB64: 22980741.43 | AC64: 19642259.75 | AD64: 9074835.884

Sheet Assumptions & Data
B1: Philippines: Revenue Administration Reform Project (RARP) | N1: Last updated: May 2017
B2: =IF('ERR & Sensitivity Analysis'!I12="y",IF('ERR & Sensitivity Analysis'!I16="y","","Note: Current calculations are based on user input and are not the original MCC estimates"),"Note: Current calculations are based on user input and are not the original MCC estimates") -> 
A3: (Unless otherwise indicated, monetary figures in constant 2009 US dollars)
G4: Year
A5: Time Series | F5: Units | G5: 1998 | H5: 1999 | I5: 2000 | J5: 2001 | K5: 2002 | L5: 2003 | M5: 2004 | N5: 2005 | O5: 2006 | P5: 2007 | Q5: 2008 | R5: 2009 | S5: 2010 | T5: 2011 | U5: 2012 | V5: 2013 | W5: 2014 | X5: 2015 | Y5: 2016 | Z5: 2017 | AA5: 2018 | AB5: 2019 | AC5: 2020 | AD5: 2021 | AE5: 2022 | AF5: 2023 | AG5: 2024 | AH5: 2025 | AI5: 2026 | AJ5: 2027 | AK5: 2028 | AL5: 2029 | AM5: 2030
A6: Official exchange rate | F6: PHP/$ | G6: 40.89305 | H6: 39.08898333 | I6: 44.19225 | J6: 50.99265 | K6: 51.60356667 | L6: 54.20333333 | M6: 56.03991667 | N6: 55.08549167 | O6: 51.3142725 | P6: 46.14839118 | Q6: 44.47456093 | R6: 46.5 | S6: =R6 -> 46.5 | T6: =S6 -> 46.5 | U6: 46.5 | V6: 46.5 | W6: 46.5 | X6: 46.5 | Y6: 46.5 | Z6: 46.5 | AA6: 46.5 | AB6: 46.5 | AC6: 46.5 | AD6: 46.5 | AE6: 46.5 | AF6: 46.5 | AG6: 46.5 | AH6: 46.5 | AI6: 46.5 | AJ6: 46.5 | AK6: =AJ6 -> 46.5 | AL6: 46.5 | AM6: 46.5
A7: Real GDP growth rate | F7: % | G7: =-0.576722189193092/100 -> -0.005767221892 | H7: 0.03396396396 | I7: 0.05968458656 | J7: 0.01755673409 | K7: 0.04449407197 | L7: 0.04929730692 | M7: 0.06379490374 | N7: 0.04951869149 | O7: 0.05341017507 | P7: 0.07078815329 | Q7: 0.03838987593 | R7: 0.015 | S7: 0.035 | T7: 0.041 | U7: 0.043 | V7: 0.044 | W7: 0.045 | X7: =W7 -> 0.045 | Y7: =X7 -> 0.045 | Z7: 0.045 | AA7: 0.045 | AB7: 0.045 | AC7: 0.045 | AD7: 0.045 | AE7: 0.045 | AF7: 0.045 | AG7: 0.045 | AH7: 0.045 | AI7: 0.045 | AJ7: 0.045 | AK7: 0.045 | AL7: 0.045 | AM7: 0.045
A8: GDP (base year = 1985) | F8: const. 1985 PHP | G8: =G10/(G9/100) -> 8.88e+11 | H8: =H10/(H9/100) -> 9.1816e+11 | I8: 9.7296e+11 | J8: 9.90042e+11 | K8: 1.034093e+12 | L8: 1085071000000 | M8: 1.154293e+12 | N8: 1.211452079e+12 | O8: 1.276155947e+12 | P8: 1.366492669e+12 | Q8: 1.418952153e+12 | R8: =Q8*(100%+R7) -> 1.440236436e+12 | S8: 1.490644711e+12 | T8: 1.551761144e+12 | U8: 1.618486873e+12 | V8: 1.689700296e+12 | W8: 1.765736809e+12 | X8: 1.845194965e+12 | Y8: 1.928228739e+12 | Z8: 2.014999032e+12 | AA8: 2.105673989e+12 | AB8: 2.200429318e+12 | AC8: 2.299448637e+12 | AD8: 2.402923826e+12 | AE8: 2.511055398e+12 | AF8: 2.624052891e+12 | AG8: 2.742135271e+12 | AH8: 2.865531358e+12 | AI8: 2.99448027e+12 | AJ8: 3.129231882e+12 | AK8: 3.270047316e+12 | AL8: 3.417199446e+12 | AM8: 3.570973421e+12
A9: GDP deflator (Philippines; base year = 1985) | F9: # | G9: 300.1193694 | H9: 324.2250806 | I9: 344.7959834 | J9: 366.7999943 | K9: 383.318715 | L9: 397.7991302 | M9: 422.0379055 | N9: 449.381264 | O9: 472.6039926 | P9: 486.4525232 | Q9: 523.1475351 | R9: =Q9*1.028 -> 537.7956661 | S9: =R9*1.04 -> 559.3074927 | T9: =S9*1.042 -> 582.7984074 | U9: =T9*1.043 -> 607.8587389 | V9: =U9*1.044 -> 634.6045234 | W9: =V9*1.045 -> 663.161727 | X9: =W9*1.045 -> 693.0040047 | Y9: =X9*1.045 -> 724.1891849 | Z9: 756.7776982 | AA9: 790.8326947 | AB9: 826.4201659 | AC9: 863.6090734 | AD9: 902.4714817 | AE9: 943.0826984 | AF9: 985.5214198 | AG9: 1029.869884 | AH9: 1076.214028 | AI9: 1124.64366 | AJ9: 1175.252624 | AK9: 1228.138993 | AL9: 1283.405247 | AM9: 1341.158483
A10: GDP | F10: current PHP | G10: 2665060000000 | H10: 2976905000000 | I10: 3354727000000 | J10: 3631474000000 | K10: 3963872000000 | L10: 4316403000000 | M10: 4871554000000 | N10: 5.444038665e+12 | O10: 6.031163955e+12 | P10: 6.647338069e+12 | Q10: 7.423213214e+12 | R10: =R8*(R9/100) -> 7.745529132e+12 | S10: 8.337287558e+12 | T10: 9.043639234e+12 | U10: 9.838113898e+12 | V10: 1.072291451e+13 | W10: =W8*(W9/100) -> 1.170969072e+13 | X10: 1.2787275e+13 | Y10: 1.396402399e+13 | Z10: 1.524906329e+13 | AA10: 1.665235834e+13 | AB10: 1.818479162e+13 | AC10: 1.985824707e+13 | AD10: 2.168570226e+13 | AE10: 2.368132901e+13 | AF10: 2.586060331e+13 | AG10: 2.824042533e+13 | AH10: 3.083925047e+13 | AI10: 3.367723249e+13 | AJ10: 3.677637981e+13 | AK10: 4.016072617e+13 | AL10: 4.385651699e+13 | AM10: 4.789241297e+13
A11: GDP | F11: current $, offical exchange | G11: =G10/G6 -> 6.517146557e+10 | H11: =H10/H6 -> 7.615713549e+10 | I11: 7.591211129e+10 | J11: 7.121563598e+10 | K11: 7.681391532e+10 | L11: 7.963353422e+10 | M11: 8.693007217e+10 | N11: 9.882890214e+10 | O11: 1.17533849e+11 | P11: 1.440426827e+11 | Q11: 1.669091961e+11 | R11: 1.66570519e+11 | S11: 1.792965066e+11 | T11: 1.944868653e+11 | U11: 2.115723419e+11 | V11: 2.30600312e+11 | W11: 2.518213057e+11 | X11: 2.749951614e+11 | Y11: 3.003015911e+11 | Z11: 3.27936845e+11 | AA11: 3.581152332e+11 | AB11: 3.910707875e+11 | AC11: 4.270590768e+11 | AD11: 4.663591883e+11 | AE11: 5.092758926e+11 | AF11: 5.561420066e+11 | AG11: 6.073209748e+11 | AH11: 6.632096875e+11 | AI11: 7.24241559e+11 | AJ11: 7.908898885e+11 | AK11: 8.636715304e+11 | AL11: 9.43150903e+11 | AM11: 1.029944365e+12
A12: GDP deflator (US; base year = 2000) | F12: # | G12: 96.47267684 | H12: 97.86664684 | I12: 100 | J12: 102.4088059 | K12: 104.2010082 | L12: 106.4215887 | M12: 109.4786284 | N12: 113.0175515 | O12: 116.5793772 | P12: 119.676173 | Q12: 122.2729201 | R12: =Q12*101.6% -> 124.2292869 | S12: =R12*101.5% -> 126.0927262 | T12: =S12*101.6% -> 128.1102098 | U12: =T12*101.8% -> 130.4161936 | V12: =U12*101.9% -> 132.8941012 | W12: =V12*102% -> 135.5519833 | X12: =W12*102% -> 138.2630229 | Y12: =X12*102% -> 141.0282834 | Z12: 143.8488491 | AA12: 146.725826 | AB12: 149.6603426 | AC12: 152.6535494 | AD12: 155.7066204 | AE12: 158.8207528 | AF12: 161.9971679 | AG12: 165.2371112 | AH12: 168.5418534 | AI12: 171.9126905 | AJ12: 175.3509443 | AK12: 178.8579632 | AL12: 182.4351225 | AM12: 186.0838249
A13: GDP deflator (US; base year = 2009) | G13: =G12/$R$12*100 -> 77.65695133 | H13: 78.77904584 | I13: 80.49631655 | J13: 82.43531654 | K13: 83.87797344 | L13: 85.66545893 | M13: 88.12626325 | N13: 90.97496605 | O13: 93.8421045 | P13: 96.33491104 | Q13: =Q12/$R$12*100 -> 98.42519685 | R13: 100 | S13: =S12/$R$12*100 -> 101.5 | T13: 103.124 | U13: 104.980232 | V13: 106.9748564 | W13: 109.1143535 | X13: 111.2966406 | Y13: 113.5225734 | Z13: 115.7930249 | AA13: 118.1088854 | AB13: 120.4710631 | AC13: 122.8804844 | AD13: 125.338094 | AE13: 127.8448559 | AF13: 130.401753 | AG13: 133.0097881 | AH13: 135.6699839 | AI13: 138.3833835 | AJ13: 141.1510512 | AK13: 143.9740722 | AL13: 146.8535537 | AM13: 149.7906248
A14: GDP | F14: const. 2009 $ | G14: =G11/G13*100 -> 8.392225609e+10 | H14: =H11/H13*100 -> 9.667181759e+10 | I14: 9.430507449e+10 | J14: 8.638971617e+10 | K14: 9.157817263e+10 | L14: 9.295874349e+10 | M14: 9.86426395e+10 | N14: 1.086330739e+11 | O14: 1.252463909e+11 | P14: 1.495228274e+11 | Q14: 1.695797433e+11 | R14: =R11/R13*100 -> 1.66570519e+11 | S14: 1.766468046e+11 | T14: =T11/T13*100 -> 1.885951527e+11 | U14: 2.015354109e+11 | V14: 2.155649652e+11 | W14: =W11/W13*100 -> 2.307865992e+11 | X14: 2.470830745e+11 | Y14: 2.645302886e+11 | Z14: 2.832094985e+11 | AA14: 3.032076986e+11 | AB14: 3.246180265e+11 | AC14: 3.475401965e+11 | AD14: 3.720809638e+11 | AE14: 3.98354622e+11 | AF14: 4.264835354e+11 | AG14: 4.565987086e+11 | AH14: 4.888403968e+11 | AI14: 5.233587592e+11 | AJ14: 5.603145578e+11 | AK14: 5.998799069e+11 | AL14: 6.422390738e+11 | AM14: 6.875893378e+11
A15: GDP | F15: const. 2009 $, deflated with PHP inflation | G15: =G11/G27*100 -> 1.167833046e+11 | H15: 1.263226686e+11 | I15: 1.184039444e+11 | J15: 1.044151063e+11 | K15: 1.077698248e+11 | L15: 1.076587814e+11 | M15: 1.107735003e+11 | N15: 1.182731892e+11 | O15: 1.337466369e+11 | P15: 1.592458191e+11 | Q15: 1.715826536e+11 | R15: =R11/R27*100 -> 1.66570519e+11 | S15: =S11/S27*100 -> 1.724004871e+11 | T15: 1.794689071e+11 | U15: 1.871860701e+11 | V15: 1.954222572e+11 | W15: 2.042162588e+11 | X15: 2.134059904e+11 | Y15: 2.2300926e+11 | Z15: 2.330446767e+11 | AA15: 2.435316871e+11 | AB15: 2.544906131e+11 | AC15: 2.659426906e+11 | AD15: 2.779101117e+11 | AE15: 2.904160668e+11 | AF15: 3.034847898e+11 | AG15: 3.171416053e+11 | AH15: 3.314129775e+11 | AI15: 3.463265615e+11 | AJ15: 3.619112568e+11 | AK15: 3.781972633e+11 | AL15: 3.952161402e+11 | AM15: 4.130008665e+11
A16: Population | F16: # people | G16: 74587233 | H16: 76138118 | I16: 77689369 | J16: 79239125 | K16: 80788948 | L16: 82343966 | M16: 83911361 | N16: 85495923 | O16: 87099117 | P16: 88718185 | Q16: 90348440 | R16: =Q16*(1+R17) -> 91970481.69 | S16: =R16*(1+S17) -> 93598461.73 | T16: 95231997.26 | U16: 96870706.97 | V16: 98514211.33 | W16: 100162132.9 | X16: 101814096.5 | Y16: 103469729.5 | Z16: 105128662.1 | AA16: 106790527.5 | AB16: 108454961.9 | AC16: 110121605.1 | AD16: 111790100.4 | AE16: 113460095 | AF16: 115131240 | AG16: 116803190.6 | AH16: 118475606.2 | AI16: 120148150.7 | AJ16: 121820492.8 | AK16: 123492305.6 | AL16: 125163267.1 | AM16: 126833060.3
A17: Population growth rate | F17: % | G17: 0.02097439788 | H17: 0.02057967987 | I17: 0.02016939388 | J17: 0.01975175246 | K17: 0.01936999463 | L17: 0.01906500733 | M17: 0.01885583419 | N17: 0.01870767509 | O17: 0.01857805544 | P17: 0.01841813918 | Q17: 0.01820883228 | R17: =Q17*(100%+$Q$18) -> 0.01795317876 | S17: 0.01770111463 | T17: 0.0174525895 | U17: 0.01720755368 | V17: 0.01696595819 | W17: 0.01672775472 | X17: 0.01649289565 | Y17: 0.01626133402 | Z17: 0.01603302353 | AA17: 0.01580791854 | AB17: 0.01558597404 | AC17: 0.01536714566 | AD17: 0.01515138965 | AE17: 0.01493866288 | AF17: 0.0147289228 | AG17: 0.0145221275 | AH17: 0.01431823561 | AI17: 0.01411720639 | AJ17: 0.01391899963 | AK17: 0.01372357571 | AL17: 0.01353089556 | AM17: 0.01334092066
B18: CAGR in population growth rate (1998-2008) | F18: % | Q18: =(Q17/G17)^(1/(Q5-G5))-1 -> -0.01404008355
A19: Real interest rate (%) | G19: 0.05721601948 | H19: 0.03465831819 | I19: 0.04290403027 | J19: 0.05658710626 | K19: 0.04435290037 | L19: 0.05486753026 | M19: 0.03756866118 | N19: 0.03480530157 | O19: 0.04384382621 | P19: 0.05597144688 | Q19: 0.01122982215
B20: Average, 1998-2008 | G20: =AVERAGE(G19:Q19) -> 0.04309136026
A21: CPI (Philippines; base year = 2005) | G21: 69.94479394 | H21: 74.10450636 | I21: 77.02529208 | J21: 82.23777122 | K21: 84.70920529 | L21: 87.72628065 | M21: 92.89382462 | N21: 100 | O21: 106.2588266 | P21: 109.2052895 | Q21: 119.3606368 | R21: =Q21*(1+R22) -> 126.522275 | S21: =R21*(1+S22) -> 130.9505546 | T21: =S21*(1+T22) -> 135.533824 | U21: =T21*(1+U22) -> 140.2775079 | V21: =U21*(1+V22) -> 145.1872207
B22: Annual change in CPI, % | R22: 0.06 | S22: 0.035 | T22: 0.035 | U22: 0.035 | V22: 0.035 | W22: =V22 -> 0.035 | X22: =W22 -> 0.035 | Y22: =X22 -> 0.035 | Z22: 0.035 | AA22: 0.035 | AB22: 0.035 | AC22: 0.035 | AD22: 0.035 | AE22: 0.035 | AF22: 0.035 | AG22: 0.035 | AH22: 0.035 | AI22: 0.035 | AJ22: 0.035 | AK22: 0.035 | AL22: 0.035 | AM22: 0.035
A24: Data series for BA
B25: Final consumption expenditure, etc. (annual % growth) | F25: % | G25: 0.06252227303 | H25: 0.00889858093 | I25: -0.04438629806 | J25: 0.0861680537 | K25: 0.07650751779 | L25: 0.08877754125 | M25: 0.01760972044 | N25: 0.06628175903 | O25: -0.00925888045 | P25: 0.0007711442219 | Q25: 0.07124763684 | R25: =AVERAGE(G25:Q25) -> 0.03864900443 | S25: =R25 -> 0.03864900443 | T25: =S25 -> 0.03864900443 | U25: 0.03864900443 | V25: 0.03864900443 | W25: 0.03864900443 | X25: 0.03864900443 | Y25: 0.03864900443 | Z25: 0.03864900443 | AA25: 0.03864900443 | AB25: 0.03864900443 | AC25: 0.03864900443 | AD25: 0.03864900443 | AE25: 0.03864900443 | AF25: 0.03864900443 | AG25: 0.03864900443 | AH25: 0.03864900443 | AI25: 0.03864900443 | AJ25: 0.03864900443 | AK25: 0.03864900443 | AL25: 0.03864900443 | AM25: 0.03864900443
B26: GDP deflator (Philippines; base year = 2005) | F26: # | G26: =G9/$N$9*100 -> 66.78502052 | H26: =H9/$N$9*100 -> 72.14922084 | I26: 76.72682664 | J26: 81.6233394 | K26: =K9/$N$9*100 -> 85.29922045 | L26: 88.52152105 | M26: 93.91533187 | N26: =N9/$N$9*100 -> 100 | O26: =O9/$N$9*100 -> 105.1677118 | P26: 108.2494003 | Q26: 116.4150749 | R26: 119.674697 | S26: 124.4616849 | T26: 129.6890756 | U26: 135.2657059 | V26: 141.217397 | W26: 147.5721798 | X26: 154.2129279 | Y26: 161.1525097 | Z26: 168.4043726 | AA26: 175.9825694 | AB26: 183.901785 | AC26: 192.1773653 | AD26: 200.8253468 | AE26: 209.8624874 | AF26: 219.3062993 | AG26: 229.1750828 | AH26: 239.4879615 | AI26: 250.2649197 | AJ26: 261.5268411 | AK26: 273.295549 | AL26: 285.5938487 | AM26: 298.4455719
B27: GDP deflator (Philippines; base year = 2009) | G27: =G26/$R$26*100 -> 55.80546447 | H27: 60.28778234 | I27: 64.11282298 | J27: 68.20434181 | K27: 71.27590258 | L27: 73.9684522 | M27: 78.47551256 | N27: 83.55985226 | O27: 87.87798459 | P27: 90.45303893 | Q27: 97.27626459 | R27: 100 | S27: =S26/$R$26*100 -> 104 | T27: 108.368 | U27: 113.027824 | V27: 118.0010483 | W27: 123.3110954 | X27: 128.8600947 | Y27: 134.658799 | Z27: 140.7184449 | AA27: 147.050775 | AB27: 153.6680598 | AC27: 160.5831225 | AD27: 167.809363 | AE27: 175.3607844 | AF27: 183.2520197 | AG27: 191.4983606 | AH27: 200.1157868 | AI27: 209.1209972 | AJ27: 218.5314421 | AK27: 228.365357 | AL27: 238.641798 | AM27: 249.3806789
B28: Inflation factors for PHP relative to 2009 | F28: % | G28: =G26/$R$26 -> 0.5580546447 | H28: 0.6028778234 | I28: 0.6411282298 | J28: 0.6820434181 | K28: 0.7127590258 | L28: 0.739684522 | M28: 0.7847551256 | N28: 0.8355985226 | O28: 0.8787798459 | P28: 0.9045303893 | Q28: 0.9727626459 | R28: =R26/$R$26 -> 1 | S28: =S26/$R$26 -> 1.04 | T28: 1.08368 | U28: 1.13027824 | V28: 1.180010483 | W28: 1.233110954 | X28: 1.288600947 | Y28: 1.34658799 | Z28: 1.407184449 | AA28: 1.47050775 | AB28: 1.536680598 | AC28: 1.605831225 | AD28: 1.67809363 | AE28: 1.753607844 | AF28: 1.832520197 | AG28: 1.914983606 | AH28: 2.001157868 | AI28: 2.091209972 | AJ28: 2.185314421 | AK28: 2.28365357 | AL28: 2.38641798 | AM28: 2.493806789
B29: GDP per capita | F29: current PHP | G29: =G10/G16 -> 35730.77982 | H29: 39098.74683 | I29: 43181.28778 | J29: 45829.30465 | K29: 49064.53294 | L29: 52419.17787 | M29: 58055.95264 | N29: 63676.00319 | O29: 69244.83465 | P29: 74926.44342 | Q29: 82162.05188 | R29: 84217.55535 | S29: 89075.04892 | T29: 94964.29241 | U29: 101559.2247 | V29: 108846.3722 | W29: 116907.3619 | X29: 125594.3474 | Y29: 134957.577 | Z29: 145051.4349 | AA29: 155934.7888 | AB29: 167671.3662 | AC29: 180330.1637 | AD29: 193985.8912 | AE29: 208719.4533 | AF29: 224618.4729 | AG29: 241777.8589 | AH29: 260300.4236 | AI29: 280297.5517 | AJ29: 301889.9281 | AK29: 325208.3276 | AL29: 350394.4729 | AM29: 377601.9664
B30: GDP per capita | F30: const. 2005 PHP | G30: =G29/G26*100 -> 53501.18866 | H30: 54191.50252 | I30: 56279.25677 | J30: 56147.30417 | K30: 57520.49395 | L30: 59216.30949 | M30: 61817.33215 | N30: 63676.00319 | O30: 65842.29463 | P30: 69216.4975 | Q30: 70576.81486 | R30: =R29/R26*100 -> 70372.06482 | S30: 71568.24931 | T30: 73224.58884 | U30: 75081.28098 | V30: 77077.16931 | W30: 79220.46148 | X30: 81442.16512 | Y30: 83745.25302 | Z30: 86132.81988 | AA30: 88608.08735 | AB30: 91174.4093 | AC30: 93835.27734 | AD30: 96594.32654 | AE30: 99455.34142 | AF30: 102422.2622 | AG30: 105499.1913 | AH30: 108690.4001 | AI30: 112000.3363 | AJ30: 115433.6307 | AK30: 118995.1058 | AL30: 122689.7829 | AM30: 126522.8913
C31: Annual growth rate | H31: =(H30-G30)/G30 -> 0.01290277616 | I31: =(I30-H30)/H30 -> 0.03852549111 | J31: -0.002344604472 | K31: 0.02445691372 | L31: 0.02948193636 | M31: 0.04392409253 | N31: 0.03006715066 | O31: 0.03402053106 | P31: 0.05124673871 | Q31: 0.01965307995 | R31: -0.002901094882 | S31: 0.01699800179 | T31: 0.02314349656 | U31: 0.02535612936 | V31: 0.02658303514 | W31: 0.02780709501 | X31: 0.02804456821 | Y31: 0.02827881473 | Z31: 0.02850987694 | AA31: 0.02873779671 | AB31: =(AB30-AA30)/AA30 -> 0.02896261539 | AC31: 0.02918437381 | AD31: 0.02940311233 | AE31: 0.0296188708 | AF31: 0.02983168856 | AG31: 0.03004160449 | AH31: 0.03024865699 | AI31: 0.03045288396 | AJ31: 0.03065432286 | AK31: 0.03085301066 | AL31: 0.03104898388 | AM31: 0.03124227858
B32: GDP per capita, PPP | F32: const. 2005 int'l $ | G32: 2459.27215 | H32: 2491.003588 | I32: 2586.970724 | J32: 2580.905301 | K32: 2644.02628 | L32: 2721.977294 | M32: 2841.537677 | N32: 2926.974618 | O32: 3026.551849 | P32: 3181.652761 | Q32: 3244.182145 | R32: =R30/R34 -> 3234.770464 | S32: =S30/S34 -> 3289.755098 | T32: =T30/T34 -> 3365.891534 | U32: 3451.237515 | V32: 3542.981884 | W32: 3641.501917 | X32: 3743.626266 | Y32: 3849.49158 | Z32: 3959.240111 | AA32: 4073.019949 | AB32: 4190.985259 | AC32: 4313.296539 | AD32: 4440.120882 | AE32: 4571.632249 | AF32: 4708.011758 | AG32: 4849.447985 | AH32: 4996.137274 | AI32: 5148.284063 | AJ32: 5306.101225 | AK32: 5469.810422 | AL32: 5639.642478 | AM32: 5815.837759
C33: CAGR, 1998-2008 | G33: =(Q32/G32)^(1/(Q5-G5))-1 -> 0.02808699102
B34: PPP exchange rate | F34: PHP/(2005 int'l $) | G34: =G30/G32 -> 21.75488738 | H34: =H30/H32 -> 21.75488738 | I34: 21.75488738 | J34: 21.75488738 | K34: 21.75488738 | L34: 21.75488738 | M34: 21.75488738 | N34: 21.75488738 | O34: 21.75488738 | P34: 21.75488738 | Q34: =Q30/Q32 -> 21.75488666 | R34: =Q34 -> 21.75488666 | S34: =R34 -> 21.75488666 | T34: 21.75488666 | U34: 21.75488666 | V34: 21.75488666 | W34: 21.75488666 | X34: 21.75488666 | Y34: 21.75488666 | Z34: 21.75488666 | AA34: 21.75488666 | AB34: 21.75488666 | AC34: 21.75488666 | AD34: 21.75488666 | AE34: 21.75488666 | AF34: 21.75488666 | AG34: 21.75488666 | AH34: 21.75488666 | AI34: 21.75488666 | AJ34: 21.75488666 | AK34: 21.75488666 | AL34: 21.75488666 | AM34: 21.75488666
B35: GDP per capita | F35: const. 2009 $ | G35: =G14/G16 -> 1125.155777 | H35: 1269.690139 | I35: 1213.873606 | J35: 1090.240663 | K35: 1133.548275 | L35: 1128.907776 | M35: 1175.557616 | N35: 1270.622857 | O35: 1437.975437 | P35: 1685.368421 | Q35: 1876.952643 | R35: 1811.130222 | S35: 1887.283202 | T35: 1980.375904 | U35: 2080.457727 | V35: 2188.161102 | W35: =W14/W16 -> 2304.130239 | X35: 2426.806139 | Y35: 2556.595923 | Z35: 2693.932299 | AA35: 2839.275222 | AB35: 2993.113648 | AC35: 3155.967408 | AD35: 3328.389208 | AE35: 3510.966758 | AF35: 3704.325042 | AG35: 3909.128736 | AH35: 4126.084792 | AI35: 4355.945189 | AJ35: 4599.50986 | AK35: 4857.629827 | AL35: 5131.21053 | AM35: 5421.215386
C36: Annual growth rate | H36: =(H35-G35)/G35 -> 0.1284572009 | I36: =(I35-H35)/H35 -> -0.0439607514 | J36: -0.1018499311 | K36: 0.0397229836 | L36: -0.004093781762 | M36: 0.04132298631 | N36: 0.0808682106 | O36: 0.13170909 | P36: 0.1720425657 | Q36: 0.1136749805 | R36: -0.03506877017 | S36: 0.04204721366 | T36: 0.04932630257 | U36: 0.05053678086 | V36: 0.05176907624 | W36: =(W35-V35)/V35 -> 0.05299844538 | X36: 0.053241739 | Y36: 0.05348172686 | Z36: 0.05371845236 | AA36: 0.0539519584 | AB36: 0.05418228733 | AC36: 0.05440948101 | AD36: 0.05463358077 | AE36: 0.05485462743 | AF36: 0.05507266132 | AG36: 0.05528772225 | AH36: 0.05549984956 | AI36: 0.0557090821 | AJ36: 0.05591545822 | AK36: 0.05611901582 | AL36: 0.05631979231 | AM36: 0.05651782462
B37: Exchange rate | F37: (2009 $)/(2005 int'l $) | G37: =G35/G32 -> 0.4575157641 | H37: 0.5097102809 | I37: 0.4692258766 | J37: 0.4224256746 | K37: 0.4287205024 | L37: 0.414738131 | M37: 0.4137047437 | N37: 0.4341079178 | O37: 0.4751200406 | P37: 0.5297147576 | Q37: 0.5785595752 | R37: =R35/R32 -> 0.5598945095 | S37: 0.5736850147 | T37: 0.5883659304 | U37: 0.6028149955 | V37: 0.6176043722 | W37: 0.6327417343 | X37: 0.6482501101 | Y37: 0.6641385932 | Z37: 0.6804164999 | AA37: 0.6970933749 | AB37: 0.7141789968 | AC37: 0.731683384 | AD37: 0.7496168003 | AE37: 0.7679897611 | AF37: 0.7868130395 | AG37: 0.8060976729 | AH37: 0.8258549688 | AI37: 0.8460965121 | AJ37: 0.8668341717 | AK37: 0.8880801073 | AL37: 0.9098467766 | AM37: 0.9321469427
C38: (i.e., divide flows denominated in 2009 $ by this figure)
B39: Population (CIA World Factbook) | F39: # people | R39: 97976603 | S39: =R39*(1+$R$40) -> 99894005.12 | T39: =S39*(1+$R$40) -> 101848930.8 | U39: 103842114.4 | V39: 105874304.6 | W39: 107946264.7 | X39: 110058773.1 | Y39: 112212623.3 | Z39: 114408624.3 | AA39: 116647601.1 | AB39: 118930394.7 | AC39: 121257862.5 | AD39: 123630878.8 | AE39: 126050335.1 | AF39: 128517140.2 | AG39: 131032220.6 | AH39: 133596521.2 | AI39: 136211005.1 | AJ39: 138876654.5 | AK39: 141594470.6 | AL39: 144365474.4 | AM39: 147190706.7
B40: Population growth rate (CIA World Factbook) | F40: % | R40: 0.01957
B41: Exchange rate | F41: (2009 const PHP)/(2005 int'l $) | H41: (i.e., divide flows denominated in 2009 PHP by this figure)
B42: GDP | F42: constant 2009$, deflated using PHP inflation | G42: =(R21/N21)*N34 -> 27.52477844 | I42: =I11/I27*100 -> 1.184039444e+11 | J42: 1.044151063e+11 | K42: 1.077698248e+11 | L42: 1.076587814e+11 | M42: 1.107735003e+11 | N42: 1.182731892e+11 | O42: 1.337466369e+11 | P42: 1.592458191e+11 | Q42: 1.715826536e+11 | R42: =R11/R27*100 -> 1.66570519e+11 | S42: 1.724004871e+11 | T42: 1.794689071e+11 | U42: 1.871860701e+11 | V42: 1.954222572e+11 | W42: 2.042162588e+11 | X42: 2.134059904e+11 | Y42: 2.2300926e+11 | Z42: 2.330446767e+11 | AA42: 2.435316871e+11 | AB42: 2.544906131e+11 | AC42: 2.659426906e+11 | AD42: 2.779101117e+11 | AE42: 2.904160668e+11 | AF42: 3.034847898e+11 | AG42: 3.171416053e+11 | AH42: 3.314129775e+11 | AI42: 3.463265615e+11 | AJ42: 3.619112568e+11 | AK42: 3.781972633e+11 | AL42: 3.952161402e+11 | AM42: 4.130008665e+11
A44: Wage Data
B45: Accountant, private sector (bank) | F45: monthly wage (PHP) | O45: 17446
F46: annual wage (current $) | O46: =12*O45/O$6 -> 4079.800605
F47: annual wage (const. 2009 $) | R47: =O46*(R13/O13) -> 4347.516104 | S47: =R47*(1+S$36*$G$57) -> 4438.916573 | T47: =S47*(1+T$36*$G$57) -> 4548.394244 | U47: =T47*(1+U$36*$G$57) -> 4663.324846 | V47: 4784.032855 | W47: 4910.806007 | X47: 5041.535933 | Y47: 5176.350957 | Z47: 5315.383738 | AA47: 5458.771419 | AB47: 5606.65578 | AC47: 5759.183396 | AD47: 5916.505801 | AE47: 6078.779662 | AF47: 6246.166949 | AG47: 6418.835121 | AH47: 6596.957312 | AI47: 6780.712531 | AJ47: 6970.285855 | AK47: 7165.868646 | AL47: 7367.658763 | AM47: 7575.860786
F48: annual wage (const. 2009 $, deflated with PHP inflation) | R48: =O46*(R27/O27) -> 4642.57416 | S48: =R48*(1+S31*$G$57) -> 4682.031402 | T48: =S48*(1+T31*$G$57) -> 4736.210691 | U48: 4796.256676 | V48: 4860.006206 | W48: 4927.577534 | X48: 4996.673426 | Y48: 5067.323427 | Z48: 5139.55781 | AA48: 5213.407594 | AB48: 5288.904554 | AC48: 5366.081237 | AD48: 5444.970982 | AE48: 5525.607928 | AF48: 5608.027036 | AG48: 5692.264101 | AH48: 5778.355773 | AI48: 5866.339572 | AJ48: 5956.253905 | AK48: 6048.138088 | AL48: 6142.032359 | AM48: 6237.977902
B49: Office clerk, government | F49: monthly wage (PHP) | Q49: =AVERAGE(9891,15401) -> 12646
F50: annual wage (current $) | Q50: =12*Q49/Q$6 -> 3412.107884
F51: annual wage (const. 2009 $) | R51: =Q50*(R13/Q13) -> 3466.70161 | S51: =R51*(1+S$36*$G$57) -> 3539.584182 | T51: =S51*(1+T$36*$G$57) -> 3626.881482 | U51: 3718.526939 | V51: 3814.779292 | W51: 3915.867977 | X51: 4020.111788 | Y51: 4127.613048 | Z51: 4238.477541 | AA51: 4352.814623 | AB51: 4470.737349 | AC51: 4592.362598 | AD51: 4717.811205 | AE51: 4847.208093 | AF51: 4980.682418 | AG51: 5118.367711 | AH51: 5260.40203 | AI51: 5406.928114 | AJ51: 5558.093545 | AK51: 5714.050915 | AL51: 5874.957996 | AM51: 6040.977918
F52: annual wage (const. 2009 $, deflated with PHP inflation) | R52: =Q50*(R27/Q27) -> 3507.646905 | S52: =R52*(1+S$31*$G$57) -> 3537.458399 | T52: =S52*(1+T$31*$G$57) -> 3578.392977 | U52: 3623.760075 | V52: 3671.925345 | W52: 3722.978134 | X52: 3775.182791 | Y52: 3828.561638 | Z52: 3883.137549 | AA52: 3938.933958 | AB52: 3995.974872 | AC52: 4054.284884 | AD52: 4113.889181 | AE52: 4174.813557 | AF52: 4237.084426 | AG52: 4300.728834 | AH52: 4365.774469 | AI52: 4432.249681 | AJ52: 4500.183487 | AK52: 4569.605592 | AL52: 4640.546397 | AM52: 4713.037019
B53: Executive official, central government | F53: monthly wage (PHP) | Q53: =AVERAGE(34196,37950) -> 36073
F54: annual wage (current $) | Q54: =12*Q53/Q$6 -> 9733.114637
F55: annual wage (const. 2009 $) | R55: =Q54*(R13/Q13) -> 9888.844471 | S55: =R55*(1+S$36*$G$57) -> 10096.74365 | T55: 10345.76117 | U55: 10607.1819 | V55: 10881.7439 | W55: 11170.10166 | X55: 11467.45948 | Y55: 11774.10924 | Z55: 12090.35271 | AA55: 12416.50181 | AB55: 12752.87904 | AC55: 13099.81781 | AD55: 13457.66279 | AE55: 13826.77033 | AF55: 14207.50884 | AG55: 14600.25925 | AH55: 15005.41534 | AI55: 15423.3843 | AJ55: 15854.5871 | AK55: 16299.45901 | AL55: 16758.45009 | AM55: 17232.02566
F56: annual wage (const. 2009 $, deflated with PHP inflation) | R56: =Q54*(R27/Q27) -> 10005.64185 | S56: =R56*(1+S$31*$G$57) -> 10090.67981 | T56: =S56*(1+T$31*$G$57) -> 10207.44661 | U56: 10336.85728 | V56: 10474.2498 | W56: 10619.87903 | X56: 10768.79399 | Y56: 10921.05836 | Z56: 11076.73737 | AA56: 11235.89788 | AB56: 11398.60838 | AC56: 11564.939 | AD56: 11734.9616 | AE56: 11908.74976 | AF56: 12086.37882 | AG56: 12267.92592 | AH56: 12453.47006 | AI56: 12643.0921 | AJ56: 12836.87482 | AK56: 13034.90293 | AL56: 13237.26318 | AM56: 13444.04431
B57: Assumed growth rate in real wages | F57: % | G57: 0.5 | H57: as a percentage of rGDPpc
A59: MCC Administration & controls, % Compact costs | G59: 0.11
A60: BIR collections | F60: current PHP | G60: 337177000000 | H60: 341320000000 | I60: 360802000000 | J60: 388679000000 | K60: 394549000000 | L60: 426010000000 | M60: 468178000000 | N60: 542697000000 | O60: 652733000000 | P60: 713596000000 | Q60: 778581000000
A61: BIR collections as % of current GDP | F61: % | G61: =G60/G10 -> 0.1265176019 | H61: 0.1146559934 | I61: 0.1075503312 | J61: 0.1070306438 | K61: 0.09953626151 | L61: 0.09869560372 | M61: 0.09610444634 | N61: 0.09968647054 | O61: 0.1082267046 | P61: 0.1073506406 | Q61: 0.1048846339
A63: Breakdown of tax revenues
B64: VAT
B65: Income tax
B66: Customs
B67: TOTAL | M67: 0.124 | P67: 0.14
A68: Breakdown of tax revenues (% of nominal GDP) | F68: %
B69: VAT | F69: %
B70: Income tax | F70: %
B71: Customs | F71: %
B72: TOTAL | F72: %
C73: (Target is to raise tax effort by 0.3 pct pts/y for 5 years of project)
A75: Budget deficit (% nominal GDP) | F75: % | L75: 0.05
A76: Public debt (% nominal GDP) | F76: %
B77: w/ contingent liabilities | F77: % | M77: 0.78
B78: w/o contingent liabilities | F78: % | M78: 0.94
A79: Debt svc (% of nat. gov't revenues) | F79: % | O79: 0.87
A80: Interest payments (% of nat. gov't budget) | F80: %
A81: Non-interest expenditures (% nominal GDP) | F81: % | O81: 0.068
A82: Capital expenditures (% nominal GDP) | F82: % | O82: 0.024
A85: Collections from assessmts & delinqu. acc'ts | F85: % | P85: 0.014
A86: Estimated tax gaps
B87: Self-employed individuals | F87: % | N87: 0.7
B88: Employed individuals (wage earners) | F88: % | N88: 0.07
B89: Excise taxes | F89: % | N89: 0.16
B90: Consumption taxes, VAT | F90: % | N90: =AVERAGE(25%, 31%) -> 0.28
B91: Tariffs | F91: % | N91: 0.41
B92: Corporate taxes | F92: % | N92: 0.45
A95: ANTI-CORRUPTION
A96: See WEF-GCR on frequency of irregular payments in tax collection (CP, 3 (n. 12))
A98: Scalar data
A99: Cost parameters
A100: Parameter | F100: Value | G100: Units | H100: Source, Comments
A101: Exchange rate | G101: PHP/USD
A105: Benefit parameters
A106: Parameter | F106: Units | G106: Value | H106: Source, Comments
A107: Wages of government employees
B108: Entry-level employee
B109: Supervisor
B110: Manager
A112: REVENUE
B113: Increase in GDP for 0.3 pct. pt./y revenue increase over next 5y | H113: PHP | I113: =AVERAGE(60000000000,80000000000) -> 70000000000 | J113: = | K113: 0.005
B114: Assuming 0.3 pct pts/y rev increase is achieved over the next 5y, this will raise expenditures and increase GDP by PHP60-80 billion/y (0.5 percentage points)
B115: Increases in private investment from a 1% increase in NG capital outlays
C116: First year | E116: 0.004
C117: Second year | E117: 0.003
B118: Increased spending from revenue increment of PHP (2%) per year
C119: Capital investments up | F119: PHP | G119: =AVERAGE(6000000000,7000000000) -> 6500000000 | H119: = | I119: =AVERAGE(2%,3%) -> 0.025
C120: Addtional health budget up | F120: PHP | G120: =AVERAGE(1200000000,1400000000) -> 1300000000 | H120: = | I120: =AVERAGE(2.3%,2.5%) -> 0.024
C121: Addtional education budget up | F121: PHP | G121: =AVERAGE(8000000000,10000000000) -> 9000000000 | H121: = | I121: 0.03
B122: Comparison of revenue btw computerized and non-computerized RDOs (1996-99)
C123: Computerized | G123: 0.1868
C124: Non-computerized | G124: 0.0844
A126: Client business processes
A127: BIR
B128: Registration
B129: Permit application
B130: Clearance
B131: Filing declarations
B132: Self-assessment of tax liability
B133: Preparing for audit
A135: Agency business processes
A136: BIR
B137: Issuance of Certificate of Registration
B138: Issuance of Permits
B139: Issuance of Clearances
B140: Report preparation
B141: Audit
B142: Filing complaint affidavit
B143: Generate info on taxpayer net worth as basis for tax due
A145: BIR Cost to collect | I145: 0.006
A146: BOC Cost to collect | N146: 0.0058
A148: GDP elasticity of tax revenue
A150: Marginal tax rates
B151: Individual
B152: Corporate
B153: VAT
A155: Fiscal policy
A156: About 1/3 of business mgrs identified high tax rates as a major impediment to doing business (ADB, WB survey, 2007, cited in CP, 5)
A158: Compliance
A159: Estimated tax evasion rate | G159: 0.36
A160: (See Vicente.Philippine Tax Leakages - An Assessment.2006.pdf, p. 41 for details)
A161: Returns filing
B162: Self-employed and professionals | G162: 0.35 | H162: of registered taxpayers
B163: Corporations | G163: 0.31 | H163: of registered corporations
B164: Salaried individuals | G164: 0.03
B165: Private workers covered underr mandatory social security | G165: 0.011
A167: Mean customs clearance time (h) | L167: 28.5
B168: Yellow lane only | L168: 33.9
A170: Customs targets
B171: Dwell Time of Shipments in Port (d) | R171: 6.5 | S171: 6 | T171: 5.5 | U171: 5 | V171: 4 | W171: 3
B172: Greenlane Processing (% of shipments) | R172: 0.27 | S172: 0.3 | T172: 0.4 | U172: 0.5 | V172: 0.6 | W172: 0.7
B173: Pre-Arrival Clearance (% of shipments) | R173: 0 | S173: 0.1 | T173: 0.15 | U173: 0.2 | V173: 0.25 | W173: 0.3
B174: Customs Clearance Time (h) | R174: 30 | S174: 20 | T174: 10 | U174: 5 | V174: 1 | W174: 0.5
B175: Shipments Requiring Paper Documents (% of shipments) | R175: 1 | S175: 0.9 | T175: 0.8 | U175: 0.7 | V175: 0.5 | W175: 0.3
B176: Trade single window - e2m LCS (# of OGAs) | R176: 5 | S176: 20 | T176: 42
B177: Trade single window - E-Services (# of OGAs) | R177: 3 | S177: 10 | T177: 15 | U177: 20 | V177: 30 | W177: 42
B178: Time to Import (d) | R178: 16 | S178: 15 | T178: 12 | U178: 10 | V178: 8 | W178: 5
B179: Time to Export (d) | R179: 16 | S179: 14 | T179: 10 | U179: 7 | V179: 5 | W179: 3
A181: Insurance
A182: Discrepancy on taxes on insurance premiums, 2007 | F182: PHP | G182: 4400000000
A183: Discrepancy on taxes on car insurance, 2007 | F183: PHP | G183: 147000000
A185: "Anomalies"
A186: Stop-filers
A187: Fictitious addresses
A188: Discrepancies in taxpayer declarations
A189: Improper use of tax credit certificates (TCCs)
A190: Exceeding limits on income tax holidays and tariff exemptions in SEZs
A191: Inadequate tracking of Tax Remittance Advice (TRAs) from Gov't employees and contractors
A192: Non-registered taxpayers
A194: Miscellaneous
A195: In 2007, enrollees in Elec Filing and Payment System (eFPS) rose 29% to 22,235 or 1.2% of registered corporations, self-employed individuals and professionals and accounted for 55% of BIR collections

Sheet WB NRIMP Tax Tables
A2: Philippines: Revenue Administration Reform Project (RARP) | H2: Last updated: May 2017
A3: Data Available From The World Bank Project Aprasial Document For The National Roads Improvement And Management Program.
A4: =IF('ERR & Sensitivity Analysis'!I12="y",IF('ERR & Sensitivity Analysis'!I16="y","","Note: Current calculations are based on user input and are not the original MCC estimates"),"Note: Current calculations are based on user input and are not the original MCC estimates") -> 
A5: Table 1: Number of Registered Taxpayers
A6: Year | B6: Employees | C6: Businesses
C7: Corporate | D7: Professional | E7: Individual | F7: Total Business | G7: VAT (active)
A8: 2002 | B8: 3815956 | C8: 135228 | D8: 54048 | E8: 624241 | F8: =SUM(C8:E8) -> 813517 | G8: =204441+5979 -> 210420
A9: 2003 | B9: 4327955 | C9: 148849 | D9: 68539 | E9: 696179 | F9: =SUM(C9:E9) -> 913567 | G9: =225942+6985 -> 232927
A10: 2004 | B10: 4903949 | C10: 161551 | D10: 77505 | E10: 759997 | F10: 999053 | G10: =243700+8093 -> 251793
A11: 2005 | B11: 5555534 | C11: 174850 | D11: 98615 | E11: 832005 | F11: 1105470 | G11: =262000+9065 -> 271065
A12: 2006 | B12: 6259158 | C12: 193788 | D12: 111000 | E12: 925323 | F12: 1230111 | G12: =287077+9951 -> 297028
A13: 2007 | B13: 6954719 | C13: 217025 | D13: 132838 | E13: 1008756 | F13: 1358619 | G13: =322260+10508 -> 332768
A14: 2008 | B14: 7417682 | C14: 230648 | D14: 136975 | E14: 1083492 | F14: 1451115 | G14: =334105+10924 -> 345029
A15: Percent Increase | B15: =((B14/B8)-1)*100 -> 94.38594156 | F15: =((F14/F8)-1)*100 -> 78.37549799 | G15: =((G14/G8)-1)*100 -> 63.97158065
A17: Table 2: Large Taxpayers
B18: 2006 | C18: 2007 | D18: 2008
A19: Total turnover audited (no. of cases)* | B19: 746 | C19: 508 | D19: 899
A20: Number of performed audits (LA) | B20: 2061 | C20: 2180 | D20: 2428
A21: Additional tax assessed (in million pesos) | B21: 10105 | C21: 8733 | D21: 17597
A22: Additional tax collected (in million pesos) | B22: 2579 | C22: 3381 | D22: 2416
A23: Cumulative stock of pending audits | B23: 1250 | C23: 1707 | D23: 1514
A25: Average number of audits per large TP (2006-08): | B25: =AVERAGE(B20/B19,C20/C19,D20/D19) -> 3.25161727
A27: * National Program Support for Tax Administration Reform Project. (2007). p. 63 clarifies that this is the number of TPs audited
A30: Table 3: Stop Filing - VAT
A31: Taxpayer Segment | B31: Registered Taxpayers | C31: Taxpayers with Outstanding Returns | D31: Returns Outstanding end - June, 2008 | E31: New Cases in June - July, 2008 | F31: Closed Cases in June - July, 2008 | G31: Returns Outstanding end - July, 2008
A32: Large | B32: 1137 | C32: 209 | D32: 196 | E32: 0 | F32: 40 | G32: =D32+E32-F32 -> 156
A33: Others | B33: 462756 | C33: 146376 | D33: 228772 | E33: 181629 | F33: 33349 | G33: =D33+E33-F33 -> 377052
A34: Total | B34: =SUM(B32:B33) -> 463893 | C34: =SUM(C32:C33) -> 146585 | D34: =SUM(D32:D33) -> 228968 | E34: =SUM(E32:E33) -> 181629 | F34: =SUM(F32:F33) -> 33389 | G34: =D34+E34-F34 -> 377208

Sheet 1970-2008 Raw Data
A2: Philippines: Revenue Administration Reform Project (RARP) | J2: Last updated: May 2017
A3: Data available from the Philippines Bureau of Internal Revenue.
A4: =IF('ERR & Sensitivity Analysis'!I12="y",IF('ERR & Sensitivity Analysis'!I16="y","","Note: Current calculations are based on user input and are not the original MCC estimates"),"Note: Current calculations are based on user input and are not the original MCC estimates") -> 
B5: Year
B6: 1970 | C6: 1971 | D6: 1972 | E6: 1973 | F6: 1974 | G6: 1975 | H6: 1976 | I6: 1977 | J6: 1978 | K6: 1979 | L6: 1980 | M6: 1981 | N6: 1982 | O6: 1983 | P6: 1984 | Q6: 1985 | R6: 1986 | S6: 1987 | T6: 1988 | U6: 1989 | V6: 1990 | W6: 1991 | X6: 1992 | Y6: 1993 | Z6: 1994 | AA6: 1995 | AB6: 1996 | AC6: 1997 | AD6: 1998 | AE6: 1999 | AF6: 2000 | AG6: 2001 | AH6: 2002 | AI6: 2003 | AJ6: 2004 | AK6: 2005 | AL6: 2006 | AM6: 2007 | AN6: 2008 | AP6: All figures are in PhP Billions.
A7: NGREVNOMINAL | B7: 4.849 | C7: 5.869 | D7: 5.99 | E7: 10.367 | F7: 17.722 | G7: 21.426 | H7: 21.027 | I7: 24.803 | J7: 30.146 | K7: 35.26 | L7: 32.56 | M7: 35.933 | N7: 38.17668 | O7: 46.33992 | P7: 57.4137 | Q7: 67.57634 | R7: 78.5242 | S7: 103.214 | T7: 112.861 | U7: 152.41 | V7: 180.902 | W7: 220.787 | X7: 242.714 | Y7: 260.405 | Z7: 336.16 | AA7: 361.22 | AB7: 410.449 | AC7: 471.843 | AD7: 462.515 | AE7: 478.502 | AF7: 514.762 | AG7: 567.483 | AH7: 578.406 | AI7: 639.736 | AJ7: 706.718 | AK7: 816.159 | AL7: 979.638 | AM7: 1136.605 | AN7: 1225 | AP7: NG | AQ7: National Govt
A8: NGREVCONS | B8: 4.849 | C8: 5.214718335 | D8: 4.93232875 | E8: 7.359812777 | F8: 9.517441576 | G8: 10.63653292 | H8: 9.560229394 | I8: 10.49943134 | J8: 11.6878021 | K8: 11.86237349 | L8: 9.475803343 | M8: 10.10863912 | N8: 9.811174045 | O8: 10.3298306 | P8: 8.466144712 | Q8: 8.737568792 | R8: 9.638846743 | S8: 11.81729448 | T8: 12.29434436 | U8: 15.22660824 | V8: 15.99797541 | W8: 16.75594928 | X8: 17.06622601 | Y8: 17.13917772 | Z8: 20.11538298 | AA8: 20.09741174 | AB8: 21.2113828 | AC8: 22.95530366 | AD8: 20.37118155 | AE8: 19.50840301 | AF8: 19.36216006 | AG8: 20.06471283 | AH8: 19.38494636 | AI8: 20.85189232 | AJ8: 21.72184779 | AK8: 23.52915045 | AL8: 26.86197872 | AM8: 30.31362388 | AN8: 29.97352954 | AP8: REV | AQ8: Revenue
A9: NGSAVINGS CONS | B9: 930.25 | C9: 497.1264114 | D9: -41.17135852 | E9: 2390.324069 | F9: 4684.072081 | G9: 2905.114845 | H9: 1228.04868 | I9: 983.7793188 | J9: 1673.341533 | K9: 2569.956638 | L9: 2144.569866 | M9: -0.7928083649 | N9: -1128.028484 | O9: 821.6442582 | P9: 40.35942306 | Q9: -482.2421697 | R9: -1868.598931 | S9: -432.7840518 | T9: -868.4179054 | U9: 158.7499541 | V9: -440.4037411 | W9: 1255.956171 | X9: 2223.051828 | Y9: 1950.736907 | Z9: 4650.127705 | AA9: 4458.358924 | AB9: 4025.559729 | AC9: 4708.100171 | AD9: 2329.198392 | AE9: 228.9221004 | AF9: -916.9494599 | AG9: -1442.333657 | AH9: -2897.892063 | AI9: -3809.289775 | AJ9: -2567.212969 | AK9: -497.93666 | AL9: 2070.48027 | AM9: 4789.619896 | AN9: 3553.676954 | AP9: EXP | AQ9: Expenditure
A10: EXP | B10: 4.79 | C10: 6.052 | D10: 7.001 | E10: 9.3 | F10: 14.3 | G10: 22.374 | H10: 23.526 | I10: 27.526 | J10: 32.602 | K10: 35.749 | L10: 38.118 | M10: 48.079 | N10: 52.61 | O10: 53.063 | P10: 66.926 | Q10: 80.102 | R10: 109.838 | S10: 119.907 | T10: 136.067 | U10: 171.978 | V10: 218.096 | W10: 247.136 | X10: 258.68 | Y10: 282.296 | Z10: 319.874 | AA10: 350.146 | AB10: 404.193 | AC10: 470.279 | AD10: 512.496 | AE10: 590.16 | AF10: 648.974 | AG10: 713.497 | AH10: 789.147 | AI10: 839.605 | AJ10: 893.775 | AK10: 962.946 | AL10: 1044.429 | AM10: 1149.001 | AN10: 1300 | AP10: NOM | AQ10: Nominal
A11: EXP CONS | B11: 4.79 | C11: 5.377317322 | D11: 5.764813619 | E11: 6.602320713 | F11: 7.679687086 | G11: 11.10714961 | H11: 10.69643585 | I11: 11.65211253 | J11: 12.64000942 | K11: 12.0268857 | L11: 11.0933253 | M11: 13.52554087 | N11: 13.5204493 | O11: 11.82850124 | P11: 9.8688153 | Q11: 10.357127 | R11: 13.48261617 | S11: 13.72852839 | T11: 14.82225528 | U11: 17.18156048 | V11: 19.28720769 | W11: 18.75562547 | X11: 18.18886155 | Y11: 18.57998623 | Z11: 19.14084965 | AA11: 19.48128102 | AB11: 20.88808219 | AC11: 22.87921459 | AD11: 22.57256318 | AE11: 24.06067085 | AF11: 24.41038472 | AG11: 25.22738551 | AH11: 26.44781047 | AI11: 27.36652783 | AJ11: 27.47127498 | AK11: 27.76089133 | AL11: 28.63856809 | AM11: 30.64422922 | AN11: 31.80864359 | AP11: CONS | AQ11: Constant (1970=100)
A12: NGExpNominal | B12: 4.79 | C12: 6.052 | D12: 7.001 | E12: 9.3 | F12: 14.3 | G12: 22.374 | H12: 23.526 | I12: 27.526 | J12: 32.602 | K12: 35.749 | L12: 38.118 | M12: 48.079 | N12: 52.61 | O12: 53.063 | P12: 66.926 | Q12: 80.102 | R12: 109.838 | S12: 119.907 | T12: 136.067 | U12: 171.978 | V12: 218.096 | W12: 247.136 | X12: 258.68 | Y12: 282.296 | Z12: 319.874 | AA12: 350.146 | AB12: 404.193 | AC12: 470.279 | AD12: 512.496 | AE12: 590.16 | AF12: 648.974 | AG12: 713.497 | AH12: 789.147 | AI12: 839.605 | AJ12: 893.775 | AK12: 962.946 | AL12: 1044.429 | AM12: 1149.001 | AN12: 1300 | AP12: Priv | AQ12: Private
A13: NGExpConst | B13: 4.79 | C13: 5.377317322 | D13: 5.764813619 | E13: 6.602320713 | F13: 7.679687086 | G13: 11.10714961 | H13: 10.69643585 | I13: 11.65211253 | J13: 12.64000942 | K13: 12.0268857 | L13: 11.0933253 | M13: 13.52554087 | N13: 13.5204493 | O13: 11.82850124 | P13: 9.8688153 | Q13: 10.357127 | R13: 13.48261617 | S13: 13.72852839 | T13: 14.82225528 | U13: 17.18156048 | V13: 19.28720769 | W13: 18.75562547 | X13: 18.18886155 | Y13: 18.57998623 | Z13: 19.14084965 | AA13: 19.48128102 | AB13: 20.88808219 | AC13: 22.87921459 | AD13: 22.57256318 | AE13: 24.06067085 | AF13: 24.41038472 | AG13: 25.22738551 | AH13: 26.44781047 | AI13: 27.36652783 | AJ13: 27.47127498 | AK13: 27.76089133 | AL13: 28.63856809 | AM13: 30.64422922 | AN13: 31.80864359 | AP13: Inv | AQ13: Investment
A14: PrivInvConst | B14: 7.32875 | C14: 7.159242288 | D14: 8.595756231 | E14: 11.42982403 | F14: 11.707495 | G14: 13.35399681 | H14: 14.18553085 | I14: 15.7696777 | J14: 19.20233073 | K14: 19.60420385 | L14: 23.37927475 | M14: 23.73709164 | N14: 23.76731025 | O14: 18.17687744 | P14: 11.15023067 | Q14: 9.490951449 | R14: 9.413207665 | S14: 12.20073199 | T14: 14.59262345 | U14: 17.85742167 | V14: 23.87818475 | W14: 16.90026425 | X14: 16.93298071 | Y14: 19.88115498 | Z14: 20.70072411 | AA14: 19.72774833 | AB14: 23.25349744 | AC14: 24.65318314 | AD14: 19.35023307 | AE14: 17.97855922 | AF14: 18.0358595 | AG14: 23.09682042 | AH14: 19.13248217 | AI14: 20.97819611 | AJ14: 21.89796639 | AK14: 19.15626216 | AL14: 20.13426829 | AM14: 21.90543078 | AN14: 24.00362174
A15: Tax, Nominal, P Billion | B15: 2.726 | C15: 3.825 | D15: 4.327 | E15: 6.184 | F15: 10.036 | G15: 13.753 | H15: 15.327 | I15: 16.955 | J15: 20.441 | K15: 25.956 | L15: 30.533 | M15: 31.423 | N15: 33.779 | O15: 39.524 | P15: 50.118 | Q15: 61.253 | R15: 65.491 | S15: 85.923 | T15: 90.352 | U15: 122.462 | V15: 151.7 | W15: 182.275 | X15: 208.705 | Y15: 230.17 | Z15: 271.305 | AA15: 310.517 | AB15: 367.894 | AC15: 412.165 | AD15: 416.585 | AE15: 431.686 | AF15: 460.034 | AG15: 493.61 | AH15: 507.637 | AI15: 550.468 | AJ15: 604.964 | AK15: 704.338 | AL15: 859.856 | AM15: 932.937 | AN15: 948.913
A16: Tax Constant, P Billion | B16: 7.910590612 | C16: 8.131114561 | D16: 8.178349568 | E16: 8.3871274 | F16: 8.592253173 | G16: 8.828701701 | H16: 8.849175654 | I16: 8.878674539 | J16: 8.977791464 | K16: 9.074780398 | L16: 9.092220337 | M16: 9.087029711 | N16: 9.068891673 | O16: 9.083695453 | P16: 8.907927788 | Q16: 8.977142166 | R16: 8.992062619 | S16: 9.193966415 | T16: 9.194450807 | U16: 9.412026239 | V16: 9.504166895 | W16: 9.534826755 | X16: 9.593894678 | Y16: 9.625702272 | Z16: 9.694896536 | AA16: 9.757097776 | AB16: 9.852836412 | AC16: 9.906081737 | AD16: 9.817288046 | AE16: 9.775638657 | AF16: 9.75867167 | AG16: 9.767252909 | AH16: 9.741742664 | AI16: 9.794913216 | AJ16: 9.830611078 | AK16: 9.918644542 | AL16: 10.06804895 | AM16: 10.12188917 | AN16: 10.05269092
A17: NG Health Exp Nominal | D17: 241 | E17: 302 | F17: 473 | G17: 712 | H17: 927 | I17: 1044 | J17: 1144 | K17: 1408 | L17: 1479 | M17: 1946 | N17: 2157 | O17: 2462 | P17: 2648 | Q17: 3814 | R17: 4570 | S17: 4951 | T17: 5564 | U17: 7338 | V17: 8623 | W17: 10158 | X17: 10971 | Y17: 8283 | Z17: 6860 | AA17: 11037 | AB17: 13094.86 | AC17: 14153.728 | AD17: 13743.462 | AE17: 14963 | AF17: 14665 | AG17: 15110 | AH17: 13163.663 | AI17: 11345.873 | AJ17: 12066.847 | AK17: 13864 | AL17: 13538 | AM17: 18238.245 | AN17: 28663.725
A18: NG Health Exp Constant | D18: 198.445948 | E18: 214.3979414 | F18: 254.020419 | G18: 353.458949 | H18: 421.4739453 | I18: 441.9387301 | J18: 443.5363099 | K18: 473.6875175 | L18: 430.4273079 | M18: 547.4469632 | N18: 554.3358515 | O18: 548.8149943 | P18: 390.4704138 | Q18: 493.1472668 | R18: 560.9675694 | S18: 566.8555133 | T18: 606.1060243 | U18: 733.1070881 | V18: 762.5705741 | W18: 770.9101206 | X18: 771.4164223 | Y18: 545.1654502 | Z18: 410.4935961 | AA18: 614.0721261 | AB18: 676.722536 | AC18: 688.5831182 | AD18: 605.3221184 | AE18: 610.0376472 | AF18: 551.6065235 | AG18: 534.2500319 | AH18: 441.1726385 | AI18: 369.8133637 | AJ18: 370.8893984 | AK18: 399.6869995 | AL18: 371.2161715 | AM18: 486.4199078 | AN18: 701.3493942
A19: NG Education Exp Nominal | D19: 1223 | E19: 1336 | F19: 1711 | G19: 2104 | H19: 2459 | I19: 2721 | J19: 3572 | K19: 4006 | L19: 4224 | M19: 6202 | N19: 7646 | O19: 8021 | P19: 9538 | Q19: 12893 | R19: 14838 | S19: 17040 | T19: 22021 | U19: 29529 | V19: 35741 | W19: 38643 | X19: 39917 | Y19: 43220 | Z19: 45130 | AA19: 64948 | AB19: 78989.214 | AC19: 94953.582 | AD19: 106245.52 | AE19: 110614 | AF19: 121128 | AG19: 127000 | AH19: 125246.588 | AI19: 128639.939 | AJ19: 133215.267 | AK19: 131217 | AL19: 146323 | AM19: 167424.864 | AN19: 186635.046
A20: NG Education Exp Constant | D20: 1007.051429 | E20: 948.4624164 | F20: 918.877245 | G20: 1044.491052 | H20: 1118.019883 | I20: 1151.834564 | J20: 1384.887849 | K20: 1347.72173 | L20: 1229.293407 | M20: 1744.741041 | N20: 1964.975392 | O20: 1787.99556 | P20: 1406.460275 | Q20: 1667.054985 | R20: 1821.364725 | S20: 1950.963027 | T20: 2398.824723 | U20: 2950.111638 | V20: 3160.73697 | W20: 2932.691454 | X20: 2806.729499 | Y20: 2844.627642 | Z20: 2700.521282 | AA20: 3613.550462 | AB20: 4082.04297 | AC20: 4619.520283 | AD20: 4679.516939 | AE20: 4509.704224 | AF20: 4556.085576 | AG20: 4490.387429 | AH20: 4197.567781 | AI20: 4192.957963 | AJ20: 4094.535236 | AK20: 3782.871394 | AL20: 4012.22218 | AM20: 4465.275409 | AN20: 4566.621277
A21: GDP, Nominal | B21: 42.448 | C21: 50.12 | D21: 56.075 | E21: 71.786 | F21: 99.638 | G21: 114.697 | H21: 135.272 | I21: 154.226 | J21: 177.669 | K21: 217.543 | L21: 264.65 | M21: 281.6 | N21: 317.2 | O21: 369.1 | P21: 524.5 | Q21: 571.9 | R21: 608.9 | S21: 682.8 | T21: 799.182 | U21: 925.444 | V21: 1077.237 | W21: 1248.011 | X21: 1351.559 | Y21: 1474.457 | Z21: 1692.932 | AA21: 1905.951 | AB21: 2171.922 | AC21: 2426.743 | AD21: 2665.06 | AE21: 2976.904 | AF21: 3354.727 | AG21: 3631.474 | AH21: 3963.873 | AI21: 4316.402 | AJ21: 4871.554 | AK21: 5444.038 | AL21: 6032.839 | AM21: 6648.25 | AN21: 7594.702793
A22: GDP Constant | B22: 42.448 | C22: 44.53257505 | D22: 46.17367857 | E22: 50.96281663 | F22: 53.50969663 | G22: 56.93915881 | H22: 61.5033695 | I22: 65.28586455 | J22: 68.88343762 | K22: 73.18707644 | L22: 77.02000475 | M22: 79.21945777 | N22: 81.51846643 | O22: 82.27766628 | P22: 77.34204383 | Q22: 73.94623017 | R22: 74.74248425 | S22: 78.17591284 | T22: 87.05769674 | U22: 92.45701226 | V22: 95.26490056 | W22: 94.71395063 | X22: 95.0337078 | Y22: 97.04491298 | Z22: 101.3028782 | AA22: 106.0425281 | AB22: 112.2416401 | AC22: 118.0617758 | AD22: 117.3808873 | AE22: 121.3676076 | AF22: 126.1840639 | AG22: 128.399411 | AH22: 132.8469371 | AI22: 140.6910815 | AJ22: 149.7332097 | AK22: 156.9468561 | AL22: 165.4223221 | AM22: 177.3109831 | AN22: 185.828611
A23: Investment, Constant | B23: 8.2 | C23: 7.818967686 | D23: 9.387069741 | E23: 13.06265603 | F23: 14.55381259 | G23: 16.72972834 | H23: 16.54978599 | I23: 17.9061382 | J23: 21.82787959 | K23: 22.3386727 | L23: 27.14136657 | M23: 27.15320058 | N23: 26.34855703 | O23: 20.49719234 | P23: 12.59326068 | Q23: 10.62826748 | R23: 11.38837816 | S23: 13.67918184 | T23: 16.25211648 | U23: 19.97112386 | V23: 26.72701329 | W23: 20.15589662 | X23: 20.27866809 | Y23: 23.27270039 | Z23: 24.37631848 | AA23: 23.56997654 | AB23: 26.95575656 | AC23: 29.28519424 | AD23: 23.87640865 | AE23: 22.75974915 | AF23: 22.16713471 | AG23: 26.81715944 | AH23: 23.29745422 | AI23: 23.68354185 | AJ23: 25.08018061 | AK23: 22.89006639 | AL23: 23.98133793 | AM23: 27.04213523 | AN23: 29.39265146
A24: GDS, Constant | B24: 9.348 | C24: 9.080664745 | D24: 8.954770477 | E24: 12.3427901 | F24: 12.64087235 | G24: 13.60072307 | H24: 15.90052515 | I24: 15.80057954 | J24: 16.58182206 | K24: 17.71046306 | L24: 24.95547103 | M24: 14.0282581 | N24: 13.74891688 | O24: 15.92299101 | P24: 12.60800654 | Q24: 7.79609713 | R24: 10.4774503 | S24: 17.12052491 | T24: 19.06563559 | U24: 20.24808569 | V24: 20.86301322 | W24: 18.37450642 | X24: 18.72164044 | Y24: 17.85626399 | Z24: 19.75406126 | AA24: 19.08765506 | AB24: 21.55039491 | AC24: 16.77462356 | AD24: 14.55957104 | AE24: 17.36876619 | AF24: 21.82857281 | AG24: 21.97878467 | AH24: 31.16392729 | AI24: 37.99961221 | AJ24: 43.31466488 | AK24: 45.97963032 | AL24: 47.00781838 | AM24: 53.0942947 | AN24: 57.60686941
A25: GDI, Constant | B25: 8.2 | C25: 7.818967686 | D25: 9.387069741 | E25: 13.06265603 | F25: 14.55381259 | G25: 16.72972834 | H25: 16.54978599 | I25: 17.9061382 | J25: 21.82787959 | K25: 22.3386727 | L25: 27.14136657 | M25: 27.15320058 | N25: 26.34855703 | O25: 20.49719234 | P25: 12.59326068 | Q25: 10.62826748 | R25: 11.38837816 | S25: 13.67918184 | T25: 16.25211648 | U25: 19.97112386 | V25: 26.72701329 | W25: 20.15589662 | X25: 20.27866809 | Y25: 23.27270039 | Z25: 24.37631848 | AA25: 23.56997654 | AB25: 26.95575656 | AC25: 29.28519424 | AD25: 23.87640865 | AE25: 22.75974915 | AF25: 22.16713471 | AG25: 26.81715944 | AH25: 23.29745422 | AI25: 23.68354185 | AJ25: 25.08018061 | AK25: 22.89006639 | AL25: 23.98133793 | AM25: 27.04213523 | AN25: 29.39265146
A26: PrivSav,Constant | B26: 8.41775 | C26: 8.583538333 | D26: 8.995941836 | E26: 9.952466029 | F26: 7.95680027 | G26: 10.69560823 | H26: 14.67247647 | I26: 14.81680022 | J26: 14.90848053 | K26: 15.14050642 | L26: 22.81090116 | M26: 14.02905091 | N26: 14.87694537 | O26: 15.10134675 | P26: 12.56764712 | Q26: 8.278339299 | R26: 12.34604923 | S26: 17.55330896 | T26: 19.93405349 | U26: 20.08933573 | V26: 21.30341696 | W26: 17.11855025 | X26: 16.49858861 | Y26: 15.90552708 | Z26: 15.10393355 | AA26: 14.62929614 | AB26: 17.52483518 | AC26: 12.06652339 | AD26: 12.23037265 | AE26: 17.13984409 | AF26: 22.74552227 | AG26: 23.42111832 | AH26: 34.06181936 | AI26: 41.80890198 | AJ26: 45.88187785 | AK26: 46.47756698 | AL26: 44.93733811 | AM26: 48.3046748 | AN26: 54.05319246
A27: INFLATION INDEX, 1970+100 | B27: 1 | C27: 1.125468266 | D27: 1.214436487 | E27: 1.408595614 | F27: 1.862055034 | G27: 2.014378196 | H27: 2.199424212 | I27: 2.362318414 | J27: 2.57927023 | K27: 2.972423693 | L27: 3.436120276 | M27: 3.554682245 | N27: 3.891142877 | O27: 4.486029036 | P27: 6.78156374 | Q27: 7.73399805 | R27: 8.146638503 | S27: 8.734148092 | T27: 9.179912057 | U27: 10.00945172 | V27: 11.30780585 | W27: 13.17663334 | X27: 14.22189065 | Y27: 15.1935527 | Z27: 16.71158835 | AA27: 17.9734587 | AB27: 19.35041218 | AC27: 20.55485769 | AD27: 22.70437769 | AE27: 24.52799441 | AF27: 26.58598 | AG27: 28.28263752 | AH27: 29.83789531 | AI27: 30.6799973 | AJ27: 32.5348933 | AK27: 34.68714274 | AL27: 36.46931636 | AM27: 37.49485724 | AN27: 40.86939439
A28: NG Capital Outlays, Constant | B28: 0.87125 | C28: 0.6597253985 | D28: 0.7913135107 | E28: 1.632832004 | F28: 2.846317591 | G28: 3.375731535 | H28: 2.364255141 | I28: 2.136460509 | J28: 2.625548855 | K28: 2.734468851 | L28: 3.762091825 | M28: 3.416108946 | N28: 2.581246774 | O28: 2.320314897 | P28: 1.443030011 | Q28: 1.137316035 | R28: 1.975170494 | S28: 1.478449857 | T28: 1.659493022 | U28: 2.113702189 | V28: 2.848828537 | W28: 3.255632364 | X28: 3.345687376 | Y28: 3.391545414 | Z28: 3.675594366 | AA28: 3.842228206 | AB28: 3.702259122 | AC28: 4.632011101 | AD28: 4.526175586 | AE28: 4.781189935 | AF28: 4.131275206 | AG28: 3.720339021 | AH28: 4.16497205 | AI28: 2.70534574 | AJ28: 3.182214217 | AK28: 3.733804222 | AL28: 3.847069646 | AM28: 5.136704449 | AN28: 5.389029719
A29: Interest payments (% of revenue) | V29: 0.402410593 | W29: 0.3458811146 | X29: 0.3302662393 | Y29: 0.2956425281 | Z29: 0.2583641909 | AA29: 0.2147161124 | AB29: 0.1890416983 | AC29: 0.168616935 | AD29: 0.2165634399 | AE29: 0.2240896949 | AF29: 0.2761999232 | AG29: 0.3107834023 | AH29: 0.3523465134 | AI29: 0.3767878845 | AJ29: 0.3927634363 | AK29: 0.3869033753 | AL29: 0.3314520577 | AM29: 0.2647278955
A30: Interest payments (PHP billion (const)) | V30: =V29*V8 -> 6.437754774 | W30: 5.795566414 | X30: 5.636398282 | Y30: 5.06706983 | Z30: 5.197094649 | AA30: 4.315238119 | AB30: 4.009835827 | AC30: 3.870652946 | AD30: 4.411653153 | AE30: 4.371632079 | AF30: 5.34782712 | AG30: 6.235779719 | AH30: 6.830218261 | AI30: 7.856740393 | AJ30: 8.531547581 | AK30: 9.103507726 | AL30: 8.90345812 | AM30: 8.024861856
A31: NG revenue (PHP billion) | V31: =AN7 -> 1225 | W31: (2008)
A32: NG tax revenue (PHP billion) | V32: 1049.179 | W32: (2008)
A33: Tax revenue as % of NG revenue | V33: =V32/V31 -> 0.8564726531 | W33: (2008)
A34: Fraction of NG tax revenue collected by BIR | V34: 0.7421 | W34: (2008)
A35: Fraction of NG revenue collected by BIR | V35: =V33*V34 -> 0.6355883558 | W35: (2008, but assume this is valid 1990-2007 as well)
A36: BIRREVCONS (PHP billion) | V36: =$V$35*V8 -> 10.16812689 | W36: =$V$35*W8 -> 10.64988625 | X36: 10.84709453 | Y36: 10.89346179 | Z36: 12.7851032 | AA36: 12.77368089 | AB36: 13.48170792 | AC36: 14.59012371 | AD36: 12.94768579 | AE36: 12.3993138 | AF36: 12.30636348 | AG36: 12.75289784 | AH36: 12.32084618 | AI36: 13.25321995 | AJ36: 13.80615352 | AK36: 14.95485405 | AL36: 17.07316089 | AM36: 19.26698636
A37: ln(BIRREVCONS) | V37: =LN(V36) -> 2.319258013 | W37: =LN(W36) -> 2.365549212 | X37: =LN(X36) -> 2.383897259 | Y37: 2.388162773 | Z37: 2.548280681 | AA37: 2.547386873 | AB37: 2.601333798 | AC37: 2.680344842 | AD37: 2.560917069 | AE37: 2.517641132 | AF37: 2.510116484 | AG37: 2.545758527 | AH37: 2.51129264 | AI37: 2.584240538 | AJ37: 2.6251144 | AK37: 2.705035933 | AL37: 2.837507692 | AM37: 2.95839308
A38: NGExpConst | V38: =V13 -> 19.28720769 | W38: =W13 -> 18.75562547 | X38: 18.18886155 | Y38: 18.57998623 | Z38: 19.14084965 | AA38: 19.48128102 | AB38: 20.88808219 | AC38: 22.87921459 | AD38: 22.57256318 | AE38: 24.06067085 | AF38: 24.41038472 | AG38: 25.22738551 | AH38: 26.44781047 | AI38: 27.36652783 | AJ38: 27.47127498 | AK38: 27.76089133 | AL38: 28.63856809 | AM38: 30.64422922
A39: NGExpConst - Int | V39: =V38-V30 -> 12.84945292 | W39: 12.96005906 | X39: 12.55246327 | Y39: 13.5129164 | Z39: 13.943755 | AA39: 15.16604291 | AB39: 16.87824637 | AC39: 19.00856165 | AD39: 18.16091003 | AE39: 19.68903877 | AF39: 19.0625576 | AG39: 18.99160579 | AH39: 19.61759221 | AI39: 19.50978744 | AJ39: 18.93972739 | AK39: 18.6573836 | AL39: 19.73510997 | AM39: 22.61936737
A40: NG Capital Outlays, Constant | V40: =V28 -> 2.848828537 | W40: =W28 -> 3.255632364 | X40: 3.345687376 | Y40: 3.391545414 | Z40: 3.675594366 | AA40: 3.842228206 | AB40: 3.702259122 | AC40: 4.632011101 | AD40: 4.526175586 | AE40: 4.781189935 | AF40: 4.131275206 | AG40: 3.720339021 | AH40: 4.16497205 | AI40: 2.70534574 | AJ40: 3.182214217 | AK40: 3.733804222 | AL40: 3.847069646 | AM40: 5.136704449
A41: NG (Exp - Int + Capital Outlays), Const | V41: =V39+V40 -> 15.69828146 | W41: =W39+W40 -> 16.21569142 | X41: 15.89815065 | Y41: 16.90446181 | Z41: 17.61934936 | AA41: 19.00827111 | AB41: 20.58050549 | AC41: 23.64057275 | AD41: 22.68708562 | AE41: 24.4702287 | AF41: 23.19383281 | AG41: 22.71194481 | AH41: 23.78256426 | AI41: 22.21513318 | AJ41: 22.12194161 | AK41: 22.39118782 | AL41: 23.58217962 | AM41: 27.75607182
A42: ln(NG (Exp - Int + Capital Outlays), Const) | V42: =LN(V41) -> 2.753551245 | W42: =LN(W41) -> 2.78597938 | X42: 2.766202791 | Y42: 2.8275776 | Z42: 2.868997694 | AA42: 2.944874206 | AB42: 3.024344292 | AC42: 3.16296442 | AD42: 3.121795847 | AE42: 3.197457224 | AF42: 3.143886416 | AG42: 3.122890989 | AH42: 3.168952718 | AI42: 3.100773731 | AJ42: 3.096569949 | AK42: 3.108667481 | AL42: 3.160491326 | AM42: 3.32345462
A44: Statistical Tests | B44: Output
A45: Regress ln(NG (Exp - Int + Capital Outlays), Const) against ln(BIRREVCONS) | B45: Multiple R | C45: 0.7791230732 | E45: ANOVA
B46: R Square | C46: 0.6070327631 | F46: df | G46: SS | H46: MS | I46: F | J46: Significance F
B47: Adjusted R Square | C47: 0.5824723108 | E47: Regression | F47: 1 | G47: 0.2989521818 | H47: 0.2989521818 | I47: 24.71586254 | J47: 0.0001386155256
B48: Standard Error | C48: 0.1099798133 | E48: Residual | F48: 16 | G48: 0.1935289493 | H48: 0.01209555933
B49: Observations | C49: 18 | E49: Total | F49: 17 | G49: 0.492481131
C51: Coefficients | D51: Standard Error | E51: t Stat | F51: P-value | G51: Lower 95% | H51: Upper 95% | I51: Lower 95.0% | J51: Upper 95.0%
B52: Intercept | C52: 0.9239113624 | D52: 0.4259795978 | E52: 2.16890989 | F52: 0.04550290706 | G52: 0.0208749617 | H52: 1.826947763 | I52: 0.0208749617 | J52: 1.826947763
B53: ln(BIRREVCONS) | C53: 0.8237462041 | D53: 0.1656935263 | E53: 4.971505058 | F53: 0.0001386155256 | G53: 0.472491622 | H53: 1.175000786 | I53: 0.472491622 | J53: 1.175000786
B55: Year | C55: ln(NG (Exp - Int + Capital Outlays), Const) | E55: ln(BIRREVCONS)
B58: 1990 | C58: 2.753551245 | E58: 2.319258013
B59: 1991 | C59: 2.78597938 | E59: 2.365549212
B60: 1992 | C60: 2.766202791 | E60: 2.383897259
B61: 1993 | C61: 2.8275776 | E61: 2.388162773
B62: 1994 | C62: 2.868997694 | E62: 2.548280681
B63: 1995 | C63: 2.944874206 | E63: 2.547386873
B64: 1996 | C64: 3.024344292 | E64: 2.601333798
B65: 1997 | C65: 3.16296442 | E65: 2.680344842
B66: 1998 | C66: 3.121795847 | E66: 2.560917069
B67: 1999 | C67: 3.197457224 | E67: 2.517641132
B68: 2000 | C68: 3.143886416 | E68: 2.510116484
B69: 2001 | C69: 3.122890989 | E69: 2.545758527
B70: 2002 | C70: 3.168952718 | E70: 2.51129264
B71: 2003 | C71: 3.100773731 | E71: 2.584240538
B72: 2004 | C72: 3.096569949 | E72: 2.6251144
B73: 2005 | C73: 3.108667481 | E73: 2.705035933
B74: 2006 | C74: 3.160491326 | E74: 2.837507692
B75: 2007 | C75: 3.32345462 | E75: 2.95839308
A77: Regress coef rGDP growth against FDI/GDP | B77: Multiple R | C77: 0.1831989801 | E77: ANOVA
B78: R Square | C78: 0.0335618663 | F78: df | G78: SS | H78: MS | I78: F | J78: Significance F
B79: Adjusted R Square | C79: 0.006716362585 | E79: Regression | F79: 1 | G79: 0.001438821433 | H79: 0.001438821433 | I79: 1.250185754 | J79: 0.2709230566
B80: Standard Error | C80: 0.03392471254 | E80: Residual | F80: 36 | G80: 0.04143190037 | H80: 0.001150886121
B81: Observations | C81: 38 | E81: Total | F81: 37 | G81: 0.0428707218
C83: Coefficients | D83: Standard Error | E83: t Stat | F83: P-value | G83: Lower 95% | H83: Upper 95% | I83: Lower 95.0% | J83: Upper 95.0%
B84: Intercept | C84: 0.03142476011 | D84: 0.008459277937 | E84: 3.714827712 | F84: 0.0006866304732 | G84: 0.01426854939 | H84: 0.04858097082 | I84: 0.01426854939 | J84: 0.04858097082
B85: X Variable 1 | C85: 0.6519969371 | D85: 0.5831204639 | E85: 1.118117057 | F85: 0.2709230566 | G85: -0.5306261692 | H85: 1.834620043 | I85: -0.5306261692 | J85: 1.834620043
B87: Year | C87: KKM Ctrl of Corr | E87: FDI net inflows (% of GDP)
B88: 1996 | C88: 44.7 | E88: =1.83105982101638/100 -> 0.01831059821
B89: 1998 | C89: 41.3 | E89: =3.50920033918481/100 -> 0.03509200339
B90: 2000 | C90: 36.4 | E90: =2.9507641905828/100 -> 0.02950764191
B91: 2002 | C91: 36.4 | E91: =2.00744871588112/100 -> 0.02007448716
B92: 2003 | C92: 36.9 | E92: =0.616574044030468/100 -> 0.00616574044
B93: 2004 | C93: 31.6 | E93: =0.791440521701661/100 -> 0.007914405217
B94: 2005 | C94: 34 | E94: =1.87607188852541/100 -> 0.01876071889
B95: 2006 | C95: 21.4 | E95: =2.48524283905431/100 -> 0.02485242839
B96: 2007 | C96: 22.2 | E96: =2.03273120450538/100 -> 0.02032731205
B97: 2008 | C97: 26.1 | E97: =1500000000/'Assumptions & Data'!Q11 -> 0.008986922438
B98: Mean | C98: =AVERAGE(C88:C97) -> 33.1
B99: Std. Dev. | C99: =STDEV(C88:C97) -> 7.787311617
B101: Year | D101: FDI net inflows (% of GDP) | G101: rGDP growth (%)
B103: 1970 | D103: -0.01555204452 | E103: =D103/100 -> -0.0001555204452 | G103: 3.764604853 | H103: =G103/100 -> 0.03764604853
B104: 1971 | D104: 0.2914300348 | E104: =D104/100 -> 0.002914300348 | G104: 5.428631375 | H104: =G104/100 -> 0.05428631375
B105: 1972 | D105: 0.05113865591 | E105: 0.0005113865591 | G105: 5.446791103 | H105: 0.05446791103
B106: 1973 | D106: 0.5881238329 | E106: 0.005881238329 | G106: 8.92064682 | H106: 0.0892064682
B107: 1974 | D107: 0.948684377 | E107: 0.00948684377 | G107: 3.558115077 | H107: 0.03558115077
B108: 1975 | D108: 0.7654104688 | E108: 0.007654104688 | G108: 5.56477363 | H108: 0.0556477363
B109: 1976 | D109: 0.8977837453 | E109: 0.008977837453 | G109: 8.806630564 | H109: 0.08806630564
B110: 1977 | D110: 1.068808894 | E110: 0.01068808894 | G110: 5.602055577 | H110: 0.05602055577
B111: 1978 | D111: 0.4448107913 | E111: 0.004448107913 | G111: 5.172103289 | H111: 0.05172103289
B112: 1979 | D112: 0.02545236613 | E112: 0.0002545236613 | G112: 5.639675745 | H112: 0.05639675745
B113: 1980 | D113: -0.3266523806 | E113: -0.003266523806 | G113: 5.148911295 | H113: 0.05148911295
B114: 1981 | D114: 0.4825138911 | E114: 0.004825138911 | G114: 3.423269178 | H114: 0.03423269178
B115: 1982 | D115: 0.0430800466 | E115: 0.000430800466 | G115: 3.619327606 | H115: 0.03619327606
B116: 1983 | D116: 0.3161495436 | E116: 0.003161495436 | G116: 1.874616469 | H116: 0.01874616469
B117: 1984 | D117: 0.02865468305 | E117: 0.0002865468305 | G117: -7.323682586 | H117: -0.07323682586
B118: 1985 | D118: 0.03904436768 | E118: 0.0003904436768 | G118: -7.306608835 | H118: -0.07306608835
B119: 1986 | D119: 0.4251990515 | E119: 0.004251990515 | G119: 3.416782803 | H119: 0.03416782803
B120: 1987 | D120: 0.9248109323 | E120: 0.009248109323 | G120: 4.31163482 | H120: 0.0431163482
B121: 1988 | D121: 2.470603174 | E121: 0.02470603174 | G121: 6.752544483 | H121: 0.06752544483
B122: 1989 | D122: 1.322365531 | E122: 0.01322365531 | G122: 6.205311116 | H122: 0.06205311116
B123: 1990 | D123: 1.196075197 | E123: 0.01196075197 | G123: 3.036966293 | H123: 0.03036966293
B124: 1991 | D124: 1.197776048 | E124: 0.01197776048 | G124: -0.5783346515 | H124: -0.005783346515
B125: 1992 | D125: 0.4303806197 | E125: 0.004303806197 | G125: 0.3376030324 | H125: 0.003376030324
B126: 1993 | D126: 2.277067049 | E126: 0.02277067049 | G126: 2.11630718 | H126: 0.0211630718
B127: 1994 | D127: 2.48265794 | E127: 0.0248265794 | G127: 4.387623339 | H127: 0.04387623339
B128: 1995 | D128: 1.994067226 | E128: 0.01994067226 | G128: 4.678692221 | H128: 0.04678692221
B129: 1996 | D129: 1.831059821 | E129: 0.01831059821 | G129: 5.845873472 | H129: 0.05845873472
B130: 1997 | D130: 1.484011517 | E130: 0.01484011517 | G130: 5.185362275 | H130: 0.05185362275
B131: 1998 | D131: 3.509200339 | E131: 0.03509200339 | G131: -0.5767221892 | H131: -0.005767221892
B132: 1999 | D132: 1.63740475 | E132: 0.0163740475 | G132: 3.396396396 | H132: 0.03396396396
B133: 2000 | D133: 2.950764191 | E133: 0.02950764191 | G133: 5.968458656 | H133: 0.05968458656
B134: 2001 | D134: 0.2738162677 | E134: 0.002738162677 | G134: 1.755673409 | H134: 0.01755673409
B135: 2002 | D135: 2.007448716 | E135: 0.02007448716 | G135: 4.449407197 | H135: 0.04449407197
B136: 2003 | D136: 0.616574044 | E136: 0.00616574044 | G136: 4.929730692 | H136: 0.04929730692
B137: 2004 | D137: 0.7914405217 | E137: 0.007914405217 | G137: 6.379490374 | H137: 0.06379490374
B138: 2005 | D138: 1.876071889 | E138: 0.01876071889 | G138: 4.951869149 | H138: 0.04951869149
B139: 2006 | D139: 2.485242839 | E139: 0.02485242839 | G139: 5.341017507 | H139: 0.05341017507
B140: 2007 | D140: 2.032731205 | E140: 0.02032731205 | G140: 7.078815329 | H140: 0.07078815329
B141: 2008 | E141: =E97 -> 0.008986922438 | G141: 3.838987593 | H141: 0.03838987593
D142: Mean | E142: =AVERAGE(E103:E141) -> 0.010965216
D143: Std Deviation | E143: =STDEV(E103:E141) -> 0.009443296692

Sheet Notes
A2: Philippines: Revenue Administration Reform Project (RARP) | H2: Last updated: May 2017
A4: Abbreviations used in this spreadsheet
A5: [number] | B5: Page number of the relevant document
A6: BIR | B6: Bureau of Internal Revenue
A7: CP | B7: Concept Paper (unless otherwise noted, 02/09 version)
A8: CP Ann N | B8: Concept Paper (unless otherwise noted, 02/09 version), Annex N
A9: FDI | B9: Foreign direct investment
A10: FY | B10: Fiscal year
A11: GFCF | B11: Gross fixed capital formation
A12: KKM | B12: Kaufmann-Kraay-Mastruzzi (www.governancematters.org)
A13: LOE | B13: Level of effort
A14: NG | B14: National government
A15: p. | B15: Page
A16: PAD | B16: Project Appraisal Document (of the WB)
A17: PER | B17: Project Evaluation Report (Satori Dec 09 due diligence reports, by project activity)
A18: Satori | B18: Satori/Booz-Allen-Hamilton reports on MCC Due Diligence Project (4 Dec 09)
A19: TA | B19: Tax administration
A20: TP | B20: Taxpayer
A21: WB | B21: World Bank
A22: WDI | B22: World Development Indicators
A23: WOP | B23: Without project
A24: WP | B24: With project
A26: Sources
A27: Republic of the Philippines. Bureau of Internal Revenue. Annual Report. 2008.
A28: The World Bank. World Development Indicators. 2009
A29: Millenium Challenege Corporation. Country Scorecards.
A30: USAID. Customs Reforms In The Philippines Improving Efficiency, Effectiveness And Anti-Corruption Outcomes. 2006.
A32: XE Currency Crossrates.
A33: Reuters . “Philippine net FDI inflows plunge 48 pct in 2008.” March 2009.

Sheet Cost summary (Feb 09) (hidden)
A1: Department/Project Name | H1: Amount (in 2009 USD)
H2: Feb '09 proposal | I2: D. Gaugler rev's (May '09) | J2: T. Campbell rev's (May '09) | K2: Satori/Booz-Allen (20Nov09) | L2: Current best estimate | M2: In/?/Out (= 1/0.5/0) per May mission rpt. | N2: Expected cost
A3: DEPARTMENT OF FINANCE (Main Office) | H3: =SUM(H4:H5) -> 18000000 | N3: =SUM(N4:N5) -> 4000000
B4: Financial Management Information System (FMIS) | H4: 10000000 | L4: =H4 -> 10000000 | M4: 0 | N4: =L4*M4 -> 0
B5: Revenue Integrity Protection Service (RIPS) | H5: 8000000 | J5: 4000000 | K5: 4000000 | L5: =J5 -> 4000000 | M5: 1 | N5: =L5*M5 -> 4000000
A7: BUREAU OF INTERNAL REVENUE (BIR) | H7: =SUM(H8:H19) -> 61959400 | N7: =SUM(N8:N19) -> 54669000
B8: Electronic Tax Information System (eTIS) | H8: 24966000 | I8: 25626000 | K8: 27100000 | L8: =I8 -> 25626000 | M8: 1 | N8: =L8*M8 -> 25626000 | O8: =N8+SUM(N14:N16) -> 38870000 | P8: including supporting components
B9: IMF project management | K9: 6500000
B10: Process Redesign | K10: 1000000
B11: Electronic Tax Returns Management | H11: 13225800 | I11: 14699000 | L11: =I11 -> 14699000 | M11: 1 | N11: 14699000
B12: Electronic Tax Remittance Advice | H12: 1867000 | L12: =H12 -> 1867000 | M12: 0 | N12: 0
B13: Backlog Management | H13: 1761000 | L13: =H13 -> 1761000 | M13: 0 | N13: 0
B14: Electronic Linkages | H14: 3280000 | L14: =H14 -> 3280000 | M14: 1 | N14: 3280000 | O14: Include these three in eTIS
B15: Infrastructure Upgrade | H15: 14144000 | I15: 9264000 | L15: =I15 -> 9264000 | M15: 1 | N15: 9264000
B16: Staff Development on ICT | H16: 933000 | J16: 700000 | L16: =J16 -> 700000 | M16: 1 | N16: 700000
B17: Computer Assisted & Risk-Based Audit Selection | H17: 965000 | J17: 2200000 | K17: 1500000 | L17: =J17 -> 2200000 | M17: 0.5 | N17: 1100000
B18: Public Awareness Campaign Project (PACP) | K18: 7600000
B19: Run Against The Tax Evader (RATE) Program | H19: 817600 | L19: =H19 -> 817600 | M19: 0 | N19: 0
A21: BUREAU OF CUSTOMS (BOC) | H21: =SUM(H22:H29) -> 49730000 | N21: =SUM(N22:N29) -> 35285000
B22: Citizen-Centric Service System | H22: 10150000 | L22: =H22 -> 10150000 | M22: 0.5 | N22: =L22*M22 -> 5075000
B23: Executive Revenue Dashboard | H23: 3000000 | L23: =H23 -> 3000000 | M23: 0 | N23: 0
B24: BOC Petroleum Inventory System | H24: 7500000 | L24: =H24 -> 7500000 | M24: 1 | N24: 7500000
B25: On-Line X-Ray Image System | H25: 10370000 | J25: 7500000 | L25: =J25 -> 7500000 | M25: 1 | N25: 7500000
B26: National Single Window Extension | H26: 15210000 | L26: =H26 -> 15210000 | M26: 1 | N26: 15210000
B27: Run After the Smugglers (RATS) Program | H27: 1800000 | J27: 1150000 | L27: =J27 -> 1150000 | M27: 0 | N27: 0
B28: Value Reference Information System | H28: 900000 | L28: =H28 -> 900000 | M28: 0 | N28: 0
B29: Financial Monitoring System | H29: 800000 | L29: =H29 -> 800000 | M29: 0 | N29: 0
A31: THE OFFICE OF THE OMBUDSMAN | H31: =SUM(H32:H35) -> 15000000 | N31: =SUM(N32:N35) -> 5000000
B32: Integrity Development Review | H32: 10000000 | L32: =H32 -> 10000000 | M32: 0.5 | N32: =L32*M32 -> 5000000
B33: Training Support | H33: 100000 | L33: =H33 -> 100000 | M33: 0 | N33: =L33*M33 -> 0
B34: Anti-Corruption Legislative Framework | H34: 215000 | L34: =H34 -> 215000 | M34: 0 | N34: =L34*M34 -> 0
B35: Information Technology and Management Support | H35: 4685000 | L35: =H35 -> 4685000 | M35: 0 | N35: =L35*M35 -> 0
A37: SUBTOTAL | N37: =N3+N7+N21+N31 -> 98954000
A39: Monitoring and Evaluation (2% of cost) | H39: 3000000 | N39: =2%*N37 -> 1979080
A41: GRAND TOTAL | H41: =H3+H7+H21+H31+H39 -> 147689400 | N41: =N37+N39 -> 100933080
